Ref No,Fund Type,Dept,Cost Centre Description    ,Description    ,Creditor Name    ,GL Code Net Amount,Payment date        
2,Revenue,CAHD,18-25 Year Olds,Permanent Residential,1 St Georges House,13333.52, 11-Feb-2020
3,Revenue,CAHD,CSC - LAC Housing Support Grants,Grants to Voluntary Bodies,1625 Independent People,3343.00, 27-Feb-2020
4,Revenue,CAHD,CSC - Care Leavers Independent Living,Grants to Voluntary Bodies,1625 Independent People,1074.50, 27-Feb-2020
5,Revenue,CAHD,CSC - LAC Housing Support Grants,Grants to Voluntary Bodies,1625 Independent People,3343.00, 27-Feb-2020
6,Revenue,CAHD,CSC - LAC Housing Support Grants,Grants to Voluntary Bodies,1625 Independent People,3343.00, 27-Feb-2020
7,Revenue,CAHD,Supporting People Programme,Grants to Voluntary Bodies,1625 Independent People,15167.00, 28-Feb-2020
8,Revenue,CAHD,Supporting People Programme,Grants to Voluntary Bodies,1625 Independent People,10046.00, 28-Feb-2020
9,Revenue,CAHD,CSC - Asylum Seekers - Unaccompanied,Client Transport,16Pluscare Support Solutions,608.43, 03-Feb-2020
10,Revenue,CAHD,CSC - Care Leavers Independent Living,Adults - Family Support,16Pluscare Support Solutions,7120.08, 12-Feb-2020
11,Revenue,CAHD,CSC - Care Leavers Independent Living,Independent Living,16Pluscare Support Solutions,7120.08, 04-Feb-2020
12,Revenue,CAHD,Central - Commissioned Services,Day Care / Social Activities,3 Trees Community Support Ltd,195.20, 06-Feb-2020
13,Revenue,CAHD,Central - Commissioned Services,Other Small Contracts,3 Trees Community Support Ltd,5165.44, 06-Feb-2020
14,Revenue,CAHD,Central - Commissioned Services,Supported Living,3 Trees Community Support Ltd,4829.36, 06-Feb-2020
15,Revenue,CAHD,North - Community based support,Day Care / Social Activities,3 Trees Community Support Ltd,683.20, 06-Feb-2020
16,Revenue,CAHD,Central - Commissioned Services,Day Care / Social Activities,3 Trees Community Support Ltd,195.20, 14-Feb-2020
17,Revenue,CAHD,Central - Commissioned Services,Other Small Contracts,3 Trees Community Support Ltd,5165.44, 14-Feb-2020
18,Revenue,CAHD,Central - Commissioned Services,Supported Living,3 Trees Community Support Ltd,4834.24, 14-Feb-2020
19,Revenue,CAHD,North - Community based support,Day Care / Social Activities,3 Trees Community Support Ltd,531.92, 14-Feb-2020
20,Revenue,CAHD,Central - Commissioned Services,Day Care / Social Activities,3 Trees Community Support Ltd,195.20, 19-Feb-2020
21,Revenue,CAHD,Central - Commissioned Services,Other Small Contracts,3 Trees Community Support Ltd,5165.44, 19-Feb-2020
22,Revenue,CAHD,Central - Commissioned Services,Supported Living,3 Trees Community Support Ltd,4822.03, 19-Feb-2020
23,Revenue,CAHD,North - Community based support,Day Care / Social Activities,3 Trees Community Support Ltd,683.20, 19-Feb-2020
24,Revenue,CAHD,Central - Commissioned Services,Day Care / Social Activities,3 Trees Community Support Ltd,195.20, 28-Feb-2020
25,Revenue,CAHD,Central - Commissioned Services,Other Small Contracts,3 Trees Community Support Ltd,5165.44, 28-Feb-2020
26,Revenue,CAHD,Central - Commissioned Services,Supported Living,3 Trees Community Support Ltd,4754.03, 28-Feb-2020
27,Revenue,CAHD,North - Community based support,Day Care / Social Activities,3 Trees Community Support Ltd,688.08, 28-Feb-2020
28,Revenue,CAHD,South - bed purchasing and direct  payments,Permanent Nursing,3Rd Floor  The Aspect,3267.66, 11-Feb-2020
29,Revenue,CAHD,South - Commissioned Services,Permanent Nursing,3Rd Floor  The Aspect,2287.36, 11-Feb-2020
30,Revenue,CAHD,South - Commissioned Services,Permanent Nursing,3Rd Floor  The Aspect,1143.68, 11-Feb-2020
31,Revenue,CAHD,South - S117,Permanent Nursing,3Rd Floor  The Aspect,2287.36, 11-Feb-2020
32,Revenue,CAHD,South - Commissioned Services,Permanent Nursing,3Rd Floor  The Aspect,3593.88, 11-Feb-2020
33,Revenue,CAHD,North - Community based support,Permanent Nursing,3Rd Floor  The Aspect,2287.36, 11-Feb-2020
34,Revenue,CAHD,North - Community based support,Permanent Nursing,3Rd Floor  The Aspect,3234.72, 11-Feb-2020
35,Revenue,CAHD,South - Commissioned Services,Permanent Nursing,3Rd Floor  The Aspect,2287.36, 11-Feb-2020
36,Revenue,CAHD,South - Commissioned Services,Permanent Residential,5Th Floor Harlech Court,16667.12, 11-Feb-2020
37,Revenue,CAHD,South - Commissioned Services,Permanent Residential,5Th Floor Harlech Court,10419.52, 11-Feb-2020
38,Revenue,CAHD,S28A cases,Permanent Residential,5Th Floor Harlech Court,10904.68, 11-Feb-2020
39,Revenue,CAHD,South - Commissioned Services,Permanent Residential,5Th Floor Harlech Court,11436.40, 11-Feb-2020
40,Revenue,CAHD,North - Community based support,Permanent Residential,5Th Floor Harlech Court,12498.56, 11-Feb-2020
41,Revenue,CAHD,North - Community based support,Permanent Residential,5Th Floor Harlech Court,3433.57, 11-Feb-2020
42,Revenue,CAHD,North - Community based support,Fees & Charges Income - General,5Th Floor Harlech Court,2094.97, 11-Feb-2020
43,Revenue,CAHD,North - Community based support,Permanent Residential,5Th Floor Harlech Court,10537.24, 11-Feb-2020
44,Revenue,CAHD,North - Community based support,Permanent Residential,5Th Floor Harlech Court,9071.12, 11-Feb-2020
45,Revenue,CAHD,Learning Difficulties Development Fund,Other Supplies & Services,A Clean Sweep Co-operative Ltd,2504.00, 06-Feb-2020
46,Revenue,CAHD,Early Years Development,Training Expenses,A+ Education,10404.38, 24-Feb-2020
47,Revenue,CAHD,CSC - Section 17 0-25,Preventative Assistance,A+bility Ltd,834.00, 04-Feb-2020
48,Revenue,CAHD,CSC - Section 17 0-25,Preventative Assistance,A+bility Ltd,834.00, 14-Feb-2020
49,Revenue,CAHD,Early Years Inclusion Fund,Other Public Bodies,Abacus @ Baileys Court Activity Centre,1000.00, 12-Feb-2020
50,Revenue,CAHD,Early Years Inclusion Fund,Other Public Bodies,Abbeywood Tots Day Nursery Ltd,650.00, 17-Feb-2020
51,Revenue,CAHD,Section 117 Placements MH Younger,Permanent Residential,Acorn Care Providers,6608.20, 11-Feb-2020
52,Revenue,CAHD,North - S117,Permanent Residential,Acorn Care Providers,3900.00, 11-Feb-2020
53,Revenue,CAHD,Jointly Funded H&SC Packages,Permanent Residential,Acorn Care Providers,2100.00, 11-Feb-2020
54,Revenue,CAHD,MH Purchasing - Younger,Permanent Residential,Acorn Care Providers,6144.00, 11-Feb-2020
55,Revenue,CAHD,Training - Adult Services,Training Expenses,Acorn Health & Safety Limited,477.00, 04-Feb-2020
56,Revenue,CAHD,Training - Adult Services,Training Expenses,Acorn Health & Safety Limited,437.00, 04-Feb-2020
57,Revenue,CAHD,Training - Adult Services,Training Expenses,Acorn Health & Safety Limited,477.00, 13-Feb-2020
58,Revenue,CAHD,Training Budget - Children`s Social Serv,Training Expenses,Acorn Health & Safety Limited,479.00, 13-Feb-2020
59,Revenue,CAHD,Training - Adult Services,Training Expenses,Acorn Health & Safety Limited,427.50, 20-Feb-2020
60,Revenue,CAHD,Training - Adult Services,Training Expenses,Acorn Health & Safety Limited,725.00, 25-Feb-2020
61,Revenue,CAHD,CSC - Agency Fostering,Foster Parent Allowances,Action for Children,6975.00, 14-Feb-2020
62,Revenue,CAHD,CSC - Agency Fostering,Foster Parent Allowances,Action for Children,3896.31, 14-Feb-2020
63,Revenue,CAHD,CSC - Agency Fostering,Foster Parent Allowances,Action for Children,3896.31, 14-Feb-2020
64,Revenue,CAHD,South - Commissioned Services,Supported Living,Action on Hearing Loss,750.40, 28-Feb-2020
65,Revenue,CAHD,South - Commissioned Services,Permanent Residential,Administration & Revenue Centre,3744.04, 11-Feb-2020
66,Revenue,CAHD,South - Commissioned Services,Permanent Nursing,Administration And Revenue Centre,2735.08, 11-Feb-2020
67,Revenue,CAHD,South Glos Users in South Glos Homes,Permanent Nursing,Administration And Revenue Centre,662.24, 11-Feb-2020
68,Revenue,CAHD,South - Commissioned Services,Permanent Nursing,Administration And Revenue Centre,2398.00, 11-Feb-2020
69,Revenue,CAHD,South - Commissioned Services,Permanent Nursing,Administration And Revenue Centre,2398.00, 11-Feb-2020
70,Revenue,CAHD,South Glos Users in South Glos Homes,Permanent Nursing,Administration And Revenue Centre,662.24, 11-Feb-2020
71,Revenue,CAHD,South - Commissioned Services,Permanent Nursing,Administration And Revenue Centre,2398.00, 11-Feb-2020
72,Revenue,CAHD,South Glos Users in South Glos Homes,Permanent Nursing,Administration And Revenue Centre,662.24, 11-Feb-2020
73,Revenue,CAHD,South - Commissioned Services,Permanent Residential,Administration And Revenue Centre,2462.56, 11-Feb-2020
74,Revenue,CAHD,South Glos Users in South Glos Homes,Permanent Nursing,Administration And Revenue Centre,662.24, 11-Feb-2020
75,Revenue,CAHD,North - Community based support,Permanent Nursing,Administration And Revenue Centre,2891.76, 11-Feb-2020
76,Revenue,CAHD,South Glos Users in South Glos Homes,Permanent Nursing,Administration And Revenue Centre,662.24, 11-Feb-2020
77,Revenue,CAHD,South - Commissioned Services,Permanent Nursing,Administration And Revenue Centre,2662.40, 11-Feb-2020
78,Revenue,CAHD,South Glos Users in South Glos Homes,Permanent Nursing,Administration And Revenue Centre,662.24, 11-Feb-2020
79,Revenue,CAHD,South - Commissioned Services,Permanent Nursing,Administration And Revenue Centre,2891.76, 11-Feb-2020
80,Revenue,CAHD,South - Commissioned Services,Permanent Nursing,Administration And Revenue Centre,2621.44, 11-Feb-2020
81,Revenue,CAHD,South Glos Users in South Glos Homes,Permanent Nursing,Administration And Revenue Centre,662.24, 11-Feb-2020
82,Revenue,CAHD,South Glos Users in South Glos Homes,Permanent Nursing,Administration And Revenue Centre,662.24, 11-Feb-2020
83,Revenue,CAHD,South Glos Users in South Glos Homes,Permanent Nursing,Administration And Revenue Centre,662.24, 11-Feb-2020
84,Revenue,CAHD,South - Commissioned Services,Permanent Nursing,Administration And Revenue Centre,2867.20, 11-Feb-2020
85,Revenue,CAHD,South - Commissioned Services,Respite Planned - Residential,Administration And Revenue Centre,6514.29, 11-Feb-2020
86,Revenue,CAHD,South - bed purchasing and direct  payments,Permanent Nursing,Administration And Revenue Centre,3160.00, 11-Feb-2020
87,Revenue,CAHD,South - bed purchasing and direct  payments,Fees & Charges Income - General,Administration And Revenue Centre,1260.81, 11-Feb-2020
88,Revenue,CAHD,South - Commissioned Services,Permanent Nursing,Administration And Revenue Centre,2462.56, 11-Feb-2020
89,Revenue,CAHD,South Glos Users in South Glos Homes,Permanent Nursing,Administration And Revenue Centre,662.24, 11-Feb-2020
90,Revenue,CAHD,South - Commissioned Services,Permanent Nursing,Administration And Revenue Centre,2398.00, 11-Feb-2020
91,Revenue,CAHD,South Glos Users in South Glos Homes,Permanent Nursing,Administration And Revenue Centre,662.24, 11-Feb-2020
92,Revenue,CAHD,South - Commissioned Services,Permanent Nursing,Administration And Revenue Centre,2398.00, 11-Feb-2020
93,Revenue,CAHD,South - S117,Permanent Residential,Administration And Revenue Centre,3128.00, 11-Feb-2020
94,Revenue,CAHD,South - Commissioned Services,Permanent Nursing,Administration And Revenue Centre,2398.00, 11-Feb-2020
95,Revenue,CAHD,South Glos Users in South Glos Homes,Permanent Nursing,Administration And Revenue Centre,662.24, 11-Feb-2020
96,Revenue,CAHD,South - Commissioned Services,Permanent Nursing,Administration And Revenue Centre,2933.00, 11-Feb-2020
97,Revenue,CAHD,North - Community based support,Permanent Residential,Administration And Revenue Centre,2891.76, 11-Feb-2020
98,Revenue,CAHD,South Glos Users in South Glos Homes,Permanent Nursing,Administration And Revenue Centre,662.24, 11-Feb-2020
99,Revenue,CAHD,North - Community based support,Permanent Nursing,Administration And Revenue Centre,2367.00, 11-Feb-2020
100,Revenue,CAHD,North - Community based support,Permanent Nursing,Admirals Reach Care Home,2662.24, 11-Feb-2020
101,Revenue,CAHD,CSC - Allowances,Membership Fees,Adoption West,20950.00, 14-Feb-2020
102,Revenue,CAHD,CSC - Adoption Support Fund,Recovery of Expenditure,Adoption West,144358.56, 14-Feb-2020
103,Revenue,CAHD,South - Commissioned Services,Other Small Contracts,Advantedge Commercial Finance Limited,2094.40, 13-Feb-2020
104,Revenue,CAHD,South - Commissioned Services,Other Small Contracts,Advantedge Commercial Finance Limited,623.56, 03-Feb-2020
105,Revenue,CAHD,South - Commissioned Services,Other Small Contracts,Advantedge Commercial Finance Limited,771.12, 07-Feb-2020
106,Revenue,CAHD,South - Commissioned Services,Other Small Contracts,Advantedge Commercial Finance Limited,790.16, 13-Feb-2020
107,Revenue,CAHD,Pathway 1 - Re-Ablement Home Care,Other Small Contracts,Advantedge Commercial Finance Limited,571.20, 24-Feb-2020
108,Revenue,CAHD,South - Commissioned Services,Other Small Contracts,Advantedge Commercial Finance Limited,1789.76, 03-Feb-2020
109,Revenue,CAHD,South - Commissioned Services,Day Care / Social Activities,Age Concern,634.24, 11-Feb-2020
110,Revenue,CAHD,South - Commissioned Services,Day Care / Social Activities,Age Concern,621.60, 11-Feb-2020
111,Revenue,CAHD,North - Community based support,Day Care / Social Activities,Age Concern,720.00, 11-Feb-2020
112,Revenue,CAHD,Central - Commissioned Services,Day Care / Social Activities,Age Concern,634.24, 11-Feb-2020
113,Revenue,CAHD,Central - Commissioned Services,Day Care / Social Activities,Age Concern,536.00, 11-Feb-2020
114,Revenue,CAHD,Central - Commissioned Services,Day Care / Social Activities,Age Concern,621.60, 11-Feb-2020
115,Revenue,CAHD,Central - Commissioned Services,Day Care / Social Activities,Age Concern,621.60, 11-Feb-2020
116,Revenue,CAHD,Extra Care Housing,Private & Voluntary Home Care,Agincare UK Limited,24391.34, 28-Feb-2020
117,Revenue,CAHD,Extra Care Housing,Private & Voluntary Home Care,Agincare UK Limited,11734.93, 28-Feb-2020
118,Revenue,CAHD,Extra Care Housing,Private & Voluntary Home Care,Agincare UK Limited,28508.53, 04-Feb-2020
119,Revenue,CAHD,Extra Care Housing,Private & Voluntary Home Care,Agincare UK Limited,819.18, 13-Feb-2020
120,Revenue,CAHD,18-25 Year Olds,Permanent Residential,Alexander House,12155.16, 11-Feb-2020
121,Revenue,CAHD,South - Commissioned Services,Other Small Contracts,AliMo Care Ltd,1118.52, 14-Feb-2020
122,Revenue,CAHD,North - Community based support,Other Small Contracts,AliMo Care Ltd,131.04, 14-Feb-2020
123,Revenue,CAHD,South - Commissioned Services,Other Small Contracts,AliMo Care Ltd,1085.76, 14-Feb-2020
124,Revenue,CAHD,North - Community based support,Other Small Contracts,AliMo Care Ltd,355.68, 14-Feb-2020
125,Revenue,CAHD,South - Commissioned Services,Other Small Contracts,AliMo Care Ltd,1127.88, 21-Feb-2020
126,Revenue,CAHD,North - Community based support,Other Small Contracts,AliMo Care Ltd,355.68, 21-Feb-2020
127,Revenue,CAHD,South - Commissioned Services,Other Small Contracts,AliMo Care Ltd,1057.68, 21-Feb-2020
128,Revenue,CAHD,North - Community based support,Other Small Contracts,AliMo Care Ltd,196.56, 21-Feb-2020
129,Revenue,CAHD,North - Community based support,Permanent Nursing,Allambie Court,2320.44, 11-Feb-2020
130,Revenue,CAHD,CSC - Vinney Green Secure Unit,Service Contracts (Premises),Allday Time Systems Limited,1021.50, 07-Feb-2020
131,Revenue,CAHD,Drug and Alcohol Programme,Other Small Contracts,Alveston Pharmacy,600.00, 13-Feb-2020
132,Revenue,CAHD,Central - Commissioned Services,Permanent Residential,Alvony House Residential Care Home,3000.00, 11-Feb-2020
133,Revenue,CAHD,North - bed purchasing and direct  payments,Respite Planned - Residential,Amber House,1032.19, 11-Feb-2020
134,Revenue,CAHD,CSC - Residential Placements,Permanent Residential,Amberleigh Care Ltd,17244.86, 03-Feb-2020
135,Revenue,CAHD,CSC - Residential Placements,Permanent Residential,Amberleigh Care Ltd,16132.29, 26-Feb-2020
136,Revenue,CAHD,CSC - Residential Placements,Permanent Residential,Amberleigh Care Ltd,16132.29, 25-Feb-2020
137,Revenue,CAHD,CSC - Residential Placements,Permanent Residential,Ambito Care and Education,20358.67, 10-Feb-2020
138,Revenue,CAHD,North - Community based support,Permanent Nursing,Amerind Grove Nursing Home,2706.32, 11-Feb-2020
139,Revenue,CAHD,CSC - Agency Fostering,Foster Parent Allowances,Amicus Foster Care Ltd,3262.44, 03-Feb-2020
140,Revenue,CAHD,CSC - Agency Fostering,Foster Parent Allowances,Amicus Foster Care Ltd,4879.00, 03-Feb-2020
141,Revenue,CAHD,CSC - Agency Fostering,Foster Parent Allowances,Amicus Foster Care Ltd,2275.92, 28-Feb-2020
142,Revenue,CAHD,Alexandra Way,Premises Maintenance by Contractor,Amy Flooring Limited,1429.00, 13-Feb-2020
143,Revenue,CAHD,EARLY YEARS DISABILITY  ACCES FUND,Preventative Assistance,Anchor Day Nursery Ltd,615.00, 07-Feb-2020
144,Revenue,CAHD,Supporting People Programme,Grants to Voluntary Bodies,Anchor Hanover Group,1039.00, 28-Feb-2020
145,Revenue,CAHD,Supporting People Programme,Grants to Voluntary Bodies,Anchor Hanover Group,847.00, 28-Feb-2020
146,Revenue,CAHD,CSC - Special Guardianship Orders,Special Payments,Individual,523.23, 21-Feb-2020
147,Revenue,CAHD,CSC - Vinney Green Secure Unit,External Lecturers Fees,Individual,850.00, 17-Feb-2020
148,Revenue,CAHD,"Strategy, Advice and Public Protection",Radio Pager/Mobile Phones,Applied Satellite Technology Systems Ltd,795.00, 14-Feb-2020
149,Revenue,CAHD,South - Commissioned Services,Permanent Residential,Ash View House,5421.04, 11-Feb-2020
150,Revenue,CAHD,Jointly Funded H&SC Packages,Permanent Residential,Ash View House,1111.40, 11-Feb-2020
151,Revenue,CAHD,S117 Placements PCT,Permanent Residential,Ash View House,7556.32, 11-Feb-2020
152,Revenue,CAHD,18-25 Year Olds,Permanent Residential,Ash View House,7099.52, 11-Feb-2020
153,Revenue,CAHD,North - Community based support,Permanent Residential,Ash View House,7120.00, 11-Feb-2020
154,Revenue,CAHD,Section 117 Placements MH Younger,Permanent Residential,Ash View House,4924.12, 11-Feb-2020
155,Revenue,CAHD,Jointly Funded H&SC Packages,Permanent Residential,Ash View House,2110.40, 11-Feb-2020
156,Revenue,CAHD,South - S117,Permanent Residential,Ash View House,6692.80, 11-Feb-2020
157,Revenue,CAHD,18-25 Year Olds,Permanent Residential,Ash View House,6615.52, 11-Feb-2020
158,Revenue,CAHD,CSC - Legal Fees,Legal Fees,Individual,500.00, 03-Feb-2020
159,Revenue,CAHD,North - Community based support,Permanent Residential,Aspects 2 Limited,7231.88, 11-Feb-2020
160,Revenue,CAHD,Supporting People Programme,Grants to Voluntary Bodies,Aspects and Milestones Trust,3441.00, 28-Feb-2020
161,Revenue,CAHD,Supporting People Programme,Grants to Voluntary Bodies,Aspects and Milestones Trust,1725.00, 28-Feb-2020
162,Revenue,CAHD,Training - Adult Services,Training Expenses,AssistKD,5200.00, 07-Feb-2020
163,Revenue,CAHD,South - bed purchasing and direct  payments,Adults - Family Support,Ategi Limited,17425.02, 12-Feb-2020
164,Revenue,CAHD,Independent Special Placements - Pre 16,Other Private Contractors,Aurora Care & Education,11850.00, 18-Feb-2020
165,Revenue,CAHD,Independent Special Placements - Pre 16,Other Private Contractors,Aurora Care & Education,19825.60, 18-Feb-2020
166,Revenue,CAHD,Independent Special Placements - Pre 16,Other Private Contractors,Aurora Hedgeway School,28971.67, 03-Feb-2020
167,Revenue,CAHD,South - Commissioned Services,Permanent Residential,Autism Specialised Care Homes,6506.88, 11-Feb-2020
168,Revenue,CAHD,CSC - Adoption Support Fund,Post Adoption,Individual,545.00, 03-Feb-2020
169,Revenue,CAHD,CSC - Therapeutic Foster Care Programm,Professional Fees,Avon & Wiltshire Mental Health,21564.00, 05-Feb-2020
170,Revenue,CAHD,CSC - Be Safe/Base,Project Funding,Avon & Wiltshire Mental Health,1470.00, 03-Feb-2020
171,Revenue,CAHD,Younger Adult Mental Health,Inter Directorate Recharges,Avon & Wiltshire Mental Health,16105.41, 18-Feb-2020
172,Revenue,CAHD,Younger Adult Mental Health,Health Services (Third Party Payments),Avon & Wiltshire Mental Health,1693.33, 12-Feb-2020
173,Revenue,CAHD,CSC - Therapeutic Foster Care Programm,Professional Fees,Avon & Wiltshire Mental Health,8086.50, 18-Feb-2020
174,Revenue,CAHD,South - Commissioned Services,Permanent Nursing,Avon Lodge Care Centre,4256.24, 11-Feb-2020
175,Revenue,CAHD,South Glos Users in South Glos Homes,Permanent Nursing,Avon Lodge Care Centre,662.24, 11-Feb-2020
176,Revenue,CAHD,South Glos Users in South Glos Homes,Permanent Nursing,Avon Lodge Care Centre,662.24, 11-Feb-2020
177,Revenue,CAHD,South - Commissioned Services,Permanent Nursing,Avon Lodge Care Centre,4537.76, 11-Feb-2020
178,Revenue,CAHD,South Glos Users in South Glos Homes,Permanent Nursing,Avon Lodge Care Centre,662.24, 11-Feb-2020
179,Revenue,CAHD,South Glos Users in South Glos Homes,Permanent Nursing,Avon Lodge Care Centre,662.24, 11-Feb-2020
180,Revenue,CAHD,South Glos Users in South Glos Homes,Permanent Nursing,Avon Lodge Care Centre,662.24, 11-Feb-2020
181,Revenue,CAHD,South - Commissioned Services,Permanent Nursing,Avon Lodge Care Centre,4226.64, 11-Feb-2020
182,Revenue,CAHD,South - Commissioned Services,Permanent Nursing,Avon Lodge Care Centre,3809.28, 11-Feb-2020
183,Revenue,CAHD,South Glos Users in South Glos Homes,Permanent Nursing,Avon Lodge Care Centre,662.24, 11-Feb-2020
184,Revenue,CAHD,South - Commissioned Services,Permanent Nursing,Avon Lodge Care Centre,4537.76, 11-Feb-2020
185,Revenue,CAHD,South Glos Users in South Glos Homes,Permanent Nursing,Avon Lodge Care Centre,662.24, 11-Feb-2020
186,Revenue,CAHD,South Glos Users in South Glos Homes,Permanent Nursing,Avon Lodge Care Centre,662.24, 11-Feb-2020
187,Revenue,CAHD,Central - Commissioned Services,Permanent Nursing,Avon Lodge Care Centre,4226.64, 11-Feb-2020
188,Revenue,CAHD,South Glos Users in South Glos Homes,Permanent Nursing,Avon Lodge Care Centre,662.24, 11-Feb-2020
189,Revenue,CAHD,South - Commissioned Services,Permanent Nursing,Avon Lodge Care Centre,4226.64, 11-Feb-2020
190,Revenue,CAHD,South Glos Users in South Glos Homes,Permanent Nursing,Avon Lodge Care Centre,662.24, 11-Feb-2020
191,Revenue,CAHD,South Glos Users in South Glos Homes,Permanent Nursing,Avon Lodge Care Centre,662.24, 11-Feb-2020
192,Revenue,CAHD,South - Commissioned Services,Permanent Nursing,Avon Lodge Care Centre,3380.60, 11-Feb-2020
193,Revenue,CAHD,South - Commissioned Services,Respite Planned - Nursing,Avon Lodge Care Centre,2111.32, 11-Feb-2020
194,Revenue,CAHD,South Glos Users in South Glos Homes,Permanent Nursing,Avon Lodge Care Centre,662.24, 11-Feb-2020
195,Revenue,CAHD,South - Commissioned Services,Respite Planned - Nursing,Avon Lodge Care Centre,4679.49, 11-Feb-2020
196,Revenue,CAHD,South - Commissioned Services,Permanent Nursing,Avon Lodge Care Centre,3380.60, 11-Feb-2020
197,Revenue,CAHD,South Glos Users in South Glos Homes,Permanent Nursing,Avon Lodge Care Centre,662.24, 11-Feb-2020
198,Revenue,CAHD,South - Commissioned Services,Permanent Nursing,Avon Lodge Care Centre,4226.64, 11-Feb-2020
199,Revenue,CAHD,South Glos Users in South Glos Homes,Permanent Nursing,Avon Lodge Care Centre,662.24, 11-Feb-2020
200,Revenue,CAHD,South - Commissioned Services,Permanent Nursing,Avon Lodge Care Centre,4537.76, 11-Feb-2020
201,Revenue,CAHD,South Glos Users in South Glos Homes,Permanent Nursing,Avon Lodge Care Centre,662.24, 11-Feb-2020
202,Revenue,CAHD,South - Commissioned Services,Permanent Nursing,Avon Lodge Care Centre,4226.64, 11-Feb-2020
203,Revenue,CAHD,South - Commissioned Services,Permanent Nursing,Avon Lodge Care Centre,3349.22, 11-Feb-2020
204,Revenue,CAHD,South - Commissioned Services,Permanent Nursing,Avon Lodge Care Centre,913.42, 11-Feb-2020
205,Revenue,CAHD,South - Commissioned Services,Permanent Nursing,Avon Lodge Care Centre,913.42, 11-Feb-2020
206,Revenue,CAHD,South Glos Users in South Glos Homes,Permanent Nursing,Avon Lodge Care Centre,662.24, 11-Feb-2020
207,Revenue,CAHD,South Glos Users in South Glos Homes,Permanent Nursing,Avon Lodge Care Centre,662.24, 11-Feb-2020
208,Revenue,CAHD,South - bed purchasing and direct  payments,Permanent Nursing,Avon Lodge Care Centre,1056.66, 11-Feb-2020
209,Revenue,CAHD,South - bed purchasing and direct  payments,Permanent Nursing,Avon Lodge Care Centre,603.81, 11-Feb-2020
210,Revenue,CAHD,South Glos Users in South Glos Homes,Permanent Nursing,Avon Lodge Care Centre,662.24, 11-Feb-2020
211,Revenue,CAHD,South Glos Users in South Glos Homes,Permanent Nursing,Avon Lodge Care Centre,662.24, 11-Feb-2020
212,Revenue,CAHD,South - Commissioned Services,Permanent Nursing,Avon Lodge Care Centre,4226.64, 11-Feb-2020
213,Revenue,CAHD,South Glos Users in South Glos Homes,Permanent Nursing,Avon Lodge Care Centre,662.24, 11-Feb-2020
214,Revenue,CAHD,South - Commissioned Services,Permanent Nursing,Avon Lodge Care Centre,4317.48, 11-Feb-2020
215,Revenue,CAHD,South Glos Users in South Glos Homes,Permanent Nursing,Avon Lodge Care Centre,662.24, 11-Feb-2020
216,Revenue,CAHD,South - Commissioned Services,Permanent Nursing,Avon Lodge Care Centre,4358.40, 11-Feb-2020
217,Revenue,CAHD,South Glos Users in South Glos Homes,Permanent Nursing,Avon Lodge Care Centre,662.24, 11-Feb-2020
218,Revenue,CAHD,South Glos Users in South Glos Homes,Permanent Nursing,Avon Lodge Care Centre,662.24, 11-Feb-2020
219,Revenue,CAHD,South - Commissioned Services,Permanent Nursing,Avon Lodge Care Centre,4226.64, 11-Feb-2020
220,Revenue,CAHD,South Glos Users in South Glos Homes,Permanent Nursing,Avon Lodge Care Centre,662.24, 11-Feb-2020
221,Revenue,CAHD,South - Commissioned Services,Permanent Nursing,Avon Lodge Care Centre,4501.40, 11-Feb-2020
222,Revenue,CAHD,South - Commissioned Services,Permanent Nursing,Avon Lodge Care Centre,4214.12, 11-Feb-2020
223,Revenue,CAHD,South Glos Users in South Glos Homes,Permanent Nursing,Avon Lodge Care Centre,662.24, 11-Feb-2020
224,Revenue,CAHD,South Glos Users in South Glos Homes,Permanent Nursing,Avon Lodge Care Centre,662.24, 11-Feb-2020
225,Revenue,CAHD,South Glos Users in South Glos Homes,Permanent Nursing,Avon Lodge Care Centre,662.24, 11-Feb-2020
226,Revenue,CAHD,South - Commissioned Services,Permanent Nursing,Avon Lodge Care Centre,4226.64, 11-Feb-2020
227,Revenue,CAHD,Central - Commissioned Services,Permanent Nursing,Avon Lodge Care Centre,3808.64, 11-Feb-2020
228,Revenue,CAHD,South Glos Users in South Glos Homes,Permanent Nursing,Avon Lodge Care Centre,662.24, 11-Feb-2020
229,Revenue,CAHD,South - Commissioned Services,Permanent Nursing,Avon Lodge Care Centre,4226.64, 11-Feb-2020
230,Revenue,CAHD,South Glos Users in South Glos Homes,Permanent Nursing,Avon Lodge Care Centre,662.24, 11-Feb-2020
231,Revenue,CAHD,South Glos Users in South Glos Homes,Permanent Nursing,Avon Lodge Care Centre,662.24, 11-Feb-2020
232,Revenue,CAHD,South - bed purchasing and direct  payments,Fees & Charges Income - General,Avon Lodge Care Centre,1259.52, 11-Feb-2020
233,Revenue,CAHD,South - bed purchasing and direct  payments,Permanent Nursing,Avon Lodge Care Centre,4226.64, 11-Feb-2020
234,Revenue,CAHD,South Glos Users in South Glos Homes,Permanent Nursing,Avon Lodge Care Centre,662.24, 11-Feb-2020
235,Revenue,CAHD,North - Community based support,Respite Planned - Nursing,Avon Lodge Care Centre,4226.64, 11-Feb-2020
236,Revenue,CAHD,North - Community based support,Permanent Nursing,Avon Lodge Care Centre,4226.64, 11-Feb-2020
237,Revenue,CAHD,South - Commissioned Services,Permanent Nursing,Avon Lodge Care Centre,4441.20, 11-Feb-2020
238,Revenue,CAHD,South Glos Users in South Glos Homes,Permanent Nursing,Avon Lodge Care Centre,662.24, 11-Feb-2020
239,Revenue,CAHD,South - S117,Permanent Nursing,Avon Lodge Care Centre,3809.28, 11-Feb-2020
240,Revenue,CAHD,South Glos Users in South Glos Homes,Permanent Nursing,Avon Lodge Care Centre,662.24, 11-Feb-2020
241,Revenue,CAHD,South Glos Users in South Glos Homes,Permanent Nursing,Avon Lodge Care Centre,662.24, 11-Feb-2020
242,Revenue,CAHD,South Glos Users in South Glos Homes,Permanent Nursing,Avon Lodge Care Centre,662.24, 11-Feb-2020
243,Revenue,CAHD,South Glos Users in South Glos Homes,Permanent Nursing,Avon Lodge Care Centre,662.24, 11-Feb-2020
244,Revenue,CAHD,South - Commissioned Services,Respite Planned - Residential,Avon Valley Care Home,1571.43, 11-Feb-2020
245,Revenue,CAHD,South - Commissioned Services,Permanent Residential,Avon Valley Care Home,18571.43, 11-Feb-2020
246,Revenue,CAHD,South - Commissioned Services,Permanent Residential,Avon Valley Care Home,4000.00, 11-Feb-2020
247,Revenue,CAHD,South - Commissioned Services,Permanent Residential,Avon Valley Care Home,3960.00, 11-Feb-2020
248,Revenue,CAHD,South - Commissioned Services,Permanent Residential,Avon Valley Care Home,4000.00, 11-Feb-2020
249,Revenue,CAHD,South - Commissioned Services,Permanent Residential,Avon Valley Care Home,4800.00, 11-Feb-2020
250,Revenue,CAHD,North - Community based support,Permanent Residential,Avonmere Care Home,4200.00, 11-Feb-2020
251,Revenue,CAHD,North - Community based support,Permanent Residential,Avonmere Care Home,4300.80, 11-Feb-2020
252,Revenue,CAHD,North - Community based support,Permanent Residential,Avonmere Care Home,5420.00, 11-Feb-2020
253,Revenue,CAHD,North - Community based support,Permanent Residential,Avonmere Care Home,4420.00, 11-Feb-2020
254,Revenue,CAHD,Central - Bed Purchasing and Direct Payments,Fees & Charges Income - General,Avonmere Care Home,2847.00, 11-Feb-2020
255,Revenue,CAHD,Early Years Inclusion Fund,Other Public Bodies,Baker Street Nursery & Pre-School,2650.00, 14-Feb-2020
256,Revenue,CAHD,CSC - Care Leavers Support Costs,Personal Needs of Clients,Barnardo Services Limited,2992.94, 04-Feb-2020
257,Revenue,CAHD,Childrens - Safeguarding Board,Training Expenses,Barnardo Services Limited,450.00, 14-Feb-2020
258,Revenue,CAHD,Children & Young People�s Health,Other Small Contracts,Barnardos,7650.00, 07-Feb-2020
259,Revenue,CAHD,CSC - Vinney Green Secure Unit,Educational Materials,Bath Potters Supplies Limited,2257.00, 18-Feb-2020
260,Revenue,CAHD,Training - Adult Services,Training Expenses,Bawa Healthcare & Leisure,3190.01, 04-Feb-2020
261,Revenue,CAHD,South Glos Users in South Glos Homes,Permanent Nursing,Beaufort Grange Care Home,662.24, 11-Feb-2020
262,Revenue,CAHD,South Glos Users in South Glos Homes,Permanent Nursing,Beaufort Grange Care Home,662.24, 11-Feb-2020
263,Revenue,CAHD,South Glos Users in South Glos Homes,Permanent Nursing,Beaufort Grange Care Home,662.24, 11-Feb-2020
264,Revenue,CAHD,South Glos Users in South Glos Homes,Permanent Nursing,Beaufort Grange Care Home,662.24, 11-Feb-2020
265,Revenue,CAHD,South Glos Users in South Glos Homes,Permanent Nursing,Beaufort Grange Care Home,662.24, 11-Feb-2020
266,Revenue,CAHD,South Glos Users in South Glos Homes,Permanent Nursing,Beaufort Grange Care Home,662.24, 11-Feb-2020
267,Revenue,CAHD,South Glos Users in South Glos Homes,Permanent Nursing,Beaufort Grange Care Home,662.24, 11-Feb-2020
268,Revenue,CAHD,South Glos Users in South Glos Homes,Permanent Nursing,Beaufort Grange Care Home,662.24, 11-Feb-2020
269,Revenue,CAHD,South Glos Users in South Glos Homes,Permanent Nursing,Beaufort Grange Care Home,662.24, 11-Feb-2020
270,Revenue,CAHD,South Glos Users in South Glos Homes,Permanent Nursing,Beaufort Grange Care Home,662.24, 11-Feb-2020
271,Revenue,CAHD,North - S117,Permanent Nursing,Beaufort Grange Care Home,4877.04, 11-Feb-2020
272,Revenue,CAHD,South Glos Users in South Glos Homes,Permanent Nursing,Beaufort Grange Care Home,662.24, 11-Feb-2020
273,Revenue,CAHD,South Glos Users in South Glos Homes,Permanent Nursing,Beaufort Grange Care Home,662.24, 11-Feb-2020
274,Revenue,CAHD,South Glos Users in South Glos Homes,Permanent Nursing,Beaufort Grange Care Home,662.24, 11-Feb-2020
275,Revenue,CAHD,South Glos Users in South Glos Homes,Permanent Nursing,Beaufort Grange Care Home,662.24, 11-Feb-2020
276,Revenue,CAHD,Central - Commissioned Services,Permanent Nursing,Beaufort Grange Care Home,4428.00, 11-Feb-2020
277,Revenue,CAHD,South Glos Users in South Glos Homes,Permanent Nursing,Beaufort Grange Care Home,662.24, 11-Feb-2020
278,Revenue,CAHD,South Glos Users in South Glos Homes,Permanent Nursing,Beaufort Grange Care Home,662.24, 11-Feb-2020
279,Revenue,CAHD,South Glos Users in South Glos Homes,Permanent Nursing,Beaufort Grange Care Home,662.24, 11-Feb-2020
280,Revenue,CAHD,North - S117,Permanent Nursing,Beaufort Grange Care Home,5005.76, 11-Feb-2020
281,Revenue,CAHD,South Glos Users in South Glos Homes,Permanent Nursing,Beaufort Grange Care Home,662.24, 11-Feb-2020
282,Revenue,CAHD,South Glos Users in South Glos Homes,Permanent Nursing,Beaufort Grange Care Home,662.24, 11-Feb-2020
283,Revenue,CAHD,South Glos Users in South Glos Homes,Permanent Nursing,Beaufort Grange Care Home,662.24, 11-Feb-2020
284,Revenue,CAHD,South Glos Users in South Glos Homes,Permanent Nursing,Beaufort Grange Care Home,662.24, 11-Feb-2020
285,Revenue,CAHD,South Glos Users in South Glos Homes,Permanent Nursing,Beaufort Grange Care Home,662.24, 11-Feb-2020
286,Revenue,CAHD,South Glos Users in South Glos Homes,Permanent Nursing,Beaufort Grange Care Home,662.24, 11-Feb-2020
287,Revenue,CAHD,South Glos Users in South Glos Homes,Permanent Nursing,Beaufort Grange Care Home,662.24, 11-Feb-2020
288,Revenue,CAHD,South Glos Users in South Glos Homes,Permanent Nursing,Beaufort Grange Care Home,662.24, 11-Feb-2020
289,Revenue,CAHD,South Glos Users in South Glos Homes,Permanent Nursing,Beaufort Grange Care Home,662.24, 11-Feb-2020
290,Revenue,CAHD,South Glos Users in South Glos Homes,Permanent Nursing,Beaufort Grange Care Home,662.24, 11-Feb-2020
291,Revenue,CAHD,South Glos Users in South Glos Homes,Permanent Nursing,Beaufort Grange Care Home,662.24, 11-Feb-2020
292,Revenue,CAHD,South Glos Users in South Glos Homes,Permanent Nursing,Beaufort Grange Care Home,662.24, 11-Feb-2020
293,Revenue,CAHD,South Glos Users in South Glos Homes,Permanent Nursing,Beaufort Grange Care Home,662.24, 11-Feb-2020
294,Revenue,CAHD,South Glos Users in South Glos Homes,Permanent Nursing,Beaufort Grange Care Home,662.24, 11-Feb-2020
295,Revenue,CAHD,South Glos Users in South Glos Homes,Permanent Nursing,Beaufort Grange Care Home,662.24, 11-Feb-2020
296,Revenue,CAHD,South Glos Users in South Glos Homes,Permanent Nursing,Beaufort Grange Care Home,662.24, 11-Feb-2020
297,Revenue,CAHD,South Glos Users in South Glos Homes,Permanent Nursing,Beaufort Grange Care Home,662.24, 11-Feb-2020
298,Revenue,CAHD,South Glos Users in South Glos Homes,Permanent Nursing,Beaufort Grange Care Home,662.24, 11-Feb-2020
299,Revenue,CAHD,South Glos Users in South Glos Homes,Permanent Nursing,Beaufort Grange Care Home,662.24, 11-Feb-2020
300,Revenue,CAHD,North - Community based support,Permanent Nursing,Beaufort Grange Care Home,5405.76, 11-Feb-2020
301,Revenue,CAHD,South Glos Users in South Glos Homes,Permanent Nursing,Beaufort Grange Care Home,662.24, 11-Feb-2020
302,Revenue,CAHD,North - Community based support,Permanent Residential,Beaufort House,2549.56, 11-Feb-2020
303,Revenue,CAHD,Central - Commissioned Services,Permanent Residential,Beaufort House,2867.20, 11-Feb-2020
304,Revenue,CAHD,Central - Commissioned Services,Permanent Residential,Beaufort House,2775.60, 11-Feb-2020
305,Revenue,CAHD,North - Community based support,Permanent Residential,Beaufort House,2571.40, 11-Feb-2020
306,Revenue,CAHD,South - Commissioned Services,Permanent Residential,Beaufort House,2536.84, 11-Feb-2020
307,Revenue,CAHD,Central - Bed Purchasing and Direct Payments,Permanent Residential,Beaufort House,34242.86, 11-Feb-2020
308,Revenue,CAHD,Central - Bed Purchasing and Direct Payments,Permanent Residential,Beaufort House,16271.43, 11-Feb-2020
309,Revenue,CAHD,Central - Commissioned Services,Permanent Residential,Beaufort House,3400.00, 11-Feb-2020
310,Revenue,CAHD,Central - Commissioned Services,Permanent Residential,Beaufort House,850.00, 11-Feb-2020
311,Revenue,CAHD,Central - Bed Purchasing and Direct Payments,Fees & Charges Income - General,Beaufort House,2647.65, 11-Feb-2020
312,Revenue,CAHD,Central - Bed Purchasing and Direct Payments,Fees & Charges Income - General,Beaufort House,2847.00, 11-Feb-2020
313,Revenue,CAHD,Central - Bed Purchasing and Direct Payments,Fees & Charges Income - General,Beaufort House,2787.00, 11-Feb-2020
314,Revenue,CAHD,South - Commissioned Services,Permanent Residential,Beaufort House,3400.00, 11-Feb-2020
315,Revenue,CAHD,North - Community based support,Permanent Residential,Beaufort House,2699.92, 11-Feb-2020
316,Revenue,CAHD,Central - Bed Purchasing and Direct Payments,Permanent Residential,Beaufort House,12628.57, 11-Feb-2020
317,Revenue,CAHD,Central - Commissioned Services,Permanent Residential,Beaufort House,3400.00, 11-Feb-2020
318,Revenue,CAHD,Central - Commissioned Services,Permanent Residential,Beaufort House,850.00, 11-Feb-2020
319,Revenue,CAHD,Central - Bed Purchasing and Direct Payments,Fees & Charges Income - General,Beaufort House,5192.08, 11-Feb-2020
320,Revenue,CAHD,Central - Bed Purchasing and Direct Payments,Permanent Residential,Beaufort House,6557.14, 11-Feb-2020
321,Revenue,CAHD,Central - Bed Purchasing and Direct Payments,Permanent Residential,Beaufort House,3400.00, 11-Feb-2020
322,Revenue,CAHD,Central - Bed Purchasing and Direct Payments,Fees & Charges Income - General,Beaufort House,1077.79, 11-Feb-2020
323,Revenue,CAHD,South - Commissioned Services,Permanent Residential,Beech House,2959.64, 11-Feb-2020
324,Revenue,CAHD,South Glos Users in South Glos Homes,Permanent Nursing,Beech House,662.24, 11-Feb-2020
325,Revenue,CAHD,South Glos Users in South Glos Homes,Permanent Nursing,Beech House,662.24, 11-Feb-2020
326,Revenue,CAHD,North - Community based support,Permanent Residential,Beech House,4180.00, 11-Feb-2020
327,Revenue,CAHD,North - Community based support,Permanent Residential,Beech House,3433.57, 11-Feb-2020
328,Revenue,CAHD,South Glos Users in South Glos Homes,Permanent Nursing,Beech House,662.24, 11-Feb-2020
329,Revenue,CAHD,South Glos Users in South Glos Homes,Permanent Nursing,Beech House,662.24, 11-Feb-2020
330,Revenue,CAHD,South Glos Users in South Glos Homes,Permanent Nursing,Beech House,662.24, 11-Feb-2020
331,Revenue,CAHD,South Glos Users in South Glos Homes,Permanent Nursing,Beech House,662.24, 11-Feb-2020
332,Revenue,CAHD,South Glos Users in South Glos Homes,Permanent Nursing,Beech House,662.24, 11-Feb-2020
333,Revenue,CAHD,North - Community based support,Permanent Nursing,Beech House,3547.76, 11-Feb-2020
334,Revenue,CAHD,South Glos Users in South Glos Homes,Permanent Nursing,Beech House,662.24, 11-Feb-2020
335,Revenue,CAHD,South Glos Users in South Glos Homes,Permanent Nursing,Beech House,662.24, 11-Feb-2020
336,Revenue,CAHD,South Glos Users in South Glos Homes,Permanent Nursing,Beech House,662.24, 11-Feb-2020
337,Revenue,CAHD,North - Community based support,Permanent Nursing,Beech House,4283.20, 11-Feb-2020
338,Revenue,CAHD,South Glos Users in South Glos Homes,Permanent Nursing,Beech House,662.24, 11-Feb-2020
339,Revenue,CAHD,South Glos Users in South Glos Homes,Permanent Nursing,Beech House,662.24, 11-Feb-2020
340,Revenue,CAHD,South Glos Users in South Glos Homes,Permanent Nursing,Beech House,662.24, 11-Feb-2020
341,Revenue,CAHD,South Glos Users in South Glos Homes,Permanent Nursing,Beech House,662.24, 11-Feb-2020
342,Revenue,CAHD,South Glos Users in South Glos Homes,Permanent Nursing,Beech House,662.24, 11-Feb-2020
343,Revenue,CAHD,North - Community based support,Permanent Nursing,Beech House,3993.60, 11-Feb-2020
344,Revenue,CAHD,South Glos Users in South Glos Homes,Permanent Nursing,Beech House,662.24, 11-Feb-2020
345,Revenue,CAHD,South Glos Users in South Glos Homes,Permanent Nursing,Beech House,662.24, 11-Feb-2020
346,Revenue,CAHD,South Glos Users in South Glos Homes,Permanent Nursing,Beech House,662.24, 11-Feb-2020
347,Revenue,CAHD,North - Community based support,Permanent Residential,Beech House,4075.52, 11-Feb-2020
348,Revenue,CAHD,South Glos Users in South Glos Homes,Permanent Nursing,Beech House,662.24, 11-Feb-2020
349,Revenue,CAHD,North - Community based support,Permanent Nursing,Beech House,4223.56, 11-Feb-2020
350,Revenue,CAHD,South Glos Users in South Glos Homes,Permanent Nursing,Beech House,662.24, 11-Feb-2020
351,Revenue,CAHD,South Glos Users in South Glos Homes,Permanent Nursing,Beech House,662.24, 11-Feb-2020
352,Revenue,CAHD,South Glos Users in South Glos Homes,Permanent Nursing,Beech House,662.24, 11-Feb-2020
353,Revenue,CAHD,North - bed purchasing and direct  payments,Permanent Nursing,Beech House,8200.00, 11-Feb-2020
354,Revenue,CAHD,North - bed purchasing and direct  payments,Permanent Nursing,Beech House,3514.29, 11-Feb-2020
355,Revenue,CAHD,South Glos Users in South Glos Homes,Permanent Nursing,Beech House,2152.28, 11-Feb-2020
356,Revenue,CAHD,North - Community based support,Permanent Nursing,Beech House,2635.71, 11-Feb-2020
357,Revenue,CAHD,North - bed purchasing and direct  payments,Fees & Charges Income - General,Beech House,1260.81, 11-Feb-2020
358,Revenue,CAHD,North - Community based support,Permanent Nursing,Beech House,1464.29, 11-Feb-2020
359,Revenue,CAHD,South Glos Users in South Glos Homes,Permanent Nursing,Beech House,662.24, 11-Feb-2020
360,Revenue,CAHD,North - bed purchasing and direct  payments,Permanent Nursing,Beech House,585.71, 11-Feb-2020
361,Revenue,CAHD,North - bed purchasing and direct  payments,Fees & Charges Income - General,Beech House,785.71, 11-Feb-2020
362,Revenue,CAHD,South Glos Users in South Glos Homes,Permanent Nursing,Beech House,662.24, 11-Feb-2020
363,Revenue,CAHD,South Glos Users in South Glos Homes,Permanent Nursing,Beech House,662.24, 11-Feb-2020
364,Revenue,CAHD,South Glos Users in South Glos Homes,Permanent Nursing,Beech House,662.24, 11-Feb-2020
365,Revenue,CAHD,North - Community based support,Permanent Residential,Beech House,4280.32, 11-Feb-2020
366,Revenue,CAHD,South Glos Users in South Glos Homes,Permanent Nursing,Beech House,662.24, 11-Feb-2020
367,Revenue,CAHD,South Glos Users in South Glos Homes,Permanent Nursing,Beechwood Care Home,1028.00, 11-Feb-2020
368,Revenue,CAHD,18-25 Year Olds,Permanent Residential,Beechwood Court,15254.92, 11-Feb-2020
369,Revenue,CAHD,South - S117,Permanent Residential,Bidna House,3692.64, 11-Feb-2020
370,Revenue,CAHD,Statemented Support Payments to OLAs,Other L.A.'s - General,Blaise High School,907.83, 25-Feb-2020
371,Revenue,CAHD,Central - Commissioned Services,Other Small Contracts,Blakehill Healthcare Ltd,2246.40, 06-Feb-2020
372,Revenue,CAHD,Central - Commissioned Services,Other Small Contracts,Blakehill Healthcare Ltd,5241.60, 05-Feb-2020
373,Revenue,CAHD,Central - Commissioned Services,Other Small Contracts,Blakehill Healthcare Ltd,637.50, 17-Feb-2020
374,Revenue,CAHD,Central - Commissioned Services,Other Small Contracts,Blakehill Healthcare Ltd,4711.30, 12-Feb-2020
375,Revenue,CAHD,Central - Commissioned Services,Other Small Contracts,Blakehill Healthcare Ltd,687.50, 12-Feb-2020
376,Revenue,CAHD,Central - Commissioned Services,Other Small Contracts,Blakehill Healthcare Ltd,1750.00, 17-Feb-2020
377,Revenue,CAHD,Central - Commissioned Services,Other Small Contracts,Blakehill Healthcare Ltd,3212.50, 12-Feb-2020
378,Revenue,CAHD,Central - Commissioned Services,Other Small Contracts,Blakehill Healthcare Ltd,1225.00, 12-Feb-2020
379,Revenue,CAHD,Central - Commissioned Services,Other Small Contracts,Blakehill Healthcare Ltd,1225.00, 12-Feb-2020
380,Revenue,CAHD,Central - Commissioned Services,Other Small Contracts,Blakehill Healthcare Ltd,525.00, 12-Feb-2020
381,Revenue,CAHD,Central - Commissioned Services,Other Small Contracts,Blakehill Healthcare Ltd,2500.00, 12-Feb-2020
382,Revenue,CAHD,Central - Commissioned Services,Other Small Contracts,Blakehill Healthcare Ltd,5241.60, 27-Feb-2020
383,Revenue,CAHD,Central - Commissioned Services,Other Small Contracts,Blakehill Healthcare Ltd,2037.25, 27-Feb-2020
384,Revenue,CAHD,South - Commissioned Services,Permanent Nursing,Blossom Field,4780.36, 11-Feb-2020
385,Revenue,CAHD,South Glos Users in South Glos Homes,Permanent Nursing,Blossom Field,662.24, 11-Feb-2020
386,Revenue,CAHD,South Glos Users in South Glos Homes,Permanent Nursing,Blossom Field,662.24, 11-Feb-2020
387,Revenue,CAHD,North - Community based support,Permanent Nursing,Blossom Field,4770.40, 11-Feb-2020
388,Revenue,CAHD,South Glos Users in South Glos Homes,Permanent Nursing,Blossom Field,662.24, 11-Feb-2020
389,Revenue,CAHD,South Glos Users in South Glos Homes,Permanent Nursing,Blossom Field,638.59, 11-Feb-2020
390,Revenue,CAHD,South Glos Users in South Glos Homes,Permanent Nursing,Blossom Field,662.24, 11-Feb-2020
391,Revenue,CAHD,North - Community based support,Permanent Nursing,Blossom Field,4267.44, 11-Feb-2020
392,Revenue,CAHD,South Glos Users in South Glos Homes,Permanent Nursing,Blossom Field,662.24, 11-Feb-2020
393,Revenue,CAHD,North - Community based support,Respite Emergency - Residential,Blossom Field,3394.29, 11-Feb-2020
394,Revenue,CAHD,North - Community based support,Respite Emergency - Residential,Blossom Field,2687.14, 11-Feb-2020
395,Revenue,CAHD,South Glos Users in South Glos Homes,Permanent Nursing,Blossom Field,567.63, 11-Feb-2020
396,Revenue,CAHD,North - Community based support,Permanent Nursing,Blossom Field,5000.00, 11-Feb-2020
397,Revenue,CAHD,South Glos Users in South Glos Homes,Permanent Nursing,Blossom Field,662.24, 11-Feb-2020
398,Revenue,CAHD,South Glos Users in South Glos Homes,Permanent Nursing,Blossom Field,662.24, 11-Feb-2020
399,Revenue,CAHD,South - Commissioned Services,Permanent Nursing,Blossom Field,4413.08, 11-Feb-2020
400,Revenue,CAHD,South Glos Users in South Glos Homes,Permanent Nursing,Blossom Field,662.24, 11-Feb-2020
401,Revenue,CAHD,North - Community based support,Permanent Nursing,Blossom Field,3533.92, 11-Feb-2020
402,Revenue,CAHD,South Glos Users in South Glos Homes,Permanent Nursing,Blossom Field,662.24, 11-Feb-2020
403,Revenue,CAHD,South Glos Users in South Glos Homes,Permanent Nursing,Blossom Field,1939.42, 11-Feb-2020
404,Revenue,CAHD,South Glos Users in South Glos Homes,Permanent Nursing,Blossom Field,662.24, 11-Feb-2020
405,Revenue,CAHD,North - Community based support,Permanent Nursing,Blossom Field,2404.29, 11-Feb-2020
406,Revenue,CAHD,North - Community based support,Permanent Nursing,Blossom Field,1555.71, 11-Feb-2020
407,Revenue,CAHD,North - Community based support,Permanent Nursing,Blossom Field,1555.71, 11-Feb-2020
408,Revenue,CAHD,North - Community based support,Permanent Nursing,Blossom Field,4799.88, 11-Feb-2020
409,Revenue,CAHD,South Glos Users in South Glos Homes,Permanent Nursing,Blossom Field,662.24, 11-Feb-2020
410,Revenue,CAHD,South Glos Users in South Glos Homes,Permanent Nursing,Blossom Field,662.24, 11-Feb-2020
411,Revenue,CAHD,North - Community based support,Permanent Nursing,Blossom Field,4800.00, 11-Feb-2020
412,Revenue,CAHD,South Glos Users in South Glos Homes,Permanent Nursing,Blossom Field,662.24, 11-Feb-2020
413,Revenue,CAHD,South Glos Users in South Glos Homes,Permanent Nursing,Blossom Field,662.24, 11-Feb-2020
414,Revenue,CAHD,South Glos Users in South Glos Homes,Permanent Nursing,Blossom Field,662.24, 11-Feb-2020
415,Revenue,CAHD,Central - Commissioned Services,Permanent Nursing,Blossom Field,4267.36, 11-Feb-2020
416,Revenue,CAHD,South Glos Users in South Glos Homes,Permanent Nursing,Blossom Field,662.24, 11-Feb-2020
417,Revenue,CAHD,South Glos Users in South Glos Homes,Permanent Nursing,Blossom Field,780.50, 11-Feb-2020
418,Revenue,CAHD,South - Commissioned Services,Respite Planned - Nursing,Blossom Field,3960.00, 11-Feb-2020
419,Revenue,CAHD,South - Commissioned Services,Respite Planned - Nursing,Blossom Field,1414.29, 11-Feb-2020
420,Revenue,CAHD,North - Community based support,Permanent Nursing,Blossom Field,4267.36, 11-Feb-2020
421,Revenue,CAHD,South Glos Users in South Glos Homes,Permanent Nursing,Blossom Field,662.24, 11-Feb-2020
422,Revenue,CAHD,South - Commissioned Services,Permanent Nursing,Blossom Field,3960.00, 11-Feb-2020
423,Revenue,CAHD,South - Commissioned Services,Permanent Nursing,Blossom Field,2828.57, 11-Feb-2020
424,Revenue,CAHD,South Glos Users in South Glos Homes,Permanent Nursing,Blossom Field,662.24, 11-Feb-2020
425,Revenue,CAHD,South Glos Users in South Glos Homes,Permanent Nursing,Blossom Field,1442.74, 11-Feb-2020
426,Revenue,CAHD,South Glos Users in South Glos Homes,Permanent Nursing,Blossom Field,662.24, 11-Feb-2020
427,Revenue,CAHD,South Glos Users in South Glos Homes,Permanent Nursing,Blossom Field,827.80, 11-Feb-2020
428,Revenue,CAHD,South Glos Users in South Glos Homes,Permanent Nursing,Blossom Field,662.24, 11-Feb-2020
429,Revenue,CAHD,Central - Commissioned Services,Respite Planned - Nursing,Blossom Field,4800.00, 11-Feb-2020
430,Revenue,CAHD,Central - Commissioned Services,Respite Planned - Nursing,Blossom Field,857.14, 11-Feb-2020
431,Revenue,CAHD,South Glos Users in South Glos Homes,Permanent Nursing,Blossom Field,662.24, 11-Feb-2020
432,Revenue,CAHD,South Glos Users in South Glos Homes,Permanent Nursing,Blossom Field,1442.74, 11-Feb-2020
433,Revenue,CAHD,South Glos Users in South Glos Homes,Permanent Nursing,Blossom Field,662.24, 11-Feb-2020
434,Revenue,CAHD,South Glos Users in South Glos Homes,Permanent Nursing,Blossom Field,2412.45, 11-Feb-2020
435,Revenue,CAHD,South Glos Users in South Glos Homes,Permanent Nursing,Blossom Field,662.24, 11-Feb-2020
436,Revenue,CAHD,North - Community based support,Permanent Nursing,Blossom Field,3634.96, 11-Feb-2020
437,Revenue,CAHD,South Glos Users in South Glos Homes,Permanent Nursing,Blossom Field,662.24, 11-Feb-2020
438,Revenue,CAHD,North - bed purchasing and direct  payments,Permanent Nursing,Blossom Field,3960.00, 11-Feb-2020
439,Revenue,CAHD,South Glos Users in South Glos Homes,Permanent Nursing,Blossom Field,1087.97, 11-Feb-2020
440,Revenue,CAHD,South Glos Users in South Glos Homes,Permanent Nursing,Blossom Field,662.24, 11-Feb-2020
441,Revenue,CAHD,North - Community based support,Permanent Residential,Bluebells,3699.60, 11-Feb-2020
442,Revenue,CAHD,Central - Commissioned Services,Other Small Contracts,Bluebird Care (South Gloucestershire),4264.55, 11-Feb-2020
443,Revenue,CAHD,South - Commissioned Services,Other Small Contracts,Bluebird Care (South Gloucestershire),1268.28, 11-Feb-2020
444,Revenue,CAHD,North - Community based support,Other Small Contracts,Bluebird Care (South Gloucestershire),4316.81, 11-Feb-2020
445,Revenue,CAHD,Central - Commissioned Services,Other Small Contracts,Bluebird Care (South Gloucestershire),4090.90, 20-Feb-2020
446,Revenue,CAHD,South - Commissioned Services,Other Small Contracts,Bluebird Care (South Gloucestershire),1447.34, 20-Feb-2020
447,Revenue,CAHD,North - Community based support,Other Small Contracts,Bluebird Care (South Gloucestershire),4097.93, 20-Feb-2020
448,Revenue,CAHD,Central - Commissioned Services,Other Small Contracts,Bluebird Care (South Gloucestershire),3909.70, 18-Feb-2020
449,Revenue,CAHD,South - Commissioned Services,Other Small Contracts,Bluebird Care (South Gloucestershire),1451.64, 18-Feb-2020
450,Revenue,CAHD,North - Community based support,Other Small Contracts,Bluebird Care (South Gloucestershire),4241.46, 18-Feb-2020
451,Revenue,CAHD,Central - Commissioned Services,Other Small Contracts,Bluebird Care (South Gloucestershire),3524.65, 18-Feb-2020
452,Revenue,CAHD,South - Commissioned Services,Other Small Contracts,Bluebird Care (South Gloucestershire),1509.88, 18-Feb-2020
453,Revenue,CAHD,North - Community based support,Other Small Contracts,Bluebird Care (South Gloucestershire),4226.21, 18-Feb-2020
454,Revenue,CAHD,Drug and Alcohol Programme,Other Small Contracts,Boots UK Ltd,1875.00, 13-Feb-2020
455,Revenue,CAHD,Drug and Alcohol Programme,Other Small Contracts,Boots UK Ltd,825.00, 13-Feb-2020
456,Revenue,CAHD,S28A cases,Permanent Residential,Bradbury House,6505.16, 11-Feb-2020
457,Revenue,CAHD,18-25 Year Olds,Permanent Residential,Bradbury House,9917.08, 11-Feb-2020
458,Revenue,CAHD,North - S117,Permanent Residential,Bradbury House,5740.24, 11-Feb-2020
459,Revenue,CAHD,Jointly Funded H&SC Packages,Permanent Residential,Bradbury House,7927.00, 11-Feb-2020
460,Revenue,CAHD,South - Commissioned Services,Permanent Residential,Bradbury House,9777.00, 11-Feb-2020
461,Revenue,CAHD,Sexual Health,Other Small Contracts,Bradley Stoke Surgery,1771.00, 14-Feb-2020
462,Revenue,CAHD,Drug and Alcohol Programme,Other Small Contracts,Bradley Stoke Surgery,1218.00, 13-Feb-2020
463,Revenue,CAHD,Sexual Health,Other Small Contracts,Bradley Stoke Surgery,2002.78, 14-Feb-2020
464,Revenue,CAHD,NHS Health Checks,Other Small Contracts,Bradley Stoke Surgery,2990.00, 14-Feb-2020
465,Revenue,CAHD,CSC - Residential Placements,Permanent Residential,Branas ISAF Ltd,21035.71, 13-Feb-2020
466,Revenue,CAHD,CSC - Residential Placements,Permanent Residential,Branas ISAF Ltd,19928.57, 13-Feb-2020
467,Revenue,CAHD,CSC - Residential Placements,Permanent Residential,Branas ISAF Ltd,20357.14, 28-Feb-2020
468,Revenue,CAHD,North - Community based support,Permanent Residential,Breadstone House Care Centre,2088.68, 11-Feb-2020
469,Revenue,CAHD,North - Community based support,Permanent Residential,Breadstone House Care Centre,2364.36, 11-Feb-2020
470,Revenue,CAHD,Social Lettings Agency,Fees - General,Individual,8.15, 03-Feb-2020
471,Revenue,CAHD,Social Lettings Agency,Other Supplies & Services,Individual,766.10, 03-Feb-2020
472,Revenue,CAHD,North - bed purchasing and direct  payments,Permanent Residential,Bridge House Care Home,2740.00, 11-Feb-2020
473,Revenue,CAHD,North - Community based support,Permanent Residential,Bridge House Care Home,2625.52, 11-Feb-2020
474,Revenue,CAHD,CSC - Vinney Green Secure Unit,Training Expenses,Bridgwater and Taunton College,10588.00, 28-Feb-2020
475,Revenue,CAHD,North - Community based support,Permanent Residential,Bridgwater Court Care Home,10773.64, 11-Feb-2020
476,Revenue,CAHD,North - Community based support,Day Care / Social Activities,Bristol City Council,2745.18, 04-Feb-2020
477,Revenue,CAHD,South - Commissioned Services,Day Care / Social Activities,Bristol City Council,2011.32, 04-Feb-2020
478,Revenue,CAHD,Transport OLA Special Schools and RB,Client Transport,Bristol City Council,5400.00, 04-Feb-2020
479,Revenue,CAHD,CSC - Access Response Team,Interpreting & Translation,Bristol City Council,517.65, 19-Feb-2020
480,Revenue,CAHD,North - Community based support,Day Care / Social Activities,Bristol City Council,1223.10, 25-Feb-2020
481,Revenue,CAHD,Central - Commissioned Services,Day Care / Social Activities,Bristol City Council,1304.64, 25-Feb-2020
482,Revenue,CAHD,Schools Specific Grant Income,Other Public Bodies,Bristol City Council,630.00, 18-Feb-2020
483,Revenue,CAHD,Placements OLA Special Schools and RB,Other L.A.'s - General,Bristol City Council - Schools,2578.00, 26-Feb-2020
484,Revenue,CAHD,Placements OLA Special Schools and RB,Other L.A.'s - General,Bristol City Council - Schools,1381.00, 26-Feb-2020
485,Revenue,CAHD,Statemented Support Payments to OLAs,Other L.A.'s - General,Bristol City Council - Schools,1379.43, 25-Feb-2020
486,Revenue,CAHD,Placements OLA Special Schools and RB,Other L.A.'s - General,Bristol City Council - Schools,914.33, 26-Feb-2020
487,Revenue,CAHD,Placements OLA Special Schools and RB,Other L.A.'s - General,Bristol City Council - Schools,1305.58, 26-Feb-2020
488,Revenue,CAHD,Statemented Support Payments to OLAs,Other L.A.'s - General,Bristol City Council - Schools,660.24, 25-Feb-2020
489,Revenue,CAHD,Placements OLA Special Schools and RB,Other L.A.'s - General,Bristol City Council - Schools,3356.33, 26-Feb-2020
490,Revenue,CAHD,Placements OLA Special Schools and RB,Other L.A.'s - General,Bristol City Council - Schools,2722.50, 26-Feb-2020
491,Revenue,CAHD,Placements OLA Special Schools and RB,Other L.A.'s - General,Bristol City Council - Schools,1275.67, 26-Feb-2020
492,Revenue,CAHD,Placements OLA Special Schools and RB,Other L.A.'s - General,Bristol City Council - Schools,2578.00, 26-Feb-2020
493,Revenue,CAHD,Placements OLA Special Schools and RB,Other L.A.'s - General,Bristol City Council - Schools,1381.00, 26-Feb-2020
494,Revenue,CAHD,Placements OLA Special Schools and RB,Other L.A.'s - General,Bristol City Council - Schools,2050.17, 26-Feb-2020
495,Revenue,CAHD,Placements OLA Special Schools and RB,Other L.A.'s - General,Bristol City Council - Schools,1381.00, 26-Feb-2020
496,Revenue,CAHD,Placements OLA Special Schools and RB,Other L.A.'s - General,Bristol City Council - Schools,1381.00, 26-Feb-2020
497,Revenue,CAHD,Placements OLA Special Schools and RB,Other L.A.'s - General,Bristol City Council - Schools,2050.17, 26-Feb-2020
498,Revenue,CAHD,Placements OLA Special Schools and RB,Other L.A.'s - General,Bristol City Council - Schools,1675.30, 26-Feb-2020
499,Revenue,CAHD,Placements OLA Special Schools and RB,Other L.A.'s - General,Bristol City Council - Schools,5445.00, 26-Feb-2020
500,Revenue,CAHD,Placements OLA Special Schools and RB,Other L.A.'s - General,Bristol City Council - Schools,809.00, 26-Feb-2020
501,Revenue,CAHD,Placements OLA Special Schools and RB,Other L.A.'s - General,Bristol City Council - Schools,883.50, 26-Feb-2020
502,Revenue,CAHD,Placements OLA Special Schools and RB,Other L.A.'s - General,Bristol City Council - Schools,4107.54, 26-Feb-2020
503,Revenue,CAHD,Placements OLA Special Schools and RB,Other L.A.'s - General,Bristol City Council - Schools,777.50, 26-Feb-2020
504,Revenue,CAHD,Placements OLA Special Schools and RB,Other L.A.'s - General,Bristol City Council - Schools,1031.20, 26-Feb-2020
505,Revenue,CAHD,Schools Specific Grant Income,Other Public Bodies,Bristol City Council - Schools,630.00, 14-Feb-2020
506,Revenue,CAHD,Placements OLA Special Schools and RB,Other L.A.'s - General,Bristol City Council - Schools,2783.92, 26-Feb-2020
507,Revenue,CAHD,Placements OLA Special Schools and RB,Other L.A.'s - General,Bristol City Council - Schools,2578.00, 26-Feb-2020
508,Revenue,CAHD,Placements OLA Special Schools and RB,Other L.A.'s - General,Bristol City Council - Schools,6150.51, 26-Feb-2020
509,Revenue,CAHD,Placements OLA Special Schools and RB,Other L.A.'s - General,Bristol City Council - Schools,809.00, 26-Feb-2020
510,Revenue,CAHD,Placements OLA Special Schools and RB,Other L.A.'s - General,Bristol City Council - Schools,4912.99, 26-Feb-2020
511,Revenue,CAHD,Placements OLA Special Schools and RB,Other L.A.'s - General,Bristol City Council - Schools,3405.92, 26-Feb-2020
512,Revenue,CAHD,Placements OLA Special Schools and RB,Other L.A.'s - General,Bristol City Council - Schools,2062.40, 26-Feb-2020
513,Revenue,CAHD,Placements OLA Special Schools and RB,Other L.A.'s - General,Bristol City Council - Schools,2578.00, 26-Feb-2020
514,Revenue,CAHD,Placements OLA Special Schools and RB,Other L.A.'s - General,Bristol City Council - Schools,2828.50, 26-Feb-2020
515,Revenue,CAHD,Placements OLA Special Schools and RB,Other L.A.'s - General,Bristol City Council - Schools,1305.58, 26-Feb-2020
516,Revenue,CAHD,18-25 Social Care 18-25 Support Team,Consultants Fees,Bristol Dyslexia Centre,550.00, 12-Feb-2020
517,Revenue,CAHD,SEN High Needs - Not at School Base,Other Private Contractors,Bristol Tuition Limited,608.00, 03-Feb-2020
518,Revenue,CAHD,SEN High Needs - Not at School Base,Other Private Contractors,Bristol Tuition Limited,1108.00, 17-Feb-2020
519,Revenue,CAHD,Statemented Support Payments to OLAs,Other L.A.'s - General,Broadlands Academy,1332.27, 25-Feb-2020
520,Revenue,CAHD,Supporting People Programme,Grants to Voluntary Bodies,Bromford  :  Merlin Housing Society,15637.00, 28-Feb-2020
521,Revenue,CAHD,Supporting People Programme,Grants to Voluntary Bodies,Bromford  :  Merlin Housing Society,2741.00, 28-Feb-2020
522,Revenue,CAHD,Supporting People Programme,Grants to Voluntary Bodies,Bromford  :  Merlin Housing Society,22424.00, 28-Feb-2020
523,Revenue,CAHD,Supporting People Programme,Grants to Voluntary Bodies,Bromford  :  Merlin Housing Society,1113.00, 28-Feb-2020
524,Revenue,CAHD,Parent Partnership,Fees - General,Browne Jacobson,5979.00, 27-Feb-2020
525,Revenue,CAHD,South Glos Users in South Glos Homes,Permanent Nursing,Brunelcare,733.19, 28-Feb-2020
526,Revenue,CAHD,South Glos Users in South Glos Homes,Permanent Nursing,Brunelcare,733.19, 28-Feb-2020
527,Revenue,CAHD,South Glos Users in South Glos Homes,Permanent Nursing,Brunelcare,733.19, 28-Feb-2020
528,Revenue,CAHD,South Glos Users in South Glos Homes,Permanent Nursing,Brunelcare,733.19, 28-Feb-2020
529,Revenue,CAHD,South Glos Users in South Glos Homes,Permanent Nursing,Brunelcare,733.19, 28-Feb-2020
530,Revenue,CAHD,South Glos Users in South Glos Homes,Permanent Nursing,Brunelcare,733.19, 28-Feb-2020
531,Revenue,CAHD,South Glos Users in South Glos Homes,Permanent Nursing,Brunelcare,733.19, 28-Feb-2020
532,Revenue,CAHD,South Glos Users in South Glos Homes,Permanent Nursing,Brunelcare,733.19, 28-Feb-2020
533,Revenue,CAHD,South Glos Users in South Glos Homes,Permanent Nursing,Brunelcare,733.19, 28-Feb-2020
534,Revenue,CAHD,South Glos Users in South Glos Homes,Permanent Nursing,Brunelcare,733.19, 28-Feb-2020
535,Revenue,CAHD,South Glos Users in South Glos Homes,Permanent Nursing,Brunelcare,733.19, 28-Feb-2020
536,Revenue,CAHD,South Glos Users in South Glos Homes,Permanent Nursing,Brunelcare,733.19, 28-Feb-2020
537,Revenue,CAHD,South Glos Users in South Glos Homes,Permanent Nursing,Brunelcare,685.89, 28-Feb-2020
538,Revenue,CAHD,South Glos Users in South Glos Homes,Permanent Nursing,Brunelcare,733.19, 28-Feb-2020
539,Revenue,CAHD,South - S117,Permanent Nursing,Brunelcare,3669.07, 28-Feb-2020
540,Revenue,CAHD,North - S117,Permanent Nursing,Brunelcare,3669.07, 28-Feb-2020
541,Revenue,CAHD,North - S117,Permanent Nursing,Brunelcare,3669.07, 28-Feb-2020
542,Revenue,CAHD,South - Commissioned Services,Permanent Nursing,Brunelcare,3669.07, 28-Feb-2020
543,Revenue,CAHD,South - Commissioned Services,Permanent Nursing,Brunelcare,2674.86, 28-Feb-2020
544,Revenue,CAHD,South - Commissioned Services,Permanent Nursing,Brunelcare,2831.98, 28-Feb-2020
545,Revenue,CAHD,South - Commissioned Services,Permanent Nursing,Brunelcare,2938.31, 28-Feb-2020
546,Revenue,CAHD,South - Commissioned Services,Permanent Nursing,Brunelcare,3056.38, 28-Feb-2020
547,Revenue,CAHD,South - Commissioned Services,Permanent Nursing,Brunelcare,2663.87, 28-Feb-2020
548,Revenue,CAHD,Enhanced Dementia Beds,Respite Planned - Nursing,Brunelcare,4375.43, 28-Feb-2020
549,Revenue,CAHD,South - Commissioned Services,Respite Planned - Nursing,Brunelcare,710.14, 28-Feb-2020
550,Revenue,CAHD,South - Commissioned Services,Respite Planned - Nursing,Brunelcare,2130.13, 28-Feb-2020
551,Revenue,CAHD,South - Commissioned Services,Respite Planned - Nursing,Brunelcare,568.03, 28-Feb-2020
552,Revenue,CAHD,North - Community based support,Permanent Nursing,Brunelcare,2945.09, 28-Feb-2020
553,Revenue,CAHD,North - Community based support,Permanent Nursing,Brunelcare,2938.49, 28-Feb-2020
554,Revenue,CAHD,North - Community based support,Permanent Nursing,Brunelcare,3669.07, 28-Feb-2020
555,Revenue,CAHD,Enhanced Dementia Beds,Respite Planned - Nursing,Brunelcare,4798.86, 28-Feb-2020
556,Revenue,CAHD,South Glos Users in South Glos Homes,Permanent Nursing,Brunelcare,1111.62, 28-Feb-2020
557,Revenue,CAHD,South Glos Users in South Glos Homes,Permanent Nursing,Brunelcare,6054.77, 28-Feb-2020
558,Revenue,CAHD,Central - Commissioned Services,Permanent Nursing,Brunelcare,3016.52, 28-Feb-2020
559,Revenue,CAHD,South - Commissioned Services,Respite Planned - Nursing,Brunelcare,710.14, 28-Feb-2020
560,Revenue,CAHD,South - Commissioned Services,Other Small Contracts,Brunelcare,15965.20, 20-Feb-2020
561,Revenue,CAHD,North - Community based support,Other Small Contracts,Brunelcare,282.02, 20-Feb-2020
562,Revenue,CAHD,South - Commissioned Services,Other Small Contracts,Brunelcare,19096.10, 06-Feb-2020
563,Revenue,CAHD,North - Community based support,Other Small Contracts,Brunelcare,301.14, 06-Feb-2020
564,Revenue,CAHD,Pathway 1 - Re-Ablement Home Care,Other Small Contracts,Brunelcare,521.02, 19-Feb-2020
565,Revenue,CAHD,Pathway 1 - Re-Ablement Home Care,Other Small Contracts,Brunelcare,544.92, 19-Feb-2020
566,Revenue,CAHD,Pathway 1 - Re-Ablement Home Care,Other Small Contracts,Brunelcare,511.46, 19-Feb-2020
567,Revenue,CAHD,Information Systems - Software,Computer Equipment - Purchase,BT Global Services Solutions,536.82, 20-Feb-2020
568,Revenue,CAHD,North - S117,Permanent Residential,Buckland Care,3600.00, 11-Feb-2020
569,Revenue,CAHD,CSC - Access Response Team,Training Expenses,BW Training & Coaching Ltd,2700.00, 27-Feb-2020
570,Revenue,CAHD,CSC - Vinney Green Secure Unit,R & M by Departments,BWS Standfast Fire & Security Systems,1559.50, 28-Feb-2020
571,Revenue,CAHD,Social Lettings Agency,Fees - General,Individual,16.16, 26-Feb-2020
572,Revenue,CAHD,Social Lettings Agency,Other Supplies & Services,Individual,710.96, 26-Feb-2020
573,Revenue,CAHD,Academy Resource Base Funding,Other Public Bodies,Cabot Learning Federation,5808.22, 28-Feb-2020
574,Revenue,CAHD,Academy Resource Base Funding,Other Public Bodies,Cabot Learning Federation,1639.34, 28-Feb-2020
575,Revenue,CAHD,Academy Resource Base Funding,Other Public Bodies,Cabot Learning Federation,1693.98, 28-Feb-2020
576,Revenue,CAHD,Statemented Support Payments to OLAs,Other L.A.'s - General,Cabot Learning Federation,1544.49, 25-Feb-2020
577,Revenue,CAHD,Schools Specific Grant Income,Other Public Bodies,Cabot Learning Federation,630.00, 14-Feb-2020
578,Revenue,CAHD,Academy Resource Base Funding,Other Public Bodies,Cabot Learning Federation,3387.96, 28-Feb-2020
579,Revenue,CAHD,Schools Specific Grant Income,Other Public Bodies,Cabot Learning Federation,630.00, 14-Feb-2020
580,Revenue,CAHD,Statemented Support Academies,Other Public Bodies,Cabot Learning Federation,918.71, 26-Feb-2020
581,Revenue,CAHD,Statemented Support Academies,Other Public Bodies,Cabot Learning Federation,1202.39, 26-Feb-2020
582,Revenue,CAHD,Statemented Support Academies,Other Public Bodies,Cabot Learning Federation,788.22, 26-Feb-2020
583,Revenue,CAHD,Statemented Support Academies,Other Public Bodies,Cabot Learning Federation,518.76, 26-Feb-2020
584,Revenue,CAHD,Statemented Support Academies,Other Public Bodies,Cabot Learning Federation,907.83, 26-Feb-2020
585,Revenue,CAHD,Statemented Support Academies,Other Public Bodies,Cabot Learning Federation,554.13, 26-Feb-2020
586,Revenue,CAHD,Statemented Support Academies,Other Public Bodies,Cabot Learning Federation,565.92, 26-Feb-2020
587,Revenue,CAHD,Statemented Support Academies,Other Public Bodies,Cabot Learning Federation,1048.67, 26-Feb-2020
588,Revenue,CAHD,Statemented Support Academies,Other Public Bodies,Cabot Learning Federation,2616.63, 26-Feb-2020
589,Revenue,CAHD,Schools Specific Grant Income,Other Public Bodies,Cabot Learning Federation,630.00, 14-Feb-2020
590,Revenue,CAHD,Academy Resource Base Funding,Other Public Bodies,Cabot Learning Federation,1588.75, 28-Feb-2020
591,Revenue,CAHD,Academy Resource Base Funding,Other Public Bodies,Cabot Learning Federation,1437.49, 28-Feb-2020
592,Revenue,CAHD,Academy Resource Base Funding,Other Public Bodies,Cabot Learning Federation,1437.49, 28-Feb-2020
593,Revenue,CAHD,Academy Resource Base Funding,Other Public Bodies,Cabot Learning Federation,1097.03, 28-Feb-2020
594,Revenue,CAHD,Academy Resource Base Funding,Other Public Bodies,Cabot Learning Federation,1588.75, 28-Feb-2020
595,Revenue,CAHD,Academy Resource Base Funding,Other Public Bodies,Cabot Learning Federation,1097.03, 28-Feb-2020
596,Revenue,CAHD,Academy Resource Base Funding,Other Public Bodies,Cabot Learning Federation,1097.03, 28-Feb-2020
597,Revenue,CAHD,Academy Resource Base Funding,Other Public Bodies,Cabot Learning Federation,605.19, 28-Feb-2020
598,Revenue,CAHD,Academy Resource Base Funding,Other Public Bodies,Cabot Learning Federation,1097.03, 28-Feb-2020
599,Revenue,CAHD,Academy Resource Base Funding,Other Public Bodies,Cabot Learning Federation,1097.03, 28-Feb-2020
600,Revenue,CAHD,Academy Resource Base Funding,Other Public Bodies,Cabot Learning Federation,1097.03, 28-Feb-2020
601,Revenue,CAHD,Academy Resource Base Funding,Other Public Bodies,Cabot Learning Federation,1097.03, 28-Feb-2020
602,Revenue,CAHD,Academy Resource Base Funding,Other Public Bodies,Cabot Learning Federation,1588.75, 28-Feb-2020
603,Revenue,CAHD,Academy Resource Base Funding,Other Public Bodies,Cabot Learning Federation,605.19, 28-Feb-2020
604,Revenue,CAHD,Academy Resource Base Funding,Other Public Bodies,Cabot Learning Federation,1437.49, 28-Feb-2020
605,Revenue,CAHD,Academy Resource Base Funding,Other Public Bodies,Cabot Learning Federation,1437.49, 28-Feb-2020
606,Revenue,CAHD,Academy Resource Base Funding,Other Public Bodies,Cabot Learning Federation,945.73, 28-Feb-2020
607,Revenue,CAHD,Academy Resource Base Funding,Other Public Bodies,Cabot Learning Federation,2042.67, 28-Feb-2020
608,Revenue,CAHD,Academy Resource Base Funding,Other Public Bodies,Cabot Learning Federation,4754.10, 28-Feb-2020
609,Revenue,CAHD,Statemented Support Payments to OLAs,Other L.A.'s - General,Cabot Learning Federation,1013.94, 25-Feb-2020
610,Revenue,CAHD,Statemented Support Academies,Other Public Bodies,Cabot Learning Federation,695.61, 26-Feb-2020
611,Revenue,CAHD,Statemented Support Academies,Other Public Bodies,Cabot Learning Federation,530.55, 26-Feb-2020
612,Revenue,CAHD,Statemented Support Academies,Other Public Bodies,Cabot Learning Federation,918.75, 26-Feb-2020
613,Revenue,CAHD,Statemented Support Academies,Other Public Bodies,Cabot Learning Federation,975.58, 26-Feb-2020
614,Revenue,CAHD,Schools Specific Grant Income,Other Public Bodies,Cabot Learning Federation,630.00, 14-Feb-2020
615,Revenue,CAHD,Statemented Support Payments to OLAs,Other L.A.'s - General,Cabot Learning Federation,872.46, 25-Feb-2020
616,Revenue,CAHD,Schools Specific Grant Income,Other Public Bodies,Cabot Learning Federation,630.00, 14-Feb-2020
617,Revenue,CAHD,Academy Resource Base Funding,Other Public Bodies,Cabot Learning Federation,5081.90, 28-Feb-2020
618,Revenue,CAHD,Schools Specific Grant Income,Other Public Bodies,Cabot Learning Federation,630.00, 14-Feb-2020
619,Revenue,CAHD,Statemented Support Academies,Other Public Bodies,Cabot Learning Federation,804.08, 26-Feb-2020
620,Revenue,CAHD,Statemented Support Academies,Other Public Bodies,Cabot Learning Federation,554.13, 26-Feb-2020
621,Revenue,CAHD,Statemented Support Academies,Other Public Bodies,Cabot Learning Federation,742.77, 26-Feb-2020
622,Revenue,CAHD,Statemented Support Academies,Other Public Bodies,Cabot Learning Federation,778.14, 26-Feb-2020
623,Revenue,CAHD,Statemented Support Academies,Other Public Bodies,Cabot Learning Federation,943.20, 26-Feb-2020
624,Revenue,CAHD,Statemented Support Academies,Other Public Bodies,Cabot Learning Federation,813.51, 26-Feb-2020
625,Revenue,CAHD,Schools Specific Grant Income,Other Public Bodies,Cabot Learning Federation,630.00, 14-Feb-2020
626,Revenue,CAHD,Academy Resource Base Funding,Other Public Bodies,Cabot Learning Federation,1693.98, 28-Feb-2020
627,Revenue,CAHD,Academy Resource Base Funding,Other Public Bodies,Cabot Learning Federation,1639.34, 28-Feb-2020
628,Revenue,CAHD,School Improvement and Support,Other Public Bodies,Cabot Learning Federation,565.00, 07-Feb-2020
629,Revenue,CAHD,Statemented Support Payments to OLAs,Other L.A.'s - General,Cabot Learning Federation,601.29, 25-Feb-2020
630,Revenue,CAHD,Statemented Support Academies,Other Public Bodies,Cabot Learning Federation,860.67, 26-Feb-2020
631,Revenue,CAHD,Statemented Support Academies,Other Public Bodies,Cabot Learning Federation,589.50, 26-Feb-2020
632,Revenue,CAHD,Statemented Support Academies,Other Public Bodies,Cabot Learning Federation,801.72, 26-Feb-2020
633,Revenue,CAHD,Statemented Support Academies,Other Public Bodies,Cabot Learning Federation,1096.47, 26-Feb-2020
634,Revenue,CAHD,Statemented Support Academies,Other Public Bodies,Cabot Learning Federation,730.98, 26-Feb-2020
635,Revenue,CAHD,Statemented Support Academies,Other Public Bodies,Cabot Learning Federation,907.83, 26-Feb-2020
636,Revenue,CAHD,Statemented Support Academies,Other Public Bodies,Cabot Learning Federation,530.55, 26-Feb-2020
637,Revenue,CAHD,Statemented Support Academies,Other Public Bodies,Cabot Learning Federation,907.83, 26-Feb-2020
638,Revenue,CAHD,Schools Specific Grant Income,Other Public Bodies,Cabot Learning Federation,630.00, 14-Feb-2020
639,Revenue,CAHD,Academy Resource Base Funding,Other Public Bodies,Cabot Learning Federation,1693.98, 28-Feb-2020
640,Revenue,CAHD,Schools Specific Grant Income,Other Public Bodies,Cabot Learning Federation,630.00, 14-Feb-2020
641,Revenue,CAHD,Schools Specific Grant Income,Other Public Bodies,Cabot Learning Federation,630.00, 14-Feb-2020
642,Revenue,CAHD,Academy Resource Base Funding,Other Public Bodies,Cabot Learning Federation,3278.68, 28-Feb-2020
643,Revenue,CAHD,Academy Resource Base Funding,Other Public Bodies,Cabot Learning Federation,3387.96, 28-Feb-2020
644,Revenue,CAHD,Schools Specific Grant Income,Other Public Bodies,Cabot Learning Federation,630.00, 14-Feb-2020
645,Revenue,CAHD,Academy Resource Base Funding,Other Public Bodies,Cabot Learning Federation,2459.01, 28-Feb-2020
646,Revenue,CAHD,Schools Specific Grant Income,Other Public Bodies,Cabot Learning Federation,630.00, 14-Feb-2020
647,Revenue,CAHD,Statemented Support Payments to OLAs,Other L.A.'s - General,Cabot Learning Federation,1072.89, 25-Feb-2020
648,Revenue,CAHD,Statemented Support Academies,Other Public Bodies,Cabot Learning Federation,1296.90, 26-Feb-2020
649,Revenue,CAHD,Statemented Support Academies,Other Public Bodies,Cabot Learning Federation,872.46, 26-Feb-2020
650,Revenue,CAHD,Sexual Health,Other Small Contracts,Cadbury Heath Healthcare,885.50, 14-Feb-2020
651,Revenue,CAHD,Drug and Alcohol Programme,Other Small Contracts,Cadbury Heath Healthcare,3146.50, 13-Feb-2020
652,Revenue,CAHD,Sexual Health,Other Small Contracts,Cadbury Heath Healthcare,1465.96, 14-Feb-2020
653,Revenue,CAHD,NHS Health Checks,Other Small Contracts,Cadbury Heath Healthcare,2415.00, 14-Feb-2020
654,Revenue,CAHD,North - Community based support,Permanent Nursing,Caernarvon House,3201.68, 11-Feb-2020
655,Revenue,CAHD,North - Community based support,Permanent Nursing,Caernarvon House,4800.00, 11-Feb-2020
656,Revenue,CAHD,North - Community based support,Permanent Nursing,Caernarvon House,4710.40, 11-Feb-2020
657,Revenue,CAHD,South - Commissioned Services,Permanent Nursing,Caernarvon House,4710.40, 11-Feb-2020
658,Revenue,CAHD,North - S117,Permanent Nursing,Caernarvon House,3990.24, 11-Feb-2020
659,Revenue,CAHD,South - Commissioned Services,Permanent Nursing,Caernarvon House,4915.20, 11-Feb-2020
660,Revenue,CAHD,North - bed purchasing and direct  payments,Fees & Charges Income - General,Caernarvon House,12445.08, 11-Feb-2020
661,Revenue,CAHD,North - bed purchasing and direct  payments,Permanent Nursing,Caernarvon House,4733.76, 11-Feb-2020
662,Revenue,CAHD,North - bed purchasing and direct  payments,Fees & Charges Income - General,Caernarvon House,1687.86, 11-Feb-2020
663,Revenue,CAHD,South - Commissioned Services,Permanent Nursing,Caernarvon House,4800.00, 11-Feb-2020
664,Revenue,CAHD,South - Commissioned Services,Permanent Nursing,Caernarvon House,4300.80, 11-Feb-2020
665,Revenue,CAHD,South - S117,Permanent Nursing,Caernarvon House,4915.20, 11-Feb-2020
666,Revenue,CAHD,North - Community based support,Permanent Nursing,Caernarvon House,4800.00, 11-Feb-2020
667,Revenue,CAHD,South - Commissioned Services,Permanent Nursing,Caernarvon House,7028.57, 11-Feb-2020
668,Revenue,CAHD,CAHC - Complaints & Advocacy Service,Complaints External Expenses,Individual,1063.03, 19-Feb-2020
669,Revenue,CAHD,CSC - Residential Placements,Permanent Residential,Cambian Childcare Ltd,18642.94, 26-Feb-2020
670,Revenue,CAHD,CSC - Residential Placements,Permanent Residential,Cambian Childcare Ltd,17814.41, 26-Feb-2020
671,Revenue,CAHD,CSC - Residential Placements,Permanent Residential,Cambian Childcare Ltd,21750.00, 26-Feb-2020
672,Revenue,CAHD,Post 16 High Needs Placements,Other Private Contractors,Cambian Whinfell School Limited,54446.36, 12-Feb-2020
673,Revenue,CAHD,Post 16 High Needs Placements,Other Private Contractors,Cambian Whinfell School Limited,60422.18, 12-Feb-2020
674,Revenue,CAHD,North - Community based support,Day Care / Social Activities,Camphill Communities Thornbury Limited,979.11, 14-Feb-2020
675,Revenue,CAHD,North - Community based support,Other Small Contracts,Camphill Communities Thornbury Limited,179.74, 14-Feb-2020
676,Revenue,CAHD,North - Community based support,Supported Living,Camphill Communities Thornbury Limited,742.61, 14-Feb-2020
677,Revenue,CAHD,North - Community based support,Day Care / Social Activities,Camphill Communities Thornbury Limited,988.57, 21-Feb-2020
678,Revenue,CAHD,North - Community based support,Other Small Contracts,Camphill Communities Thornbury Limited,170.28, 21-Feb-2020
679,Revenue,CAHD,North - Community based support,Supported Living,Camphill Communities Thornbury Limited,1073.71, 21-Feb-2020
680,Revenue,CAHD,North - Community based support,Day Care / Social Activities,Camphill Communities Thornbury Limited,1158.85, 28-Feb-2020
681,Revenue,CAHD,North - Community based support,Other Small Contracts,Camphill Communities Thornbury Limited,170.28, 28-Feb-2020
682,Revenue,CAHD,North - Community based support,Supported Living,Camphill Communities Thornbury Limited,1045.33, 28-Feb-2020
683,Revenue,CAHD,North - S117,Permanent Residential,Canjayor,3937.76, 11-Feb-2020
684,Revenue,CAHD,Central - Commissioned Services,Other Small Contracts,Care 1st Homecare,2929.92, 14-Feb-2020
685,Revenue,CAHD,Central - Commissioned Services,Other Small Contracts,Care 1st Homecare,2925.56, 28-Feb-2020
686,Revenue,CAHD,North - Community based support,Supported Living,Care Horizons,5328.72, 11-Feb-2020
687,Revenue,CAHD,North - Community based support,Supported Living,Care Horizons,5328.72, 11-Feb-2020
688,Revenue,CAHD,Central - Commissioned Services,Other Small Contracts,Care Horizons Limited,1391.04, 06-Feb-2020
689,Revenue,CAHD,South - Commissioned Services,Other Small Contracts,Care Horizons Limited,173.88, 06-Feb-2020
690,Revenue,CAHD,North - Community based support,Day Care / Social Activities,Care Horizons Limited,405.72, 06-Feb-2020
691,Revenue,CAHD,North - Community based support,Other Small Contracts,Care Horizons Limited,598.92, 06-Feb-2020
692,Revenue,CAHD,Younger MH non-res purchasing,Other Small Contracts,Care Horizons Limited,371.91, 06-Feb-2020
693,Revenue,CAHD,Central - Commissioned Services,Other Small Contracts,Care Horizons Limited,1415.19, 11-Feb-2020
694,Revenue,CAHD,South - Commissioned Services,Other Small Contracts,Care Horizons Limited,130.41, 11-Feb-2020
695,Revenue,CAHD,North - Community based support,Day Care / Social Activities,Care Horizons Limited,405.72, 11-Feb-2020
696,Revenue,CAHD,North - Community based support,Other Small Contracts,Care Horizons Limited,637.56, 11-Feb-2020
697,Revenue,CAHD,Younger MH non-res purchasing,Other Small Contracts,Care Horizons Limited,425.04, 11-Feb-2020
698,Revenue,CAHD,Central - Commissioned Services,Other Small Contracts,Care Horizons Limited,1366.89, 18-Feb-2020
699,Revenue,CAHD,South - Commissioned Services,Other Small Contracts,Care Horizons Limited,289.80, 18-Feb-2020
700,Revenue,CAHD,North - Community based support,Day Care / Social Activities,Care Horizons Limited,405.72, 18-Feb-2020
701,Revenue,CAHD,North - Community based support,Other Small Contracts,Care Horizons Limited,642.39, 18-Feb-2020
702,Revenue,CAHD,Younger MH non-res purchasing,Other Small Contracts,Care Horizons Limited,115.92, 18-Feb-2020
703,Revenue,CAHD,Younger MH non-res purchasing,Other Small Contracts,Care Horizons Limited,595.50, 04-Feb-2020
704,Revenue,CAHD,Younger MH non-res purchasing,Other Small Contracts,Care Horizons Limited,821.10, 21-Feb-2020
705,Revenue,CAHD,Younger MH non-res purchasing,Other Small Contracts,Care Horizons Limited,808.05, 03-Feb-2020
706,Revenue,CAHD,Younger MH non-res purchasing,Other Small Contracts,Care Horizons Limited,832.61, 03-Feb-2020
707,Revenue,CAHD,North - Community based support,Other Small Contracts,Carepride Ltd,908.04, 13-Feb-2020
708,Revenue,CAHD,Central - Commissioned Services,Other Small Contracts,Carepride Ltd,922.53, 18-Feb-2020
709,Revenue,CAHD,CSC - Care Leavers Independent Living,Independent Living,Caring for Communities and People,18512.30, 28-Feb-2020
710,Revenue,CAHD,Schools Specific Grant Income,Other Public Bodies,Castle School Education Trust,630.00, 14-Feb-2020
711,Revenue,CAHD,Schools Specific Grant Income,Other Public Bodies,Castle School Education Trust,630.00, 14-Feb-2020
712,Revenue,CAHD,Statemented Support Academies,Other Public Bodies,Castle School Education Trust,530.55, 26-Feb-2020
713,Revenue,CAHD,Statemented Support Academies,Other Public Bodies,Castle School Education Trust,565.92, 26-Feb-2020
714,Revenue,CAHD,Statemented Support Academies,Other Public Bodies,Castle School Education Trust,778.14, 26-Feb-2020
715,Revenue,CAHD,Statemented Support Academies,Other Public Bodies,Castle School Education Trust,931.41, 26-Feb-2020
716,Revenue,CAHD,Statemented Support Academies,Other Public Bodies,Castle School Education Trust,542.34, 26-Feb-2020
717,Revenue,CAHD,Statemented Support Academies,Other Public Bodies,Castle School Education Trust,672.03, 26-Feb-2020
718,Revenue,CAHD,Statemented Support Academies,Other Public Bodies,Castle School Education Trust,577.71, 26-Feb-2020
719,Revenue,CAHD,Statemented Support Academies,Other Public Bodies,Castle School Education Trust,505.08, 26-Feb-2020
720,Revenue,CAHD,Statemented Support Academies,Other Public Bodies,Castle School Education Trust,860.67, 26-Feb-2020
721,Revenue,CAHD,Statemented Support Academies,Other Public Bodies,Castle School Education Trust,1461.96, 26-Feb-2020
722,Revenue,CAHD,Statemented Support Academies,Other Public Bodies,Castle School Education Trust,860.67, 26-Feb-2020
723,Revenue,CAHD,Statemented Support Academies,Other Public Bodies,Castle School Education Trust,1002.15, 26-Feb-2020
724,Revenue,CAHD,Statemented Support Academies,Other Public Bodies,Castle School Education Trust,613.08, 26-Feb-2020
725,Revenue,CAHD,Statemented Support Academies,Other Public Bodies,Castle School Education Trust,672.03, 26-Feb-2020
726,Revenue,CAHD,Statemented Support Academies,Other Public Bodies,Castle School Education Trust,1120.05, 26-Feb-2020
727,Revenue,CAHD,Statemented Support Academies,Other Public Bodies,Castle School Education Trust,636.66, 26-Feb-2020
728,Revenue,CAHD,Statemented Support Academies,Other Public Bodies,Castle School Education Trust,589.50, 26-Feb-2020
729,Revenue,CAHD,Statemented Support Academies,Other Public Bodies,Castle School Education Trust,954.99, 26-Feb-2020
730,Revenue,CAHD,Statemented Support Academies,Other Public Bodies,Castle School Education Trust,577.71, 26-Feb-2020
731,Revenue,CAHD,Statemented Support Academies,Other Public Bodies,Castle School Education Trust,624.87, 26-Feb-2020
732,Revenue,CAHD,Statemented Support Academies,Other Public Bodies,Castle School Education Trust,825.30, 26-Feb-2020
733,Revenue,CAHD,Statemented Support Academies,Other Public Bodies,Castle School Education Trust,1190.79, 26-Feb-2020
734,Revenue,CAHD,Statemented Support Academies,Other Public Bodies,Castle School Education Trust,848.88, 26-Feb-2020
735,Revenue,CAHD,Statemented Support Academies,Other Public Bodies,Castle School Education Trust,1237.95, 26-Feb-2020
736,Revenue,CAHD,Statemented Support Academies,Other Public Bodies,Castle School Education Trust,1061.10, 26-Feb-2020
737,Revenue,CAHD,Statemented Support Academies,Other Public Bodies,Castle School Education Trust,518.76, 26-Feb-2020
738,Revenue,CAHD,Statemented Support Academies,Other Public Bodies,Castle School Education Trust,577.71, 26-Feb-2020
739,Revenue,CAHD,Statemented Support Academies,Other Public Bodies,Castle School Education Trust,1143.63, 26-Feb-2020
740,Revenue,CAHD,Statemented Support Academies,Other Public Bodies,Castle School Education Trust,1072.89, 26-Feb-2020
741,Revenue,CAHD,Statemented Support Academies,Other Public Bodies,Castle School Education Trust,1485.54, 26-Feb-2020
742,Revenue,CAHD,School Improvement and Support,Other Public Bodies,Castle School Education Trust,565.00, 07-Feb-2020
743,Revenue,CAHD,Academy Resource Base Funding,Other Public Bodies,Castle School Education Trust,1588.75, 28-Feb-2020
744,Revenue,CAHD,Academy Resource Base Funding,Other Public Bodies,Castle School Education Trust,1588.75, 28-Feb-2020
745,Revenue,CAHD,Academy Resource Base Funding,Other Public Bodies,Castle School Education Trust,1588.75, 28-Feb-2020
746,Revenue,CAHD,Academy Resource Base Funding,Other Public Bodies,Castle School Education Trust,1588.75, 28-Feb-2020
747,Revenue,CAHD,Academy Resource Base Funding,Other Public Bodies,Castle School Education Trust,1588.75, 28-Feb-2020
748,Revenue,CAHD,Academy Resource Base Funding,Other Public Bodies,Castle School Education Trust,1588.75, 28-Feb-2020
749,Revenue,CAHD,Academy Resource Base Funding,Other Public Bodies,Castle School Education Trust,1588.75, 28-Feb-2020
750,Revenue,CAHD,Academy Resource Base Funding,Other Public Bodies,Castle School Education Trust,1588.75, 28-Feb-2020
751,Revenue,CAHD,Academy Resource Base Funding,Other Public Bodies,Castle School Education Trust,1588.75, 28-Feb-2020
752,Revenue,CAHD,Schools Specific Grant Income,Other Public Bodies,Castle School Education Trust,630.00, 14-Feb-2020
753,Revenue,CAHD,Schools Specific Grant Income,Other Public Bodies,Castle School Education Trust,630.00, 14-Feb-2020
754,Revenue,CAHD,Schools Specific Grant Income,Other Public Bodies,Castle School Education Trust,630.00, 14-Feb-2020
755,Revenue,CAHD,Schools Specific Grant Income,Other Public Bodies,Castle School Education Trust,630.00, 14-Feb-2020
756,Revenue,CAHD,Schools Specific Grant Income,Other Public Bodies,Castle School Education Trust,630.00, 14-Feb-2020
757,Revenue,CAHD,Schools Specific Grant Income,Other Public Bodies,Castle School Education Trust,630.00, 14-Feb-2020
758,Revenue,CAHD,Statemented Support Academies,Other Public Bodies,Castle School Education Trust,1322.75, 26-Feb-2020
759,Revenue,CAHD,Statemented Support Academies,Other Public Bodies,Castle School Education Trust,943.17, 26-Feb-2020
760,Revenue,CAHD,Statemented Support Academies,Other Public Bodies,Castle School Education Trust,1267.50, 26-Feb-2020
761,Revenue,CAHD,Statemented Support Academies,Other Public Bodies,Castle School Education Trust,672.03, 26-Feb-2020
762,Revenue,CAHD,Statemented Support Academies,Other Public Bodies,Castle School Education Trust,872.46, 26-Feb-2020
763,Revenue,CAHD,Statemented Support Academies,Other Public Bodies,Castle School Education Trust,848.88, 26-Feb-2020
764,Revenue,CAHD,Statemented Support Academies,Other Public Bodies,Castle School Education Trust,1556.28, 26-Feb-2020
765,Revenue,CAHD,Statemented Support Academies,Other Public Bodies,Castle School Education Trust,1025.73, 26-Feb-2020
766,Revenue,CAHD,Schools Specific Grant Income,Other Public Bodies,Castle School Education Trust,630.00, 14-Feb-2020
767,Revenue,CAHD,Schools Specific Grant Income,Other Public Bodies,Castle School Education Trust,630.00, 14-Feb-2020
768,Revenue,CAHD,Statemented Support Academies,Other Public Bodies,Castle School Education Trust,630.58, 26-Feb-2020
769,Revenue,CAHD,Statemented Support Academies,Other Public Bodies,Castle School Education Trust,778.14, 26-Feb-2020
770,Revenue,CAHD,Statemented Support Academies,Other Public Bodies,Castle School Education Trust,613.08, 26-Feb-2020
771,Revenue,CAHD,Schools Specific Grant Income,Other Public Bodies,Castle School Education Trust,630.00, 14-Feb-2020
772,Revenue,CAHD,Schools Specific Grant Income,Other Public Bodies,Castle School Educational Turust,630.00, 14-Feb-2020
773,Revenue,CAHD,Schools Specific Grant Income,Other Public Bodies,Castle School Educational Turust,630.00, 14-Feb-2020
774,Revenue,CAHD,Schools Specific Grant Income,Other Public Bodies,Castle School Educational Turust,630.00, 14-Feb-2020
775,Revenue,CAHD,Schools Specific Grant Income,Other Public Bodies,Castle School Educational Turust,630.00, 14-Feb-2020
776,Revenue,CAHD,Statemented Support Academies,Other Public Bodies,Castle School Educational Turust,1148.20, 26-Feb-2020
777,Revenue,CAHD,Statemented Support Academies,Other Public Bodies,Castle School Educational Turust,1497.33, 26-Feb-2020
778,Revenue,CAHD,South Glos Alternative Provision,Fees & Charges Income - General,Castle School Educational Turust,11570.56, 04-Feb-2020
779,Revenue,CAHD,Social Lettings Agency,Fees - General,Individual,10.53, 28-Feb-2020
780,Revenue,CAHD,Social Lettings Agency,Fees & Charges Income - General,Individual,595.11, 28-Feb-2020
781,Revenue,CAHD,North - Community based support,Day Care / Social Activities,Causeway House,2133.96, 11-Feb-2020
782,Revenue,CAHD,Central - Commissioned Services,Day Care / Social Activities,Causeway House,1136.76, 11-Feb-2020
783,Revenue,CAHD,South - Commissioned Services,Day Care / Social Activities,Causeway House,5253.12, 11-Feb-2020
784,Revenue,CAHD,18-25 Year Olds,Day Care / Social Activities,Causeway House,1418.72, 11-Feb-2020
785,Revenue,CAHD,18-25 Year Olds,Day Care / Social Activities,Causeway House,4414.64, 11-Feb-2020
786,Revenue,CAHD,Central - Commissioned Services,Day Care / Social Activities,Causeway House,2699.52, 11-Feb-2020
787,Revenue,CAHD,Central - Commissioned Services,Day Care / Social Activities,Causeway House,3891.60, 11-Feb-2020
788,Revenue,CAHD,Central - Commissioned Services,Day Care / Social Activities,Causeway House,1704.96, 11-Feb-2020
789,Revenue,CAHD,North - Community based support,Day Care / Social Activities,Causeway House,3226.20, 11-Feb-2020
790,Revenue,CAHD,North - Community based support,Day Care / Social Activities,Causeway House,4806.44, 11-Feb-2020
791,Revenue,CAHD,Central - Commissioned Services,Day Care / Social Activities,Causeway House,3652.12, 11-Feb-2020
792,Revenue,CAHD,North - Community based support,Day Care / Social Activities,Causeway House,3149.08, 11-Feb-2020
793,Revenue,CAHD,North - Community based support,Day Care / Social Activities,Causeway House,568.32, 11-Feb-2020
794,Revenue,CAHD,Training - Adult Services,Training Expenses,Central Consultancy & Training,1710.00, 26-Feb-2020
795,Revenue,CAHD,South - Commissioned Services,Permanent Residential,Challenge House,2834.44, 11-Feb-2020
796,Revenue,CAHD,North - S117,Permanent Residential,Challenge House,2571.40, 11-Feb-2020
797,Revenue,CAHD,Central - Bed Purchasing and Direct Payments,Respite Planned - Residential,Challenge House,2800.00, 11-Feb-2020
798,Revenue,CAHD,Central - Bed Purchasing and Direct Payments,Respite Planned - Residential,Challenge House,2800.00, 11-Feb-2020
799,Revenue,CAHD,North - Community based support,Permanent Residential,Challenge House,2233.00, 11-Feb-2020
800,Revenue,CAHD,Central - Commissioned Services,Permanent Residential,Challenge House,2365.60, 11-Feb-2020
801,Revenue,CAHD,Central - Commissioned Services,Permanent Residential,Challenge House,2363.40, 11-Feb-2020
802,Revenue,CAHD,North - Community based support,Permanent Residential,Challenge House,2363.40, 11-Feb-2020
803,Revenue,CAHD,North - Community based support,Respite Planned - Residential,Challenge House,2720.00, 11-Feb-2020
804,Revenue,CAHD,North - Community based support,Respite Planned - Residential,Challenge House,1165.71, 11-Feb-2020
805,Revenue,CAHD,North - Community based support,Permanent Residential,Challenge House,2834.40, 11-Feb-2020
806,Revenue,CAHD,North - Community based support,Permanent Nursing,Challenge House,3130.36, 11-Feb-2020
807,Revenue,CAHD,North - S117,Permanent Nursing,Challenge House,2395.80, 11-Feb-2020
808,Revenue,CAHD,Central - Commissioned Services,Permanent Nursing,Challenge House,3056.00, 11-Feb-2020
809,Revenue,CAHD,South Glos Users in South Glos Homes,Permanent Nursing,Challenge House,4446.47, 11-Feb-2020
810,Revenue,CAHD,North - Community based support,Permanent Nursing,Challenge House,2571.40, 11-Feb-2020
811,Revenue,CAHD,South Glos Users in South Glos Homes,Permanent Nursing,Challenge House,662.24, 11-Feb-2020
812,Revenue,CAHD,Central - Commissioned Services,Respite Planned - Residential,Challenge House,607.14, 11-Feb-2020
813,Revenue,CAHD,North - Community based support,Permanent Nursing,Challenge House,2395.80, 11-Feb-2020
814,Revenue,CAHD,North - Community based support,Permanent Nursing,Challenge House,3130.36, 11-Feb-2020
815,Revenue,CAHD,North - Community based support,Respite Planned - Nursing,Challenge House,3000.00, 11-Feb-2020
816,Revenue,CAHD,South Glos Users in South Glos Homes,Permanent Nursing,Challenge House,662.24, 11-Feb-2020
817,Revenue,CAHD,North - Community based support,Day Care / Social Activities,Challenge House,2012.08, 11-Feb-2020
818,Revenue,CAHD,North - Community based support,Permanent Nursing,Challenge House,3000.00, 11-Feb-2020
819,Revenue,CAHD,North - Community based support,Permanent Nursing,Challenge House,2785.71, 11-Feb-2020
820,Revenue,CAHD,South - Commissioned Services,Permanent Nursing,Challenge House,2884.20, 11-Feb-2020
821,Revenue,CAHD,South Glos Users in South Glos Homes,Permanent Nursing,Challenge House,662.24, 11-Feb-2020
822,Revenue,CAHD,North - Community based support,Permanent Nursing,Challenge House,3335.08, 11-Feb-2020
823,Revenue,CAHD,South Glos Users in South Glos Homes,Permanent Nursing,Challenge House,662.24, 11-Feb-2020
824,Revenue,CAHD,North - Community based support,Permanent Nursing,Challenge House,3208.48, 11-Feb-2020
825,Revenue,CAHD,South Glos Users in South Glos Homes,Permanent Nursing,Challenge House,662.24, 11-Feb-2020
826,Revenue,CAHD,South Glos Users in South Glos Homes,Permanent Nursing,Challenge House,662.24, 11-Feb-2020
827,Revenue,CAHD,North - Community based support,Permanent Nursing,Challenge House,3338.84, 11-Feb-2020
828,Revenue,CAHD,South Glos Users in South Glos Homes,Permanent Nursing,Challenge House,662.24, 11-Feb-2020
829,Revenue,CAHD,South - Commissioned Services,Permanent Nursing,Challenge House,3000.00, 11-Feb-2020
830,Revenue,CAHD,South Glos Users in South Glos Homes,Permanent Nursing,Challenge House,662.24, 11-Feb-2020
831,Revenue,CAHD,South - Commissioned Services,Permanent Residential,Challenge House,3000.00, 11-Feb-2020
832,Revenue,CAHD,South Glos Users in South Glos Homes,Permanent Nursing,Challenge House,662.24, 11-Feb-2020
833,Revenue,CAHD,Central - Commissioned Services,Permanent Nursing,Challenge House,3000.00, 11-Feb-2020
834,Revenue,CAHD,South Glos Users in South Glos Homes,Permanent Nursing,Challenge House,3926.14, 11-Feb-2020
835,Revenue,CAHD,South Glos Users in South Glos Homes,Permanent Nursing,Challenge House,662.24, 11-Feb-2020
836,Revenue,CAHD,North - Community based support,Permanent Nursing,Challenge House,2827.52, 11-Feb-2020
837,Revenue,CAHD,South Glos Users in South Glos Homes,Permanent Nursing,Challenge House,662.24, 11-Feb-2020
838,Revenue,CAHD,North - Community based support,Permanent Nursing,Challenge House,3338.84, 11-Feb-2020
839,Revenue,CAHD,South Glos Users in South Glos Homes,Permanent Nursing,Challenge House,662.24, 11-Feb-2020
840,Revenue,CAHD,South Glos Users in South Glos Homes,Permanent Nursing,Challenge House,662.24, 11-Feb-2020
841,Revenue,CAHD,South Glos Users in South Glos Homes,Permanent Nursing,Challenge House,662.24, 11-Feb-2020
842,Revenue,CAHD,North - Community based support,Permanent Nursing,Challenge House,2827.52, 11-Feb-2020
843,Revenue,CAHD,South Glos Users in South Glos Homes,Permanent Nursing,Challenge House,662.24, 11-Feb-2020
844,Revenue,CAHD,South Glos Users in South Glos Homes,Permanent Nursing,Challenge House,662.24, 11-Feb-2020
845,Revenue,CAHD,North - Community based support,Permanent Nursing,Challenge House,3263.84, 11-Feb-2020
846,Revenue,CAHD,South Glos Users in South Glos Homes,Permanent Nursing,Challenge House,662.24, 11-Feb-2020
847,Revenue,CAHD,Early Years Inclusion Fund,Other Public Bodies,Charfield Pre-School,1800.00, 18-Feb-2020
848,Revenue,CAHD,Early Years Inclusion Fund,Other Public Bodies,Charfield Pre-School,1650.00, 18-Feb-2020
849,Revenue,CAHD,Early Years Inclusion Fund,Other Public Bodies,Charfield Pre-School,1800.00, 18-Feb-2020
850,Revenue,CAHD,Alexandra Way,"Provisions (Food, etc)",Charles Saunders Limited,874.14, 17-Feb-2020
851,Revenue,CAHD,Statemented Support Academies,Other Public Bodies,Charlton Wood Primary Academy,702.17, 26-Feb-2020
852,Revenue,CAHD,Training - Adult Services,Training Expenses,Chartered Institute of Environmental Health,858.50, 20-Feb-2020
853,Revenue,CAHD,Central - Commissioned Services,Other Small Contracts,Cherish Able Care Limited,2100.12, 06-Feb-2020
854,Revenue,CAHD,South - Commissioned Services,Other Small Contracts,Cherish Able Care Limited,5026.86, 06-Feb-2020
855,Revenue,CAHD,North - Community based support,Other Small Contracts,Cherish Able Care Limited,1277.10, 06-Feb-2020
856,Revenue,CAHD,Central - Commissioned Services,Other Small Contracts,Cherish Able Care Limited,2100.12, 06-Feb-2020
857,Revenue,CAHD,South - Commissioned Services,Other Small Contracts,Cherish Able Care Limited,4951.18, 06-Feb-2020
858,Revenue,CAHD,North - Community based support,Other Small Contracts,Cherish Able Care Limited,1267.64, 06-Feb-2020
859,Revenue,CAHD,Central - Commissioned Services,Other Small Contracts,Cherish Able Care Limited,2114.31, 24-Feb-2020
860,Revenue,CAHD,South - Commissioned Services,Other Small Contracts,Cherish Able Care Limited,4814.01, 24-Feb-2020
861,Revenue,CAHD,North - Community based support,Other Small Contracts,Cherish Able Care Limited,1277.10, 24-Feb-2020
862,Revenue,CAHD,Central - Commissioned Services,Other Small Contracts,Cherish Able Care Limited,2095.39, 20-Feb-2020
863,Revenue,CAHD,South - Commissioned Services,Other Small Contracts,Cherish Able Care Limited,4700.49, 20-Feb-2020
864,Revenue,CAHD,North - Community based support,Other Small Contracts,Cherish Able Care Limited,1220.34, 20-Feb-2020
865,Revenue,CAHD,South - Commissioned Services,Other Small Contracts,Cherry Orchards,6111.16, 19-Feb-2020
866,Revenue,CAHD,18-25 Year Olds,Supported Living,Cherry Orchards,1682.00, 11-Feb-2020
867,Revenue,CAHD,Supported Living (S28a) South,Supported Living,Cherry Orchards,1997.24, 11-Feb-2020
868,Revenue,CAHD,18-25 Year Olds,Supported Living,Cherry Orchards,1990.72, 11-Feb-2020
869,Revenue,CAHD,North - Community based support,Supported Living,Cherry Orchards,1022.52, 11-Feb-2020
870,Revenue,CAHD,S28A cases,Permanent Residential,Chescombe Trust Ltd,9764.44, 11-Feb-2020
871,Revenue,CAHD,EARLY YEARS DISABILITY  ACCES FUND,Preventative Assistance,Christchurch Pre School,615.00, 07-Feb-2020
872,Revenue,CAHD,18-25 Year Olds,Other Small Contracts,Cintre,78.08, 28-Feb-2020
873,Revenue,CAHD,Central - Commissioned Services,Other Small Contracts,Cintre,195.20, 28-Feb-2020
874,Revenue,CAHD,South - Commissioned Services,Other Small Contracts,Cintre,663.68, 28-Feb-2020
875,Revenue,CAHD,18-25 Year Olds,Other Small Contracts,Cintre,39.04, 28-Feb-2020
876,Revenue,CAHD,Central - Commissioned Services,Other Small Contracts,Cintre,117.12, 28-Feb-2020
877,Revenue,CAHD,South - Commissioned Services,Other Small Contracts,Cintre,956.48, 28-Feb-2020
878,Revenue,CAHD,18-25 Year Olds,Other Small Contracts,Cintre,78.08, 28-Feb-2020
879,Revenue,CAHD,Central - Commissioned Services,Other Small Contracts,Cintre,195.20, 28-Feb-2020
880,Revenue,CAHD,South - Commissioned Services,Other Small Contracts,Cintre,956.48, 28-Feb-2020
881,Revenue,CAHD,18-25 Year Olds,Other Small Contracts,Cintre,78.08, 20-Feb-2020
882,Revenue,CAHD,Central - Commissioned Services,Other Small Contracts,Cintre,307.44, 20-Feb-2020
883,Revenue,CAHD,South - Commissioned Services,Other Small Contracts,Cintre,1015.04, 20-Feb-2020
884,Revenue,CAHD,18-25 Year Olds,Other Small Contracts,Cintre,78.08, 28-Feb-2020
885,Revenue,CAHD,Central - Commissioned Services,Other Small Contracts,Cintre,429.44, 28-Feb-2020
886,Revenue,CAHD,South - Commissioned Services,Other Small Contracts,Cintre,1015.04, 28-Feb-2020
887,Revenue,CAHD,"Physical Activity, Nutrition & Obesity",Printing & Stationery,Circadian Trust,6300.00, 28-Feb-2020
888,Revenue,CAHD,Special Needs - Special Schools HTST,Client Transport,Individual,612.36, 20-Feb-2020
889,Revenue,CAHD,South - Commissioned Services,Permanent Residential,Clearwater Care,5280.28, 11-Feb-2020
890,Revenue,CAHD,South - Commissioned Services,Permanent Residential,Cleeve Lodge,3686.40, 11-Feb-2020
891,Revenue,CAHD,Central - Commissioned Services,Respite Planned - Residential,Cleeve Lodge,13671.43, 11-Feb-2020
892,Revenue,CAHD,Central - Commissioned Services,Respite Planned - Residential,Cleeve Lodge,628.57, 11-Feb-2020
893,Revenue,CAHD,South - Commissioned Services,Permanent Residential,Cleeve Lodge,3686.40, 11-Feb-2020
894,Revenue,CAHD,South - Commissioned Services,Permanent Residential,Cleeve Lodge,1308.44, 11-Feb-2020
895,Revenue,CAHD,South - Commissioned Services,Permanent Residential,Cleeve Lodge,2921.68, 11-Feb-2020
896,Revenue,CAHD,South - Commissioned Services,Respite Planned - Residential,Cleeve Lodge,2000.00, 11-Feb-2020
897,Revenue,CAHD,South - bed purchasing and direct  payments,Permanent Residential,Cleeve Lodge,4000.00, 11-Feb-2020
898,Revenue,CAHD,South - Commissioned Services,Permanent Residential,Cleeve Lodge,4000.00, 11-Feb-2020
899,Revenue,CAHD,MH Purchasing - Younger,Respite Emergency - Residential,Cleeve Lodge,571.43, 11-Feb-2020
900,Revenue,CAHD,South - bed purchasing and direct  payments,Permanent Residential,Cleeve Lodge,4000.00, 11-Feb-2020
901,Revenue,CAHD,South - Commissioned Services,Permanent Residential,Cleeve Lodge,2893.00, 11-Feb-2020
902,Revenue,CAHD,South - Commissioned Services,Permanent Residential,Cleeve Lodge,2635.60, 11-Feb-2020
903,Revenue,CAHD,North - Community based support,Permanent Nursing,Clevedon Court Nursing Home,3448.16, 11-Feb-2020
904,Revenue,CAHD,Sexual Health,Other Small Contracts,Close Farm Surgery,644.00, 14-Feb-2020
905,Revenue,CAHD,Drug and Alcohol Programme,Other Small Contracts,Close Farm Surgery,710.50, 13-Feb-2020
906,Revenue,CAHD,Sexual Health,Other Small Contracts,Close Farm Surgery,629.74, 14-Feb-2020
907,Revenue,CAHD,NHS Health Checks,Other Small Contracts,Close Farm Surgery,1173.00, 14-Feb-2020
908,Revenue,CAHD,Central - Commissioned Services,Other Small Contracts,Clover Health and Home Care Ltd,860.22, 12-Feb-2020
909,Revenue,CAHD,Central - Commissioned Services,Other Small Contracts,Clover Health and Home Care Ltd,1215.99, 12-Feb-2020
910,Revenue,CAHD,South - Commissioned Services,Permanent Residential,Collingwood Care Home,2826.24, 11-Feb-2020
911,Revenue,CAHD,South - Commissioned Services,Permanent Residential,Collingwood Care Home,2241.28, 11-Feb-2020
912,Revenue,CAHD,North - Community based support,Permanent Residential,Collingwood Care Home,3000.00, 11-Feb-2020
913,Revenue,CAHD,South - Commissioned Services,Permanent Residential,Collingwood Care Home,2504.28, 11-Feb-2020
914,Revenue,CAHD,South - Commissioned Services,Permanent Residential,Community Theraputic Services,7893.40, 11-Feb-2020
915,Revenue,CAHD,Jointly Funded H&SC Packages,Permanent Residential,Community Theraputic Services,4875.84, 11-Feb-2020
916,Revenue,CAHD,Jointly Funded H&SC Packages,Permanent Residential,Community Theraputic Services,2027.52, 11-Feb-2020
917,Revenue,CAHD,North - Community based support,Permanent Residential,Community Theraputic Services,8119.76, 11-Feb-2020
918,Revenue,CAHD,CSC - Agency Fostering,Foster Parent Allowances,Compass Fostering West Ltd,3168.25, 10-Feb-2020
919,Revenue,CAHD,CSC - Agency Fostering,Foster Parent Allowances,Compass Fostering West Ltd,3030.50, 10-Feb-2020
920,Revenue,CAHD,Sexual Health,Other Small Contracts,Concord Medical Centre,2576.00, 14-Feb-2020
921,Revenue,CAHD,Drug and Alcohol Programme,Other Small Contracts,Concord Medical Centre,812.00, 13-Feb-2020
922,Revenue,CAHD,Sexual Health,Other Small Contracts,Concord Medical Centre,1538.24, 14-Feb-2020
923,Revenue,CAHD,NHS Health Checks,Other Small Contracts,Concord Medical Centre,529.00, 14-Feb-2020
924,Revenue,CAHD,South - bed purchasing and direct  payments,Respite Planned - Residential,Concorde Lodge,19007.60, 11-Feb-2020
925,Revenue,CAHD,Drug and Alcohol Programme,Other Small Contracts,Coniston Medical Practice,1319.50, 13-Feb-2020
926,Revenue,CAHD,Sexual Health,Other Small Contracts,Coniston Medical Practice,743.32, 14-Feb-2020
927,Revenue,CAHD,NHS Health Checks,Other Small Contracts,Coniston Medical Practice,506.00, 14-Feb-2020
928,Revenue,CAHD,Statemented Support Equipment,Educational Supplies & Equipment,Connevans Limited,1590.05, 21-Feb-2020
929,Revenue,CAHD,Bed and Breakfast,Bed & Breakfast,Connolly & Callaghan Limited,448.00, 07-Feb-2020
930,Revenue,CAHD,Bed and Breakfast,Bed & Breakfast,Connolly & Callaghan Limited,910.00, 07-Feb-2020
931,Revenue,CAHD,Bed and Breakfast,Bed & Breakfast,Connolly & Callaghan Limited,539.00, 07-Feb-2020
932,Revenue,CAHD,Bed and Breakfast,Bed & Breakfast,Connolly & Callaghan Limited,455.00, 07-Feb-2020
933,Revenue,CAHD,Bed and Breakfast,Bed & Breakfast,Connolly & Callaghan Limited,504.00, 07-Feb-2020
934,Revenue,CAHD,Bed and Breakfast,Bed & Breakfast,Connolly & Callaghan Limited,714.00, 07-Feb-2020
935,Revenue,CAHD,Bed and Breakfast,Bed & Breakfast,Connolly & Callaghan Limited,497.00, 07-Feb-2020
936,Revenue,CAHD,Bed and Breakfast,Bed & Breakfast,Connolly & Callaghan Limited,581.00, 07-Feb-2020
937,Revenue,CAHD,Bed and Breakfast,Bed & Breakfast,Connolly & Callaghan Limited,497.00, 07-Feb-2020
938,Revenue,CAHD,Bed and Breakfast,Bed & Breakfast,Connolly & Callaghan Limited,420.00, 07-Feb-2020
939,Revenue,CAHD,Bed and Breakfast,Bed & Breakfast,Connolly & Callaghan Limited,455.00, 07-Feb-2020
940,Revenue,CAHD,Bed and Breakfast,Bed & Breakfast,Connolly & Callaghan Limited,497.00, 07-Feb-2020
941,Revenue,CAHD,Bed and Breakfast,Bed & Breakfast,Connolly & Callaghan Limited,448.00, 13-Feb-2020
942,Revenue,CAHD,Bed and Breakfast,Bed & Breakfast,Connolly & Callaghan Limited,910.00, 13-Feb-2020
943,Revenue,CAHD,Bed and Breakfast,Bed & Breakfast,Connolly & Callaghan Limited,539.00, 12-Feb-2020
944,Revenue,CAHD,Bed and Breakfast,Bed & Breakfast,Connolly & Callaghan Limited,455.00, 12-Feb-2020
945,Revenue,CAHD,Bed and Breakfast,Bed & Breakfast,Connolly & Callaghan Limited,504.00, 13-Feb-2020
946,Revenue,CAHD,Bed and Breakfast,Bed & Breakfast,Connolly & Callaghan Limited,714.00, 13-Feb-2020
947,Revenue,CAHD,Bed and Breakfast,Bed & Breakfast,Connolly & Callaghan Limited,539.00, 12-Feb-2020
948,Revenue,CAHD,Bed and Breakfast,Bed & Breakfast,Connolly & Callaghan Limited,497.00, 19-Feb-2020
949,Revenue,CAHD,Bed and Breakfast,Bed & Breakfast,Connolly & Callaghan Limited,581.00, 13-Feb-2020
950,Revenue,CAHD,Bed and Breakfast,Bed & Breakfast,Connolly & Callaghan Limited,497.00, 12-Feb-2020
951,Revenue,CAHD,Bed and Breakfast,Bed & Breakfast,Connolly & Callaghan Limited,420.00, 13-Feb-2020
952,Revenue,CAHD,Bed and Breakfast,Bed & Breakfast,Connolly & Callaghan Limited,539.00, 12-Feb-2020
953,Revenue,CAHD,Bed and Breakfast,Bed & Breakfast,Connolly & Callaghan Limited,539.00, 12-Feb-2020
954,Revenue,CAHD,Bed and Breakfast,Bed & Breakfast,Connolly & Callaghan Limited,539.00, 26-Feb-2020
955,Revenue,CAHD,Bed and Breakfast,Bed & Breakfast,Connolly & Callaghan Limited,455.00, 26-Feb-2020
956,Revenue,CAHD,Bed and Breakfast,Bed & Breakfast,Connolly & Callaghan Limited,539.00, 26-Feb-2020
957,Revenue,CAHD,Bed and Breakfast,Bed & Breakfast,Connolly & Callaghan Limited,455.00, 26-Feb-2020
958,Revenue,CAHD,Alexandra Way,Cleaning & Domestic Services,Countrywide Healthcare Supplies Ltd,676.45, 12-Feb-2020
959,Revenue,CAHD,Alexandra Way,Cleaning & Domestic Services,Countrywide Healthcare Supplies Ltd,486.42, 25-Feb-2020
960,Revenue,CAHD,Sexual Health,Other Small Contracts,Courtside Surgery,2737.00, 14-Feb-2020
961,Revenue,CAHD,Drug and Alcohol Programme,Other Small Contracts,Courtside Surgery,1725.50, 13-Feb-2020
962,Revenue,CAHD,Sexual Health,Other Small Contracts,Courtside Surgery,1724.06, 14-Feb-2020
963,Revenue,CAHD,NHS Health Checks,Other Small Contracts,Courtside Surgery,2944.00, 14-Feb-2020
964,Revenue,CAHD,S28A cases,Permanent Residential,Creedy Court,10597.96, 11-Feb-2020
965,Revenue,CAHD,S28A cases,Permanent Residential,Creedy Court,8904.92, 11-Feb-2020
966,Revenue,CAHD,North - Community based support,Permanent Residential,Creedy Court,14054.00, 11-Feb-2020
967,Revenue,CAHD,Training Budget - Children`s Social Serv,Training Expenses,Cruidin Training and Consultancy Ltd,1056.00, 28-Feb-2020
968,Revenue,CAHD,Discretionary Housing Payment,Other Supplies & Services,Curo Housing Group,900.00, 10-Feb-2020
969,Revenue,CAHD,South - Commissioned Services,Permanent Residential,Daneswood,12268.80, 11-Feb-2020
970,Revenue,CAHD,South - Commissioned Services,Day Care / Social Activities,Daneswood,1413.28, 11-Feb-2020
971,Revenue,CAHD,North - Community based support,Permanent Residential,Daneswood,13579.68, 11-Feb-2020
972,Revenue,CAHD,South - Commissioned Services,One-off Planned Direct Payment,Individual,1759.56, 07-Feb-2020
973,Revenue,CAHD,North - S117,Permanent Nursing,Danshell Healthcare Group,10872.28, 11-Feb-2020
974,Revenue,CAHD,Jointly Funded H&SC Packages,Permanent Nursing,Danshell Healthcare Group,1613.28, 11-Feb-2020
975,Revenue,CAHD,Learning Difficulties PSL,Other Supplies & Services,Individual,2400.00, 21-Feb-2020
976,Revenue,CAHD,Drug and Alcohol Programme,Other Small Contracts,Day Lewis - Horfield Branch,1425.00, 13-Feb-2020
977,Revenue,CAHD,South - Commissioned Services,Day Care / Social Activities,Deafblind Uk,1065.78, 04-Feb-2020
978,Revenue,CAHD,South - Commissioned Services,Day Care / Social Activities,Deafblind Uk,1421.04, 03-Feb-2020
979,Revenue,CAHD,South Glos Users in South Glos Homes,Permanent Nursing,Deerhurst Nursing Home,662.24, 11-Feb-2020
980,Revenue,CAHD,South - Commissioned Services,Permanent Nursing,Deerhurst Nursing Home,3805.28, 11-Feb-2020
981,Revenue,CAHD,South Glos Users in South Glos Homes,Permanent Nursing,Deerhurst Nursing Home,662.24, 11-Feb-2020
982,Revenue,CAHD,South Glos Users in South Glos Homes,Permanent Nursing,Deerhurst Nursing Home,662.24, 11-Feb-2020
983,Revenue,CAHD,South - Commissioned Services,Day Care / Social Activities,Deerhurst Nursing Home,556.96, 11-Feb-2020
984,Revenue,CAHD,South Glos Users in South Glos Homes,Permanent Nursing,Deerhurst Nursing Home,662.24, 11-Feb-2020
985,Revenue,CAHD,South - Commissioned Services,Permanent Nursing,Deerhurst Nursing Home,4018.16, 11-Feb-2020
986,Revenue,CAHD,South Glos Users in South Glos Homes,Permanent Nursing,Deerhurst Nursing Home,662.24, 11-Feb-2020
987,Revenue,CAHD,South - Commissioned Services,Permanent Nursing,Deerhurst Nursing Home,4006.00, 11-Feb-2020
988,Revenue,CAHD,South Glos Users in South Glos Homes,Permanent Nursing,Deerhurst Nursing Home,662.24, 11-Feb-2020
989,Revenue,CAHD,North - Community based support,Permanent Nursing,Deerhurst Nursing Home,3891.20, 11-Feb-2020
990,Revenue,CAHD,South - Commissioned Services,Permanent Nursing,Deerhurst Nursing Home,3965.12, 11-Feb-2020
991,Revenue,CAHD,South Glos Users in South Glos Homes,Permanent Nursing,Deerhurst Nursing Home,662.24, 11-Feb-2020
992,Revenue,CAHD,South - Commissioned Services,Permanent Nursing,Deerhurst Nursing Home,3891.20, 11-Feb-2020
993,Revenue,CAHD,South Glos Users in South Glos Homes,Permanent Nursing,Deerhurst Nursing Home,662.24, 11-Feb-2020
994,Revenue,CAHD,South - Commissioned Services,Day Care / Social Activities,Deerhurst Nursing Home,556.96, 11-Feb-2020
995,Revenue,CAHD,South - Commissioned Services,Permanent Nursing,Deerhurst Nursing Home,4007.92, 11-Feb-2020
996,Revenue,CAHD,South Glos Users in South Glos Homes,Permanent Nursing,Deerhurst Nursing Home,662.24, 11-Feb-2020
997,Revenue,CAHD,Central - Commissioned Services,Day Care / Social Activities,Deerhurst Nursing Home,556.96, 11-Feb-2020
998,Revenue,CAHD,South - bed purchasing and direct  payments,Permanent Nursing,Deerhurst Nursing Home,4004.00, 11-Feb-2020
999,Revenue,CAHD,South Glos Users in South Glos Homes,Permanent Nursing,Deerhurst Nursing Home,662.24, 11-Feb-2020
1000,Revenue,CAHD,South Glos Users in South Glos Homes,Permanent Nursing,Deerhurst Nursing Home,662.24, 11-Feb-2020
1001,Revenue,CAHD,South Glos Users in South Glos Homes,Permanent Nursing,Deerhurst Nursing Home,662.24, 11-Feb-2020
1002,Revenue,CAHD,North - Community based support,Permanent Nursing,Deerhurst Nursing Home,4007.92, 11-Feb-2020
1003,Revenue,CAHD,South Glos Users in South Glos Homes,Permanent Nursing,Deerhurst Nursing Home,662.24, 11-Feb-2020
1004,Revenue,CAHD,South - Commissioned Services,Permanent Nursing,Deerhurst Nursing Home,4005.96, 11-Feb-2020
1005,Revenue,CAHD,South Glos Users in South Glos Homes,Permanent Nursing,Deerhurst Nursing Home,662.24, 11-Feb-2020
1006,Revenue,CAHD,South Glos Users in South Glos Homes,Permanent Nursing,Deerhurst Nursing Home,662.24, 11-Feb-2020
1007,Revenue,CAHD,South Glos Users in South Glos Homes,Permanent Nursing,Deerhurst Nursing Home,662.24, 11-Feb-2020
1008,Revenue,CAHD,South - Commissioned Services,Permanent Nursing,Deerhurst Nursing Home,3891.20, 11-Feb-2020
1009,Revenue,CAHD,South Glos Users in South Glos Homes,Permanent Nursing,Deerhurst Nursing Home,662.24, 11-Feb-2020
1010,Revenue,CAHD,South Glos Users in South Glos Homes,Permanent Nursing,Deerhurst Nursing Home,662.24, 11-Feb-2020
1011,Revenue,CAHD,South Glos Users in South Glos Homes,Permanent Nursing,Deerhurst Nursing Home,662.24, 11-Feb-2020
1012,Revenue,CAHD,South Glos Users in South Glos Homes,Permanent Nursing,Deerhurst Nursing Home,662.24, 11-Feb-2020
1013,Revenue,CAHD,South Glos Users in South Glos Homes,Permanent Nursing,Deerhurst Nursing Home,662.24, 11-Feb-2020
1014,Revenue,CAHD,South Glos Users in South Glos Homes,Permanent Nursing,Deerhurst Nursing Home,662.24, 11-Feb-2020
1015,Revenue,CAHD,South Glos Users in South Glos Homes,Permanent Nursing,Deerhurst Nursing Home,662.24, 11-Feb-2020
1016,Revenue,CAHD,South Glos Users in South Glos Homes,Permanent Nursing,Deerhurst Nursing Home,2104.98, 11-Feb-2020
1017,Revenue,CAHD,South Glos Users in South Glos Homes,Permanent Nursing,Deerhurst Nursing Home,662.24, 11-Feb-2020
1018,Revenue,CAHD,South Glos Users in South Glos Homes,Permanent Nursing,Deerhurst Nursing Home,662.24, 11-Feb-2020
1019,Revenue,CAHD,South Glos Users in South Glos Homes,Permanent Nursing,Deerhurst Nursing Home,662.24, 11-Feb-2020
1020,Revenue,CAHD,North - Community based support,Permanent Nursing,Deerhurst Nursing Home,4006.00, 11-Feb-2020
1021,Revenue,CAHD,South Glos Users in South Glos Homes,Permanent Nursing,Deerhurst Nursing Home,662.24, 11-Feb-2020
1022,Revenue,CAHD,South - Commissioned Services,Permanent Nursing,Deerhurst Nursing Home,4005.24, 11-Feb-2020
1023,Revenue,CAHD,South Glos Users in South Glos Homes,Permanent Nursing,Deerhurst Nursing Home,662.24, 11-Feb-2020
1024,Revenue,CAHD,South Glos Users in South Glos Homes,Permanent Nursing,Deerhurst Nursing Home,662.24, 11-Feb-2020
1025,Revenue,CAHD,South Glos Users in South Glos Homes,Permanent Nursing,Deerhurst Nursing Home,662.24, 11-Feb-2020
1026,Revenue,CAHD,South - Commissioned Services,Permanent Nursing,Deerhurst Nursing Home,4006.00, 11-Feb-2020
1027,Revenue,CAHD,South Glos Users in South Glos Homes,Permanent Nursing,Deerhurst Nursing Home,662.24, 11-Feb-2020
1028,Revenue,CAHD,South Glos Users in South Glos Homes,Permanent Nursing,Deerhurst Nursing Home,662.24, 11-Feb-2020
1029,Revenue,CAHD,South - Commissioned Services,Permanent Nursing,Deerhurst Nursing Home,4006.00, 11-Feb-2020
1030,Revenue,CAHD,South - Commissioned Services,Permanent Residential,Deerhurst Nursing Home,3891.20, 11-Feb-2020
1031,Revenue,CAHD,South Glos Users in South Glos Homes,Permanent Nursing,Deerhurst Nursing Home,662.24, 11-Feb-2020
1032,Revenue,CAHD,North - Community based support,Permanent Nursing,Deerhurst Nursing Home,3034.20, 11-Feb-2020
1033,Revenue,CAHD,South Glos Users in South Glos Homes,Permanent Nursing,Deerhurst Nursing Home,662.24, 11-Feb-2020
1034,Revenue,CAHD,North - Community based support,Permanent Nursing,Deerhurst Nursing Home,2835.44, 11-Feb-2020
1035,Revenue,CAHD,South Glos Users in South Glos Homes,Permanent Nursing,Deerhurst Nursing Home,662.24, 11-Feb-2020
1036,Revenue,CAHD,South Glos Users in South Glos Homes,Permanent Nursing,Deerhurst Nursing Home,2057.67, 11-Feb-2020
1037,Revenue,CAHD,South Glos Users in South Glos Homes,Permanent Nursing,Deerhurst Nursing Home,662.24, 11-Feb-2020
1038,Revenue,CAHD,South Glos Users in South Glos Homes,Permanent Nursing,Deerhurst Nursing Home,662.24, 11-Feb-2020
1039,Revenue,CAHD,South Glos Users in South Glos Homes,Permanent Nursing,Deerhurst Nursing Home,662.24, 11-Feb-2020
1040,Revenue,CAHD,South Glos Users in South Glos Homes,Permanent Nursing,Deerhurst Nursing Home,662.24, 11-Feb-2020
1041,Revenue,CAHD,South - Commissioned Services,Permanent Nursing,Deerhurst Nursing Home,4009.16, 11-Feb-2020
1042,Revenue,CAHD,South Glos Users in South Glos Homes,Permanent Nursing,Deerhurst Nursing Home,662.24, 11-Feb-2020
1043,Revenue,CAHD,South - Commissioned Services,Supported Living,Design House,2661.20, 11-Feb-2020
1044,Revenue,CAHD,South - Commissioned Services,Supported Living,Design House,3063.00, 11-Feb-2020
1045,Revenue,CAHD,South - Commissioned Services,Supported Living,Design House,3132.76, 11-Feb-2020
1046,Revenue,CAHD,South - Commissioned Services,Supported Living,Design House,2993.28, 11-Feb-2020
1047,Revenue,CAHD,South - Commissioned Services,Day Care / Social Activities,Design House,516.32, 11-Feb-2020
1048,Revenue,CAHD,Central - Commissioned Services,Day Care / Social Activities,Design House,2932.80, 11-Feb-2020
1049,Revenue,CAHD,Central - Commissioned Services,Day Care / Social Activities,Design House,2199.60, 11-Feb-2020
1050,Revenue,CAHD,South - Commissioned Services,Day Care / Social Activities,Design House,1291.20, 11-Feb-2020
1051,Revenue,CAHD,South - Commissioned Services,Day Care / Social Activities,Design House,549.00, 11-Feb-2020
1052,Revenue,CAHD,South - Commissioned Services,Day Care / Social Activities,Design House,921.28, 11-Feb-2020
1053,Revenue,CAHD,South - Commissioned Services,Supported Living,Design House,2638.60, 11-Feb-2020
1054,Revenue,CAHD,South - Commissioned Services,Supported Living,Design House,2638.60, 11-Feb-2020
1055,Revenue,CAHD,South - Commissioned Services,Supported Living,Design House,2149.32, 11-Feb-2020
1056,Revenue,CAHD,South - Commissioned Services,Day Care / Social Activities,Design House,516.32, 11-Feb-2020
1057,Revenue,CAHD,South - Commissioned Services,Supported Living,Design House,1896.52, 11-Feb-2020
1058,Revenue,CAHD,South - Commissioned Services,Supported Living,Design House,2516.60, 11-Feb-2020
1059,Revenue,CAHD,South - Commissioned Services,Supported Living,Design House,4307.12, 11-Feb-2020
1060,Revenue,CAHD,North - Community based support,Supported Living,Design House,3054.24, 11-Feb-2020
1061,Revenue,CAHD,South - Commissioned Services,Day Care / Social Activities,Design House,1505.96, 11-Feb-2020
1062,Revenue,CAHD,South - Commissioned Services,Supported Living,Design House,2924.68, 11-Feb-2020
1063,Revenue,CAHD,South - Commissioned Services,Supported Living,Design House,2542.80, 11-Feb-2020
1064,Revenue,CAHD,South - Commissioned Services,Supported Living,Design House,2257.48, 11-Feb-2020
1065,Revenue,CAHD,South - Commissioned Services,Supported Living,Design House,2257.48, 11-Feb-2020
1066,Revenue,CAHD,Central - Commissioned Services,Other Small Contracts,Dhek Bhal,42.16, 11-Feb-2020
1067,Revenue,CAHD,South - Commissioned Services,Other Small Contracts,Dhek Bhal,474.30, 11-Feb-2020
1068,Revenue,CAHD,Central - Commissioned Services,Other Small Contracts,Dhek Bhal,42.16, 14-Feb-2020
1069,Revenue,CAHD,South - Commissioned Services,Other Small Contracts,Dhek Bhal,495.38, 14-Feb-2020
1070,Revenue,CAHD,Central - Commissioned Services,Other Small Contracts,Dhek Bhal,42.16, 14-Feb-2020
1071,Revenue,CAHD,South - Commissioned Services,Other Small Contracts,Dhek Bhal,500.65, 14-Feb-2020
1072,Revenue,CAHD,South - Commissioned Services,Permanent Residential,Dimensions  Suite 2,5630.76, 11-Feb-2020
1073,Revenue,CAHD,South - Commissioned Services,Permanent Residential,Dimensions  Suite 2,2806.12, 11-Feb-2020
1074,Revenue,CAHD,Community Support - North,Preventative Assistance,Dobbins Industrial Cleaning Limited,1680.00, 13-Feb-2020
1075,Revenue,CAHD,Sexual Health,Other Small Contracts,Downend Health Group,2978.50, 14-Feb-2020
1076,Revenue,CAHD,Drug and Alcohol Programme,Other Small Contracts,Downend Health Group,5785.50, 13-Feb-2020
1077,Revenue,CAHD,Sexual Health,Other Small Contracts,Downend Health Group,2983.56, 14-Feb-2020
1078,Revenue,CAHD,NHS Health Checks,Other Small Contracts,Downend Health Group,4899.00, 14-Feb-2020
1079,Revenue,CAHD,Statemented Support Academies,Other Public Bodies,Downend School,978.57, 26-Feb-2020
1080,Revenue,CAHD,Statemented Support Academies,Other Public Bodies,Downend School,660.24, 26-Feb-2020
1081,Revenue,CAHD,Statemented Support Academies,Other Public Bodies,Downend School,1025.73, 26-Feb-2020
1082,Revenue,CAHD,Statemented Support Academies,Other Public Bodies,Downend School,1013.94, 26-Feb-2020
1083,Revenue,CAHD,Statemented Support Academies,Other Public Bodies,Downend School,801.72, 26-Feb-2020
1084,Revenue,CAHD,Statemented Support Academies,Other Public Bodies,Downend School,530.55, 26-Feb-2020
1085,Revenue,CAHD,Statemented Support Academies,Other Public Bodies,Downend School,1108.26, 26-Feb-2020
1086,Revenue,CAHD,Statemented Support Academies,Other Public Bodies,Downend School,554.13, 26-Feb-2020
1087,Revenue,CAHD,Statemented Support Academies,Other Public Bodies,Downend School,1438.38, 26-Feb-2020
1088,Revenue,CAHD,Statemented Support Academies,Other Public Bodies,Downend School,1709.55, 26-Feb-2020
1089,Revenue,CAHD,Statemented Support Academies,Other Public Bodies,Downend School,1544.49, 26-Feb-2020
1090,Revenue,CAHD,Social Lettings Agency,Other Supplies & Services,Individual,605.64, 24-Feb-2020
1091,Revenue,CAHD,North - Community based support,Permanent Residential,East Court,2763.56, 11-Feb-2020
1092,Revenue,CAHD,South - Commissioned Services,Permanent Residential,Edgemont House Ltd,3200.00, 11-Feb-2020
1093,Revenue,CAHD,South - bed purchasing and direct  payments,Permanent Residential,Edgemont House Ltd,3200.00, 11-Feb-2020
1094,Revenue,CAHD,South - Commissioned Services,Permanent Residential,Edgemont House Ltd,2826.24, 11-Feb-2020
1095,Revenue,CAHD,South - Commissioned Services,Permanent Nursing,Edgemont View Ltd,3584.00, 11-Feb-2020
1096,Revenue,CAHD,South Glos Users in South Glos Homes,Permanent Nursing,Edgemont View Ltd,662.24, 11-Feb-2020
1097,Revenue,CAHD,South Glos Users in South Glos Homes,Permanent Nursing,Edgemont View Ltd,662.24, 11-Feb-2020
1098,Revenue,CAHD,South - Commissioned Services,Permanent Nursing,Edgemont View Ltd,2560.00, 11-Feb-2020
1099,Revenue,CAHD,South Glos Users in South Glos Homes,Permanent Nursing,Edgemont View Ltd,662.24, 11-Feb-2020
1100,Revenue,CAHD,South - Commissioned Services,Permanent Nursing,Edgemont View Ltd,4129.44, 11-Feb-2020
1101,Revenue,CAHD,South Glos Users in South Glos Homes,Permanent Nursing,Edgemont View Ltd,662.24, 11-Feb-2020
1102,Revenue,CAHD,South Glos Users in South Glos Homes,Permanent Nursing,Edgemont View Ltd,662.24, 11-Feb-2020
1103,Revenue,CAHD,South Glos Users in South Glos Homes,Permanent Nursing,Edgemont View Ltd,662.24, 11-Feb-2020
1104,Revenue,CAHD,South Glos Users in South Glos Homes,Permanent Nursing,Edgemont View Ltd,2388.79, 11-Feb-2020
1105,Revenue,CAHD,South Glos Users in South Glos Homes,Permanent Nursing,Edgemont View Ltd,662.24, 11-Feb-2020
1106,Revenue,CAHD,South Glos Users in South Glos Homes,Permanent Nursing,Edgemont View Ltd,662.24, 11-Feb-2020
1107,Revenue,CAHD,South Glos Users in South Glos Homes,Permanent Nursing,Edgemont View Ltd,662.24, 11-Feb-2020
1108,Revenue,CAHD,South - Commissioned Services,Permanent Nursing,Edgemont View Ltd,3005.16, 11-Feb-2020
1109,Revenue,CAHD,South Glos Users in South Glos Homes,Permanent Nursing,Edgemont View Ltd,662.24, 11-Feb-2020
1110,Revenue,CAHD,South Glos Users in South Glos Homes,Permanent Nursing,Edgemont View Ltd,662.24, 11-Feb-2020
1111,Revenue,CAHD,South Glos Users in South Glos Homes,Permanent Nursing,Edgemont View Ltd,662.24, 11-Feb-2020
1112,Revenue,CAHD,South Glos Users in South Glos Homes,Permanent Nursing,Edgemont View Ltd,662.24, 11-Feb-2020
1113,Revenue,CAHD,South Glos Users in South Glos Homes,Permanent Nursing,Edgemont View Ltd,662.24, 11-Feb-2020
1114,Revenue,CAHD,South - Commissioned Services,Permanent Nursing,Edgemont View Ltd,3584.00, 11-Feb-2020
1115,Revenue,CAHD,South Glos Users in South Glos Homes,Permanent Nursing,Edgemont View Ltd,662.24, 11-Feb-2020
1116,Revenue,CAHD,South - Commissioned Services,Permanent Nursing,Edgemont View Ltd,512.00, 11-Feb-2020
1117,Revenue,CAHD,South - Commissioned Services,Permanent Nursing,Edgemont View Ltd,3400.00, 11-Feb-2020
1118,Revenue,CAHD,South Glos Users in South Glos Homes,Permanent Nursing,Edgemont View Ltd,662.24, 11-Feb-2020
1119,Revenue,CAHD,Schools Specific Grant Income,Training Expenses,EHCAP Ltd,2900.00, 05-Feb-2020
1120,Revenue,CAHD,Supporting People Programme,Grants to Voluntary Bodies,Elim Housing Association Limited,5372.63, 28-Feb-2020
1121,Revenue,CAHD,South - Commissioned Services,Day Care / Social Activities,Elite Home Care Ltd,203.36, 06-Feb-2020
1122,Revenue,CAHD,South - Commissioned Services,Other Small Contracts,Elite Home Care Ltd,6717.42, 06-Feb-2020
1123,Revenue,CAHD,North - Community based support,Other Small Contracts,Elite Home Care Ltd,600.16, 06-Feb-2020
1124,Revenue,CAHD,South - Commissioned Services,Day Care / Social Activities,Elite Home Care Ltd,198.40, 14-Feb-2020
1125,Revenue,CAHD,South - Commissioned Services,Other Small Contracts,Elite Home Care Ltd,6722.15, 14-Feb-2020
1126,Revenue,CAHD,North - Community based support,Other Small Contracts,Elite Home Care Ltd,595.20, 14-Feb-2020
1127,Revenue,CAHD,South - Commissioned Services,Day Care / Social Activities,Elite Home Care Ltd,198.40, 18-Feb-2020
1128,Revenue,CAHD,South - Commissioned Services,Other Small Contracts,Elite Home Care Ltd,7006.98, 18-Feb-2020
1129,Revenue,CAHD,North - Community based support,Other Small Contracts,Elite Home Care Ltd,595.20, 18-Feb-2020
1130,Revenue,CAHD,South - Commissioned Services,Day Care / Social Activities,Elite Home Care Ltd,203.36, 26-Feb-2020
1131,Revenue,CAHD,South - Commissioned Services,Other Small Contracts,Elite Home Care Ltd,6043.50, 26-Feb-2020
1132,Revenue,CAHD,North - Community based support,Other Small Contracts,Elite Home Care Ltd,620.00, 26-Feb-2020
1133,Revenue,CAHD,Sexual Health,Other Small Contracts,Emersons Green Medical Centre,1610.00, 14-Feb-2020
1134,Revenue,CAHD,Drug and Alcohol Programme,Other Small Contracts,Emersons Green Medical Centre,1522.50, 13-Feb-2020
1135,Revenue,CAHD,Sexual Health,Other Small Contracts,Emersons Green Medical Centre,1455.62, 14-Feb-2020
1136,Revenue,CAHD,School Grants - Special,Other Public Bodies,Enable Trust,13781.00, 12-Feb-2020
1137,Revenue,CAHD,School Grants - Special,Other Public Bodies,Enable Trust,38190.00, 12-Feb-2020
1138,Revenue,CAHD,Special ISB,Other Public Bodies,Enable Trust,1097.03, 28-Feb-2020
1139,Revenue,CAHD,Special ISB,Other Public Bodies,Enable Trust,1097.03, 28-Feb-2020
1140,Revenue,CAHD,Special ISB,Other Public Bodies,Enable Trust,1097.03, 28-Feb-2020
1141,Revenue,CAHD,Special ISB,Other Public Bodies,Enable Trust,605.19, 28-Feb-2020
1142,Revenue,CAHD,Special ISB,Other Public Bodies,Enable Trust,1437.49, 28-Feb-2020
1143,Revenue,CAHD,Special ISB,Other Public Bodies,Enable Trust,1588.75, 28-Feb-2020
1144,Revenue,CAHD,Special ISB,Other Public Bodies,Enable Trust,1437.49, 28-Feb-2020
1145,Revenue,CAHD,Special ISB,Other Public Bodies,Enable Trust,1437.49, 28-Feb-2020
1146,Revenue,CAHD,Special ISB,Other Public Bodies,Enable Trust,1097.03, 28-Feb-2020
1147,Revenue,CAHD,Special ISB,Other Public Bodies,Enable Trust,1097.03, 28-Feb-2020
1148,Revenue,CAHD,Special ISB,Other Public Bodies,Enable Trust,1437.49, 28-Feb-2020
1149,Revenue,CAHD,Special ISB,Other Public Bodies,Enable Trust,832.21, 28-Feb-2020
1150,Revenue,CAHD,Special ISB,Other Public Bodies,Enable Trust,1097.03, 28-Feb-2020
1151,Revenue,CAHD,Special ISB,Other Public Bodies,Enable Trust,1097.03, 28-Feb-2020
1152,Revenue,CAHD,Special ISB,Other Public Bodies,Enable Trust,832.21, 28-Feb-2020
1153,Revenue,CAHD,Special ISB,Other Public Bodies,Enable Trust,1437.49, 28-Feb-2020
1154,Revenue,CAHD,Special ISB,Other Public Bodies,Enable Trust,1097.03, 28-Feb-2020
1155,Revenue,CAHD,Special ISB,Other Public Bodies,Enable Trust,832.21, 28-Feb-2020
1156,Revenue,CAHD,Special ISB,Other Public Bodies,Enable Trust,1437.49, 28-Feb-2020
1157,Revenue,CAHD,Special ISB,Other Public Bodies,Enable Trust,2042.67, 28-Feb-2020
1158,Revenue,CAHD,Special ISB,Other Public Bodies,Enable Trust,1097.03, 28-Feb-2020
1159,Revenue,CAHD,Special ISB,Other Public Bodies,Enable Trust,1097.03, 28-Feb-2020
1160,Revenue,CAHD,Special ISB,Other Public Bodies,Enable Trust,832.21, 28-Feb-2020
1161,Revenue,CAHD,Special ISB,Other Public Bodies,Enable Trust,1097.03, 28-Feb-2020
1162,Revenue,CAHD,Special ISB,Other Public Bodies,Enable Trust,1097.03, 28-Feb-2020
1163,Revenue,CAHD,Special ISB,Other Public Bodies,Enable Trust,1097.03, 28-Feb-2020
1164,Revenue,CAHD,Special ISB,Other Public Bodies,Enable Trust,1097.03, 28-Feb-2020
1165,Revenue,CAHD,Special ISB,Other Public Bodies,Enable Trust,1437.49, 28-Feb-2020
1166,Revenue,CAHD,Special ISB,Other Public Bodies,Enable Trust,2042.67, 28-Feb-2020
1167,Revenue,CAHD,Special ISB,Other Public Bodies,Enable Trust,1437.49, 28-Feb-2020
1168,Revenue,CAHD,Special ISB,Other Public Bodies,Enable Trust,1097.03, 28-Feb-2020
1169,Revenue,CAHD,Special ISB,Other Public Bodies,Enable Trust,1097.03, 28-Feb-2020
1170,Revenue,CAHD,Special ISB,Other Public Bodies,Enable Trust,1437.49, 28-Feb-2020
1171,Revenue,CAHD,Special ISB,Other Public Bodies,Enable Trust,1097.03, 28-Feb-2020
1172,Revenue,CAHD,Special ISB,Other Public Bodies,Enable Trust,1097.03, 28-Feb-2020
1173,Revenue,CAHD,Special ISB,Other Public Bodies,Enable Trust,1097.03, 28-Feb-2020
1174,Revenue,CAHD,Special ISB,Other Public Bodies,Enable Trust,2042.67, 28-Feb-2020
1175,Revenue,CAHD,Special ISB,Other Public Bodies,Enable Trust,9021.48, 28-Feb-2020
1176,Revenue,CAHD,Special ISB,Other Public Bodies,Enable Trust,1437.49, 28-Feb-2020
1177,Revenue,CAHD,Special ISB,Other Public Bodies,Enable Trust,1097.03, 28-Feb-2020
1178,Revenue,CAHD,Special ISB,Other Public Bodies,Enable Trust,832.21, 28-Feb-2020
1179,Revenue,CAHD,Special ISB,Other Public Bodies,Enable Trust,8382.00, 28-Feb-2020
1180,Revenue,CAHD,Special ISB,Other Public Bodies,Enable Trust,4577.26, 28-Feb-2020
1181,Revenue,CAHD,Special ISB,Other Public Bodies,Enable Trust,1097.03, 28-Feb-2020
1182,Revenue,CAHD,Special ISB,Other Public Bodies,Enable Trust,832.21, 28-Feb-2020
1183,Revenue,CAHD,Special ISB,Other Public Bodies,Enable Trust,832.21, 28-Feb-2020
1184,Revenue,CAHD,Special ISB,Other Public Bodies,Enable Trust,605.19, 28-Feb-2020
1185,Revenue,CAHD,Special ISB,Other Public Bodies,Enable Trust,832.21, 28-Feb-2020
1186,Revenue,CAHD,Special ISB,Other Public Bodies,Enable Trust,1097.03, 28-Feb-2020
1187,Revenue,CAHD,Special ISB,Other Public Bodies,Enable Trust,832.21, 28-Feb-2020
1188,Revenue,CAHD,Special ISB,Other Public Bodies,Enable Trust,1437.49, 28-Feb-2020
1189,Revenue,CAHD,Special ISB,Other Public Bodies,Enable Trust,1097.03, 28-Feb-2020
1190,Revenue,CAHD,Special ISB,Other Public Bodies,Enable Trust,1437.49, 28-Feb-2020
1191,Revenue,CAHD,Special ISB,Other Public Bodies,Enable Trust,1097.03, 28-Feb-2020
1192,Revenue,CAHD,Special ISB,Other Public Bodies,Enable Trust,1437.49, 28-Feb-2020
1193,Revenue,CAHD,Special ISB,Other Public Bodies,Enable Trust,1437.49, 28-Feb-2020
1194,Revenue,CAHD,Special ISB,Other Public Bodies,Enable Trust,832.21, 28-Feb-2020
1195,Revenue,CAHD,Special ISB,Other Public Bodies,Enable Trust,1097.03, 28-Feb-2020
1196,Revenue,CAHD,Special ISB,Other Public Bodies,Enable Trust,832.21, 28-Feb-2020
1197,Revenue,CAHD,Special ISB,Other Public Bodies,Enable Trust,1437.49, 28-Feb-2020
1198,Revenue,CAHD,Special ISB,Other Public Bodies,Enable Trust,1097.03, 28-Feb-2020
1199,Revenue,CAHD,Special ISB,Other Public Bodies,Enable Trust,1437.49, 28-Feb-2020
1200,Revenue,CAHD,Special ISB,Other Public Bodies,Enable Trust,1097.03, 28-Feb-2020
1201,Revenue,CAHD,Special ISB,Other Public Bodies,Enable Trust,1437.49, 28-Feb-2020
1202,Revenue,CAHD,Special ISB,Other Public Bodies,Enable Trust,8382.00, 28-Feb-2020
1203,Revenue,CAHD,Special ISB,Other Public Bodies,Enable Trust,2042.67, 28-Feb-2020
1204,Revenue,CAHD,Special ISB,Other Public Bodies,Enable Trust,2848.82, 28-Feb-2020
1205,Revenue,CAHD,Special ISB,Other Public Bodies,Enable Trust,1437.49, 28-Feb-2020
1206,Revenue,CAHD,Special ISB,Other Public Bodies,Enable Trust,1097.03, 28-Feb-2020
1207,Revenue,CAHD,Special ISB,Other Public Bodies,Enable Trust,1437.49, 28-Feb-2020
1208,Revenue,CAHD,Special ISB,Other Public Bodies,Enable Trust,832.21, 28-Feb-2020
1209,Revenue,CAHD,Special ISB,Other Public Bodies,Enable Trust,1097.03, 28-Feb-2020
1210,Revenue,CAHD,Special ISB,Other Public Bodies,Enable Trust,832.21, 28-Feb-2020
1211,Revenue,CAHD,Special ISB,Other Public Bodies,Enable Trust,1097.03, 28-Feb-2020
1212,Revenue,CAHD,Special ISB,Other Public Bodies,Enable Trust,1097.03, 28-Feb-2020
1213,Revenue,CAHD,Special ISB,Other Public Bodies,Enable Trust,1097.03, 28-Feb-2020
1214,Revenue,CAHD,Special ISB,Other Public Bodies,Enable Trust,2042.67, 28-Feb-2020
1215,Revenue,CAHD,Special ISB,Other Public Bodies,Enable Trust,1097.03, 28-Feb-2020
1216,Revenue,CAHD,Special ISB,Other Public Bodies,Enable Trust,832.21, 28-Feb-2020
1217,Revenue,CAHD,Special ISB,Other Public Bodies,Enable Trust,1097.03, 28-Feb-2020
1218,Revenue,CAHD,Special ISB,Other Public Bodies,Enable Trust,1097.03, 28-Feb-2020
1219,Revenue,CAHD,Special ISB,Other Public Bodies,Enable Trust,1097.03, 28-Feb-2020
1220,Revenue,CAHD,Special ISB,Other Public Bodies,Enable Trust,832.21, 28-Feb-2020
1221,Revenue,CAHD,Special ISB,Other Public Bodies,Enable Trust,1588.75, 28-Feb-2020
1222,Revenue,CAHD,Special ISB,Other Public Bodies,Enable Trust,1097.03, 28-Feb-2020
1223,Revenue,CAHD,Special ISB,Other Public Bodies,Enable Trust,832.21, 28-Feb-2020
1224,Revenue,CAHD,Special ISB,Other Public Bodies,Enable Trust,1097.03, 28-Feb-2020
1225,Revenue,CAHD,Special ISB,Other Public Bodies,Enable Trust,1097.03, 28-Feb-2020
1226,Revenue,CAHD,Special ISB,Other Public Bodies,Enable Trust,832.21, 28-Feb-2020
1227,Revenue,CAHD,Special ISB,Other Public Bodies,Enable Trust,832.21, 28-Feb-2020
1228,Revenue,CAHD,Special ISB,Other Public Bodies,Enable Trust,1588.75, 28-Feb-2020
1229,Revenue,CAHD,Special ISB,Other Public Bodies,Enable Trust,832.21, 28-Feb-2020
1230,Revenue,CAHD,Special ISB,Other Public Bodies,Enable Trust,1407.17, 28-Feb-2020
1231,Revenue,CAHD,Special ISB,Other Public Bodies,Enable Trust,2042.67, 28-Feb-2020
1232,Revenue,CAHD,Special ISB,Other Public Bodies,Enable Trust,4577.26, 28-Feb-2020
1233,Revenue,CAHD,Special ISB,Other Public Bodies,Enable Trust,2042.67, 28-Feb-2020
1234,Revenue,CAHD,Special ISB,Other Public Bodies,Enable Trust,1588.75, 28-Feb-2020
1235,Revenue,CAHD,Special ISB,Other Public Bodies,Enable Trust,832.21, 28-Feb-2020
1236,Revenue,CAHD,Special ISB,Other Public Bodies,Enable Trust,1588.75, 28-Feb-2020
1237,Revenue,CAHD,Special ISB,Other Public Bodies,Enable Trust,1097.03, 28-Feb-2020
1238,Revenue,CAHD,Special ISB,Other Public Bodies,Enable Trust,605.19, 28-Feb-2020
1239,Revenue,CAHD,Special ISB,Other Public Bodies,Enable Trust,1437.49, 28-Feb-2020
1240,Revenue,CAHD,Special ISB,Other Public Bodies,Enable Trust,1097.03, 28-Feb-2020
1241,Revenue,CAHD,Special ISB,Other Public Bodies,Enable Trust,945.73, 28-Feb-2020
1242,Revenue,CAHD,Special ISB,Other Public Bodies,Enable Trust,1588.75, 28-Feb-2020
1243,Revenue,CAHD,Special ISB,Other Public Bodies,Enable Trust,1097.03, 28-Feb-2020
1244,Revenue,CAHD,Special ISB,Other Public Bodies,Enable Trust,832.21, 28-Feb-2020
1245,Revenue,CAHD,Special ISB,Other Public Bodies,Enable Trust,605.19, 28-Feb-2020
1246,Revenue,CAHD,Special ISB,Other Public Bodies,Enable Trust,1097.03, 28-Feb-2020
1247,Revenue,CAHD,Special ISB,Other Public Bodies,Enable Trust,832.21, 28-Feb-2020
1248,Revenue,CAHD,Special ISB,Other Public Bodies,Enable Trust,1097.03, 28-Feb-2020
1249,Revenue,CAHD,Special ISB,Other Public Bodies,Enable Trust,1097.03, 28-Feb-2020
1250,Revenue,CAHD,Special ISB,Other Public Bodies,Enable Trust,1097.03, 28-Feb-2020
1251,Revenue,CAHD,Special ISB,Other Public Bodies,Enable Trust,1588.75, 28-Feb-2020
1252,Revenue,CAHD,Special ISB,Other Public Bodies,Enable Trust,1097.03, 28-Feb-2020
1253,Revenue,CAHD,Special ISB,Other Public Bodies,Enable Trust,832.21, 28-Feb-2020
1254,Revenue,CAHD,Special ISB,Other Public Bodies,Enable Trust,1588.75, 28-Feb-2020
1255,Revenue,CAHD,Special ISB,Other Public Bodies,Enable Trust,832.21, 28-Feb-2020
1256,Revenue,CAHD,Special ISB,Other Public Bodies,Enable Trust,1097.03, 28-Feb-2020
1257,Revenue,CAHD,Special ISB,Other Public Bodies,Enable Trust,2042.67, 28-Feb-2020
1258,Revenue,CAHD,Special ISB,Other Public Bodies,Enable Trust,1588.75, 28-Feb-2020
1259,Revenue,CAHD,Special ISB,Other Public Bodies,Enable Trust,2567.20, 28-Feb-2020
1260,Revenue,CAHD,Special ISB,Other Public Bodies,Enable Trust,1437.49, 28-Feb-2020
1261,Revenue,CAHD,Special ISB,Other Public Bodies,Enable Trust,1097.03, 28-Feb-2020
1262,Revenue,CAHD,Special ISB,Other Public Bodies,Enable Trust,1097.03, 28-Feb-2020
1263,Revenue,CAHD,Special ISB,Other Public Bodies,Enable Trust,1097.03, 28-Feb-2020
1264,Revenue,CAHD,Special ISB,Other Public Bodies,Enable Trust,1097.03, 28-Feb-2020
1265,Revenue,CAHD,Special ISB,Other Public Bodies,Enable Trust,832.21, 28-Feb-2020
1266,Revenue,CAHD,Special ISB,Other Public Bodies,Enable Trust,1097.03, 28-Feb-2020
1267,Revenue,CAHD,Special ISB,Other Public Bodies,Enable Trust,3365.40, 28-Feb-2020
1268,Revenue,CAHD,Special ISB,Other Public Bodies,Enable Trust,1588.75, 28-Feb-2020
1269,Revenue,CAHD,Special ISB,Other Public Bodies,Enable Trust,832.21, 28-Feb-2020
1270,Revenue,CAHD,Special ISB,Other Public Bodies,Enable Trust,832.21, 28-Feb-2020
1271,Revenue,CAHD,Special ISB,Other Public Bodies,Enable Trust,2345.27, 28-Feb-2020
1272,Revenue,CAHD,Special ISB,Other Public Bodies,Enable Trust,1097.03, 28-Feb-2020
1273,Revenue,CAHD,Special ISB,Other Public Bodies,Enable Trust,1097.03, 28-Feb-2020
1274,Revenue,CAHD,Special ISB,Other Public Bodies,Enable Trust,1588.75, 28-Feb-2020
1275,Revenue,CAHD,Special ISB,Other Public Bodies,Enable Trust,1588.75, 28-Feb-2020
1276,Revenue,CAHD,Special ISB,Other Public Bodies,Enable Trust,1097.03, 28-Feb-2020
1277,Revenue,CAHD,Special ISB,Other Public Bodies,Enable Trust,2400.04, 28-Feb-2020
1278,Revenue,CAHD,Special ISB,Other Public Bodies,Enable Trust,1588.75, 28-Feb-2020
1279,Revenue,CAHD,Special ISB,Other Public Bodies,Enable Trust,1588.75, 28-Feb-2020
1280,Revenue,CAHD,Special ISB,Other Public Bodies,Enable Trust,1588.75, 28-Feb-2020
1281,Revenue,CAHD,Special ISB,Other Public Bodies,Enable Trust,832.21, 28-Feb-2020
1282,Revenue,CAHD,Special ISB,Other Public Bodies,Enable Trust,1588.75, 28-Feb-2020
1283,Revenue,CAHD,Special ISB,Other Public Bodies,Enable Trust,832.21, 28-Feb-2020
1284,Revenue,CAHD,Special ISB,Other Public Bodies,Enable Trust,2042.67, 28-Feb-2020
1285,Revenue,CAHD,Special ISB,Other Public Bodies,Enable Trust,832.21, 28-Feb-2020
1286,Revenue,CAHD,Special ISB,Other Public Bodies,Enable Trust,832.21, 28-Feb-2020
1287,Revenue,CAHD,Special ISB,Other Public Bodies,Enable Trust,2042.67, 28-Feb-2020
1288,Revenue,CAHD,Special ISB,Other Public Bodies,Enable Trust,832.21, 28-Feb-2020
1289,Revenue,CAHD,Special ISB,Other Public Bodies,Enable Trust,1588.75, 28-Feb-2020
1290,Revenue,CAHD,Special ISB,Other Public Bodies,Enable Trust,1588.75, 28-Feb-2020
1291,Revenue,CAHD,Special ISB,Other Public Bodies,Enable Trust,1097.03, 28-Feb-2020
1292,Revenue,CAHD,Special ISB,Other Public Bodies,Enable Trust,2042.67, 28-Feb-2020
1293,Revenue,CAHD,Special ISB,Other Public Bodies,Enable Trust,1588.75, 28-Feb-2020
1294,Revenue,CAHD,Special ISB,Other Public Bodies,Enable Trust,1097.03, 28-Feb-2020
1295,Revenue,CAHD,Special ISB,Other Public Bodies,Enable Trust,1588.75, 28-Feb-2020
1296,Revenue,CAHD,Special ISB,Other Public Bodies,Enable Trust,1097.03, 28-Feb-2020
1297,Revenue,CAHD,Special ISB,Other Public Bodies,Enable Trust,1588.75, 28-Feb-2020
1298,Revenue,CAHD,Special ISB,Other Public Bodies,Enable Trust,832.21, 28-Feb-2020
1299,Revenue,CAHD,Special ISB,Other Public Bodies,Enable Trust,2345.27, 28-Feb-2020
1300,Revenue,CAHD,Special ISB,Other Public Bodies,Enable Trust,1097.03, 28-Feb-2020
1301,Revenue,CAHD,Special ISB,Other Public Bodies,Enable Trust,1588.75, 28-Feb-2020
1302,Revenue,CAHD,Special ISB,Other Public Bodies,Enable Trust,6978.39, 28-Feb-2020
1303,Revenue,CAHD,Special ISB,Other Public Bodies,Enable Trust,2042.67, 28-Feb-2020
1304,Revenue,CAHD,Special ISB,Other Public Bodies,Enable Trust,1588.75, 28-Feb-2020
1305,Revenue,CAHD,Special ISB,Other Public Bodies,Enable Trust,1097.03, 28-Feb-2020
1306,Revenue,CAHD,Special ISB,Other Public Bodies,Enable Trust,832.21, 28-Feb-2020
1307,Revenue,CAHD,Special ISB,Other Public Bodies,Enable Trust,1097.03, 28-Feb-2020
1308,Revenue,CAHD,Special ISB,Other Public Bodies,Enable Trust,1097.03, 28-Feb-2020
1309,Revenue,CAHD,Special ISB,Other Public Bodies,Enable Trust,6338.80, 28-Feb-2020
1310,Revenue,CAHD,Special ISB,Other Public Bodies,Enable Trust,3644.81, 28-Feb-2020
1311,Revenue,CAHD,Special ISB,Other Public Bodies,Enable Trust,6775.92, 28-Feb-2020
1312,Revenue,CAHD,Special ISB,Other Public Bodies,Enable Trust,3896.15, 28-Feb-2020
1313,Revenue,CAHD,Schools Specific Grant Income,Other Public Bodies,Enable Trust,630.00, 14-Feb-2020
1314,Revenue,CAHD,Schools Specific Grant Income,Other Public Bodies,Enable Trust,630.00, 14-Feb-2020
1315,Revenue,CAHD,School Grants - Special,Other Public Bodies,Enable Trust,12250.00, 12-Feb-2020
1316,Revenue,CAHD,School Grants - Special,Other Public Bodies,Enable Trust,33947.00, 12-Feb-2020
1317,Revenue,CAHD,Special ISB,Other Public Bodies,Enable Trust,1639.34, 28-Feb-2020
1318,Revenue,CAHD,CSC - Ofsted Work,Agency Staff (Admin/Support Staff) Pay,Individual,1320.00, 26-Feb-2020
1319,Revenue,CAHD,South - Commissioned Services,Other Small Contracts,Epiphany In Care,543.20, 10-Feb-2020
1320,Revenue,CAHD,Central - Commissioned Services,Other Small Contracts,Epiphany In Care,5485.00, 05-Feb-2020
1321,Revenue,CAHD,North - Community based support,Other Small Contracts,Epiphany In Care,4644.08, 13-Feb-2020
1322,Revenue,CAHD,South - Commissioned Services,Other Small Contracts,Epiphany In Care,523.80, 28-Feb-2020
1323,Revenue,CAHD,North - Community based support,Other Small Contracts,Epiphany In Care,4835.20, 10-Feb-2020
1324,Revenue,CAHD,North - Community based support,Other Small Contracts,Epiphany In Care,3663.52, 10-Feb-2020
1325,Revenue,CAHD,North - Community based support,Other Small Contracts,Epiphany In Care,1086.40, 11-Feb-2020
1326,Revenue,CAHD,North - Community based support,Other Small Contracts,Epiphany In Care,1086.40, 11-Feb-2020
1327,Revenue,CAHD,North - Community based support,Other Small Contracts,Epiphany In Care,1086.40, 28-Feb-2020
1328,Revenue,CAHD,South - Commissioned Services,Permanent Nursing,Epworth House,3072.00, 11-Feb-2020
1329,Revenue,CAHD,North - S117,Permanent Residential,Evolve House,9830.40, 11-Feb-2020
1330,Revenue,CAHD,South - bed purchasing and direct  payments,Permanent Residential,Evolve House,4022.64, 11-Feb-2020
1331,Revenue,CAHD,South - Commissioned Services,Permanent Residential,Evolve House,4022.64, 11-Feb-2020
1332,Revenue,CAHD,Placements OLA Special Schools and RB,Other L.A.'s - General,Excalibur Academies Trust T/A,1511.83, 26-Feb-2020
1333,Revenue,CAHD,Schools Specific Grant Income,Other Public Bodies,Excalibur Academies Trust T/A,630.00, 14-Feb-2020
1334,Revenue,CAHD,Homeless - Private Sector Leasing,Prop.Serv. General Repairs,Express Property Services Limited,2881.45, 13-Feb-2020
1335,Revenue,CAHD,Homeless - Private Sector Leasing,Prop.Serv. General Repairs,Express Property Services Limited,1905.80, 24-Feb-2020
1336,Revenue,CAHD,Homeless - Private Sector Leasing,Prop.Serv. General Repairs,Express Property Services Limited,3108.57, 13-Feb-2020
1337,Revenue,CAHD,Extra Care Housing,Private & Voluntary Home Care,Extra Care Charitable Trust,26966.00, 12-Feb-2020
1338,Revenue,CAHD,North - Community based support,Permanent Residential,Eyre Court,3719.16, 11-Feb-2020
1339,Revenue,CAHD,Central - Commissioned Services,Permanent Residential,Eyre Court,4915.20, 11-Feb-2020
1340,Revenue,CAHD,North - Community based support,Permanent Residential,Eyre Court,4800.00, 11-Feb-2020
1341,Revenue,CAHD,North - Community based support,Day Care / Social Activities,Eyre Court,780.00, 11-Feb-2020
1342,Revenue,CAHD,Accreditation and Duke of Edinburgh,Project Funding,FACE,2570.00, 28-Feb-2020
1343,Revenue,CAHD,South - Commissioned Services,Permanent Nursing,Fairview Court,3810.56, 11-Feb-2020
1344,Revenue,CAHD,South Glos Users in South Glos Homes,Permanent Nursing,Fairview Court,662.24, 11-Feb-2020
1345,Revenue,CAHD,South Glos Users in South Glos Homes,Permanent Nursing,Fairview Court,662.24, 11-Feb-2020
1346,Revenue,CAHD,South Glos Users in South Glos Homes,Permanent Nursing,Fairview Court,662.24, 11-Feb-2020
1347,Revenue,CAHD,South - Commissioned Services,Permanent Nursing,Fairview Court,3810.56, 11-Feb-2020
1348,Revenue,CAHD,South Glos Users in South Glos Homes,Permanent Nursing,Fairview Court,662.24, 11-Feb-2020
1349,Revenue,CAHD,Central - Commissioned Services,Permanent Nursing,Fairview Court,4137.76, 11-Feb-2020
1350,Revenue,CAHD,Central - Commissioned Services,Permanent Nursing,Fairview Court,591.11, 11-Feb-2020
1351,Revenue,CAHD,South Glos Users in South Glos Homes,Permanent Nursing,Fairview Court,662.24, 11-Feb-2020
1352,Revenue,CAHD,South Glos Users in South Glos Homes,Permanent Nursing,Fairview Court,662.24, 11-Feb-2020
1353,Revenue,CAHD,South - Commissioned Services,Permanent Nursing,Fairview Court,3547.76, 11-Feb-2020
1354,Revenue,CAHD,South Glos Users in South Glos Homes,Permanent Nursing,Fairview Court,662.24, 11-Feb-2020
1355,Revenue,CAHD,South Glos Users in South Glos Homes,Permanent Nursing,Fairview Court,662.24, 11-Feb-2020
1356,Revenue,CAHD,South Glos Users in South Glos Homes,Permanent Nursing,Fairview Court,662.24, 11-Feb-2020
1357,Revenue,CAHD,South - S117,Permanent Nursing,Fairview Court,4173.84, 11-Feb-2020
1358,Revenue,CAHD,South Glos Users in South Glos Homes,Permanent Nursing,Fairview Court,662.24, 11-Feb-2020
1359,Revenue,CAHD,South Glos Users in South Glos Homes,Permanent Nursing,Fairview Court,662.24, 11-Feb-2020
1360,Revenue,CAHD,South - Commissioned Services,Permanent Nursing,Fairview Court,3382.48, 11-Feb-2020
1361,Revenue,CAHD,South Glos Users in South Glos Homes,Permanent Nursing,Fairview Court,662.24, 11-Feb-2020
1362,Revenue,CAHD,South - bed purchasing and direct  payments,Permanent Nursing,Fairview Court,4078.24, 11-Feb-2020
1363,Revenue,CAHD,South Glos Users in South Glos Homes,Permanent Nursing,Fairview Court,662.24, 11-Feb-2020
1364,Revenue,CAHD,South Glos Users in South Glos Homes,Permanent Nursing,Fairview Court,662.24, 11-Feb-2020
1365,Revenue,CAHD,South Glos Users in South Glos Homes,Permanent Nursing,Fairview Court,662.24, 11-Feb-2020
1366,Revenue,CAHD,South Glos Users in South Glos Homes,Permanent Nursing,Fairview Court,662.24, 11-Feb-2020
1367,Revenue,CAHD,South - Commissioned Services,Permanent Nursing,Fairview Court,4140.00, 11-Feb-2020
1368,Revenue,CAHD,South Glos Users in South Glos Homes,Permanent Nursing,Fairview Court,662.24, 11-Feb-2020
1369,Revenue,CAHD,South - Commissioned Services,Permanent Nursing,Fairview Court,3810.56, 11-Feb-2020
1370,Revenue,CAHD,South Glos Users in South Glos Homes,Permanent Nursing,Fairview Court,662.24, 11-Feb-2020
1371,Revenue,CAHD,South Glos Users in South Glos Homes,Permanent Nursing,Fairview Court,662.24, 11-Feb-2020
1372,Revenue,CAHD,South Glos Users in South Glos Homes,Permanent Nursing,Fairview Court,662.24, 11-Feb-2020
1373,Revenue,CAHD,South Glos Users in South Glos Homes,Permanent Nursing,Fairview Court,662.24, 11-Feb-2020
1374,Revenue,CAHD,South Glos Users in South Glos Homes,Permanent Nursing,Fairview Court,662.24, 11-Feb-2020
1375,Revenue,CAHD,South - Commissioned Services,Respite Emergency - Residential,Fairview Court,3035.71, 11-Feb-2020
1376,Revenue,CAHD,South Glos Users in South Glos Homes,Permanent Nursing,Fairview Court,662.24, 11-Feb-2020
1377,Revenue,CAHD,South Glos Users in South Glos Homes,Permanent Nursing,Fairview Court,662.24, 11-Feb-2020
1378,Revenue,CAHD,South - Commissioned Services,Permanent Residential,Fairview Court,4048.64, 11-Feb-2020
1379,Revenue,CAHD,South Glos Users in South Glos Homes,Permanent Nursing,Fairview Court,662.24, 11-Feb-2020
1380,Revenue,CAHD,South Glos Users in South Glos Homes,Permanent Nursing,Fairview Court,662.24, 11-Feb-2020
1381,Revenue,CAHD,North - Community based support,Permanent Residential,Fairview Court,3256.32, 11-Feb-2020
1382,Revenue,CAHD,South - bed purchasing and direct  payments,Permanent Nursing,Fairview Court,4137.76, 11-Feb-2020
1383,Revenue,CAHD,South - Commissioned Services,Permanent Nursing,Fairview Court,3483.68, 11-Feb-2020
1384,Revenue,CAHD,South Glos Users in South Glos Homes,Permanent Nursing,Fairview Court,662.24, 11-Feb-2020
1385,Revenue,CAHD,North - Community based support,Permanent Nursing,Fairview Court,3810.56, 11-Feb-2020
1386,Revenue,CAHD,South Glos Users in South Glos Homes,Permanent Nursing,Fairview Court,662.24, 11-Feb-2020
1387,Revenue,CAHD,South Glos Users in South Glos Homes,Permanent Nursing,Fairview Court,662.24, 11-Feb-2020
1388,Revenue,CAHD,South - Commissioned Services,Permanent Nursing,Fairview Court,3130.36, 11-Feb-2020
1389,Revenue,CAHD,South Glos Users in South Glos Homes,Permanent Nursing,Fairview Court,662.24, 11-Feb-2020
1390,Revenue,CAHD,South - Commissioned Services,Permanent Nursing,Fairview Court,3810.56, 11-Feb-2020
1391,Revenue,CAHD,South Glos Users in South Glos Homes,Permanent Nursing,Fairview Court,662.24, 11-Feb-2020
1392,Revenue,CAHD,South - Commissioned Services,Permanent Nursing,Fairview Court,3547.76, 11-Feb-2020
1393,Revenue,CAHD,South Glos Users in South Glos Homes,Permanent Nursing,Fairview Court,662.24, 11-Feb-2020
1394,Revenue,CAHD,South - Commissioned Services,Permanent Nursing,Fairview Court,4028.00, 11-Feb-2020
1395,Revenue,CAHD,South Glos Users in South Glos Homes,Permanent Nursing,Fairview Court,2790.87, 11-Feb-2020
1396,Revenue,CAHD,South Glos Users in South Glos Homes,Permanent Nursing,Fairview Court,662.24, 11-Feb-2020
1397,Revenue,CAHD,South Glos Users in South Glos Homes,Permanent Nursing,Fairview Court,662.24, 11-Feb-2020
1398,Revenue,CAHD,South - Commissioned Services,Permanent Nursing,Fairview Court,4137.76, 11-Feb-2020
1399,Revenue,CAHD,South - S117,Permanent Residential,Fairview House,2303.52, 11-Feb-2020
1400,Revenue,CAHD,South - Commissioned Services,Permanent Residential,Fairview House,2303.52, 11-Feb-2020
1401,Revenue,CAHD,South - Commissioned Services,Permanent Residential,Fairview House,3400.00, 11-Feb-2020
1402,Revenue,CAHD,South - Commissioned Services,Permanent Residential,Fairview House,3278.57, 11-Feb-2020
1403,Revenue,CAHD,South - bed purchasing and direct  payments,Permanent Residential,Fairview House,7892.86, 11-Feb-2020
1404,Revenue,CAHD,South - Commissioned Services,Permanent Residential,Fairview House,2230.32, 11-Feb-2020
1405,Revenue,CAHD,North - Community based support,Permanent Residential,Faith House,3297.28, 11-Feb-2020
1406,Revenue,CAHD,Central - Bed Purchasing and Direct Payments,Respite Emergency - Residential,Faith House,1596.43, 11-Feb-2020
1407,Revenue,CAHD,Central - Bed Purchasing and Direct Payments,Respite Emergency - Residential,Faith House,1383.57, 11-Feb-2020
1408,Revenue,CAHD,North - Community based support,Permanent Residential,Faith House,2805.76, 11-Feb-2020
1409,Revenue,CAHD,North - Community based support,Permanent Residential,Faith House,2980.00, 11-Feb-2020
1410,Revenue,CAHD,North - bed purchasing and direct  payments,Fees & Charges Income - General,Faith House,1972.56, 11-Feb-2020
1411,Revenue,CAHD,South - Commissioned Services,Permanent Residential,Faith House,2900.00, 11-Feb-2020
1412,Revenue,CAHD,North - Community based support,Respite Emergency - Residential,Faith House,3000.00, 11-Feb-2020
1413,Revenue,CAHD,Central - Commissioned Services,Permanent Nursing,Festival House,3055.04, 11-Feb-2020
1414,Revenue,CAHD,Central - Commissioned Services,Permanent Residential,Fieldview,3481.60, 11-Feb-2020
1415,Revenue,CAHD,North - Community based support,Respite Emergency - Residential,Fieldview,4950.36, 11-Feb-2020
1416,Revenue,CAHD,North - Community based support,Respite Emergency - Residential,Fieldview,707.19, 11-Feb-2020
1417,Revenue,CAHD,North - Community based support,Permanent Residential,Fieldview,3200.00, 11-Feb-2020
1418,Revenue,CAHD,Central - Bed Purchasing and Direct Payments,Respite Planned - Residential,Fieldview,1578.57, 11-Feb-2020
1419,Revenue,CAHD,MH Purchasing - Younger,Permanent Nursing,Fieldview,5496.52, 11-Feb-2020
1420,Revenue,CAHD,Statemented Support Payments to OLAs,Other L.A.'s - General,Filton Avenue Primary School,1131.84, 25-Feb-2020
1421,Revenue,CAHD,Statemented Support Payments to OLAs,Other L.A.'s - General,Filton Avenue Primary School,1332.27, 25-Feb-2020
1422,Revenue,CAHD,Central - Commissioned Services,Permanent Nursing,First Floor  Lingfield House,2398.00, 11-Feb-2020
1423,Revenue,CAHD,South Glos Users in South Glos Homes,Permanent Nursing,First Floor  Lingfield House,662.24, 11-Feb-2020
1424,Revenue,CAHD,Central - Commissioned Services,Permanent Nursing,First Floor  Lingfield House,2398.00, 11-Feb-2020
1425,Revenue,CAHD,South Glos Users in South Glos Homes,Permanent Nursing,First Floor  Lingfield House,662.24, 11-Feb-2020
1426,Revenue,CAHD,South Glos Users in South Glos Homes,Permanent Nursing,First Floor  Lingfield House,662.24, 11-Feb-2020
1427,Revenue,CAHD,Central - Commissioned Services,Permanent Residential,First Floor  Lingfield House,2764.80, 11-Feb-2020
1428,Revenue,CAHD,Central - Commissioned Services,Permanent Residential,First Floor  Lingfield House,2230.32, 11-Feb-2020
1429,Revenue,CAHD,South Glos Users in South Glos Homes,Permanent Nursing,First Floor  Lingfield House,662.24, 11-Feb-2020
1430,Revenue,CAHD,South Glos Users in South Glos Homes,Permanent Nursing,First Floor  Lingfield House,662.24, 11-Feb-2020
1431,Revenue,CAHD,South Glos Users in South Glos Homes,Permanent Nursing,First Floor  Lingfield House,2459.75, 11-Feb-2020
1432,Revenue,CAHD,South Glos Users in South Glos Homes,Permanent Nursing,First Floor  Lingfield House,662.24, 11-Feb-2020
1433,Revenue,CAHD,South - Commissioned Services,Permanent Residential,First Floor  Lingfield House,2817.36, 11-Feb-2020
1434,Revenue,CAHD,South Glos Users in South Glos Homes,Permanent Nursing,First Floor  Lingfield House,1158.92, 11-Feb-2020
1435,Revenue,CAHD,South Glos Users in South Glos Homes,Permanent Nursing,First Floor  Lingfield House,662.24, 11-Feb-2020
1436,Revenue,CAHD,North - Community based support,Permanent Nursing,First Floor  Lingfield House,2398.00, 11-Feb-2020
1437,Revenue,CAHD,South Glos Users in South Glos Homes,Permanent Nursing,First Floor  Lingfield House,662.24, 11-Feb-2020
1438,Revenue,CAHD,Central - Commissioned Services,Permanent Nursing,First Floor  Lingfield House,2398.00, 11-Feb-2020
1439,Revenue,CAHD,South Glos Users in South Glos Homes,Permanent Nursing,First Floor  Lingfield House,662.24, 11-Feb-2020
1440,Revenue,CAHD,Central - Commissioned Services,Permanent Nursing,First Floor  Lingfield House,2398.00, 11-Feb-2020
1441,Revenue,CAHD,South Glos Users in South Glos Homes,Permanent Nursing,First Floor  Lingfield House,662.24, 11-Feb-2020
1442,Revenue,CAHD,North - Community based support,Permanent Nursing,First Floor  Lingfield House,2398.00, 11-Feb-2020
1443,Revenue,CAHD,South Glos Users in South Glos Homes,Permanent Nursing,First Floor  Lingfield House,662.24, 11-Feb-2020
1444,Revenue,CAHD,Central - Commissioned Services,Permanent Residential,First Floor  Lingfield House,2768.00, 11-Feb-2020
1445,Revenue,CAHD,North - Community based support,Permanent Nursing,First Floor  Lingfield House,2398.00, 11-Feb-2020
1446,Revenue,CAHD,South Glos Users in South Glos Homes,Permanent Nursing,First Floor  Lingfield House,662.24, 11-Feb-2020
1447,Revenue,CAHD,North - Community based support,Permanent Nursing,First Floor  Lingfield House,2398.00, 11-Feb-2020
1448,Revenue,CAHD,South Glos Users in South Glos Homes,Permanent Nursing,First Floor  Lingfield House,662.24, 11-Feb-2020
1449,Revenue,CAHD,South Glos Users in South Glos Homes,Permanent Nursing,First Floor  Lingfield House,662.24, 11-Feb-2020
1450,Revenue,CAHD,Central - Commissioned Services,Permanent Nursing,First Floor  Lingfield House,2471.60, 11-Feb-2020
1451,Revenue,CAHD,South Glos Users in South Glos Homes,Permanent Nursing,First Floor  Lingfield House,662.24, 11-Feb-2020
1452,Revenue,CAHD,North - Community based support,Permanent Nursing,First Floor  Lingfield House,2439.16, 11-Feb-2020
1453,Revenue,CAHD,South Glos Users in South Glos Homes,Permanent Nursing,First Floor  Lingfield House,662.24, 11-Feb-2020
1454,Revenue,CAHD,South Glos Users in South Glos Homes,Permanent Nursing,First Floor  Lingfield House,662.24, 11-Feb-2020
1455,Revenue,CAHD,Central - Commissioned Services,Permanent Nursing,First Floor  Lingfield House,2366.64, 11-Feb-2020
1456,Revenue,CAHD,North - Community based support,Permanent Residential,First Floor  Lingfield House,2439.16, 11-Feb-2020
1457,Revenue,CAHD,South Glos Users in South Glos Homes,Permanent Nursing,First Floor  Lingfield House,662.24, 11-Feb-2020
1458,Revenue,CAHD,South Glos Users in South Glos Homes,Permanent Nursing,First Floor  Lingfield House,662.24, 11-Feb-2020
1459,Revenue,CAHD,South Glos Users in South Glos Homes,Permanent Nursing,First Floor  Lingfield House,662.24, 11-Feb-2020
1460,Revenue,CAHD,Central - Bed Purchasing and Direct Payments,Permanent Nursing,First Floor  Lingfield House,4539.07, 11-Feb-2020
1461,Revenue,CAHD,Central - Bed Purchasing and Direct Payments,Permanent Nursing,First Floor  Lingfield House,2398.00, 11-Feb-2020
1462,Revenue,CAHD,Central - Bed Purchasing and Direct Payments,Fees & Charges Income - General,First Floor  Lingfield House,1057.46, 11-Feb-2020
1463,Revenue,CAHD,Central - Commissioned Services,Permanent Residential,First Floor  Lingfield House,2768.00, 11-Feb-2020
1464,Revenue,CAHD,South - bed purchasing and direct  payments,Permanent Residential,First Floor  Lingfield House,8798.29, 11-Feb-2020
1465,Revenue,CAHD,Central - Commissioned Services,Permanent Residential,First Floor  Lingfield House,2768.00, 11-Feb-2020
1466,Revenue,CAHD,South - bed purchasing and direct  payments,Fees & Charges Income - General,First Floor  Lingfield House,1789.54, 11-Feb-2020
1467,Revenue,CAHD,North - Community based support,Permanent Nursing,First Floor  Lingfield House,2398.00, 11-Feb-2020
1468,Revenue,CAHD,South Glos Users in South Glos Homes,Permanent Nursing,First Floor  Lingfield House,662.24, 11-Feb-2020
1469,Revenue,CAHD,South Glos Users in South Glos Homes,Permanent Nursing,First Floor  Lingfield House,662.24, 11-Feb-2020
1470,Revenue,CAHD,Central - Commissioned Services,Permanent Nursing,First Floor  Lingfield House,2398.00, 11-Feb-2020
1471,Revenue,CAHD,South Glos Users in South Glos Homes,Permanent Nursing,First Floor  Lingfield House,662.24, 11-Feb-2020
1472,Revenue,CAHD,South Glos Users in South Glos Homes,Permanent Nursing,First Floor  Lingfield House,662.24, 11-Feb-2020
1473,Revenue,CAHD,South Glos Users in South Glos Homes,Permanent Nursing,First Floor  Lingfield House,662.24, 11-Feb-2020
1474,Revenue,CAHD,South Glos Users in South Glos Homes,Permanent Nursing,First Floor  Lingfield House,662.24, 11-Feb-2020
1475,Revenue,CAHD,South Glos Users in South Glos Homes,Permanent Nursing,First Floor  Lingfield House,1135.27, 11-Feb-2020
1476,Revenue,CAHD,South Glos Users in South Glos Homes,Permanent Nursing,First Floor  Lingfield House,662.24, 11-Feb-2020
1477,Revenue,CAHD,South Glos Users in South Glos Homes,Permanent Nursing,First Floor  Lingfield House,662.24, 11-Feb-2020
1478,Revenue,CAHD,South - Commissioned Services,Permanent Residential,First Floor  Lingfield House,2768.00, 11-Feb-2020
1479,Revenue,CAHD,Central - Commissioned Services,Permanent Nursing,First Floor  Lingfield House,2311.20, 11-Feb-2020
1480,Revenue,CAHD,South Glos Users in South Glos Homes,Permanent Nursing,First Floor  Lingfield House,662.24, 11-Feb-2020
1481,Revenue,CAHD,North - Community based support,Permanent Nursing,First Floor  Lingfield House,2437.12, 11-Feb-2020
1482,Revenue,CAHD,South Glos Users in South Glos Homes,Permanent Nursing,First Floor  Lingfield House,662.24, 11-Feb-2020
1483,Revenue,CAHD,Central - Commissioned Services,Permanent Nursing,First Floor  Lingfield House,2398.00, 11-Feb-2020
1484,Revenue,CAHD,South Glos Users in South Glos Homes,Permanent Nursing,First Floor  Lingfield House,662.24, 11-Feb-2020
1485,Revenue,CAHD,Central - Commissioned Services,Permanent Residential,First Floor  Lingfield House,2834.44, 11-Feb-2020
1486,Revenue,CAHD,North - Community based support,Permanent Nursing,First Floor  Lingfield House,2398.00, 11-Feb-2020
1487,Revenue,CAHD,South Glos Users in South Glos Homes,Permanent Nursing,First Floor  Lingfield House,662.24, 11-Feb-2020
1488,Revenue,CAHD,North - Community based support,Permanent Nursing,First Floor  Lingfield House,2398.00, 11-Feb-2020
1489,Revenue,CAHD,South Glos Users in South Glos Homes,Permanent Nursing,First Floor  Lingfield House,662.24, 11-Feb-2020
1490,Revenue,CAHD,Central - Commissioned Services,Permanent Nursing,First Floor  Lingfield House,2398.00, 11-Feb-2020
1491,Revenue,CAHD,South Glos Users in South Glos Homes,Permanent Nursing,First Floor  Lingfield House,662.24, 11-Feb-2020
1492,Revenue,CAHD,South Glos Users in South Glos Homes,Permanent Nursing,First Floor  Lingfield House,662.24, 11-Feb-2020
1493,Revenue,CAHD,North - Community based support,Permanent Nursing,First Floor  Lingfield House,2356.60, 11-Feb-2020
1494,Revenue,CAHD,South Glos Users in South Glos Homes,Permanent Nursing,First Floor  Lingfield House,662.24, 11-Feb-2020
1495,Revenue,CAHD,North - Community based support,Permanent Nursing,First Floor  Lingfield House,2471.44, 11-Feb-2020
1496,Revenue,CAHD,South Glos Users in South Glos Homes,Permanent Nursing,First Floor  Lingfield House,662.24, 11-Feb-2020
1497,Revenue,CAHD,Central - Commissioned Services,Permanent Nursing,First Floor  Lingfield House,2486.12, 11-Feb-2020
1498,Revenue,CAHD,South Glos Users in South Glos Homes,Permanent Nursing,First Floor  Lingfield House,662.24, 11-Feb-2020
1499,Revenue,CAHD,North - Community based support,Permanent Residential,First Floor  Lingfield House,3400.00, 11-Feb-2020
1500,Revenue,CAHD,South Glos Users in South Glos Homes,Permanent Nursing,First Floor  Lingfield House,662.24, 11-Feb-2020
1501,Revenue,CAHD,Central - Commissioned Services,Permanent Nursing,First Floor  Lingfield House,3200.00, 11-Feb-2020
1502,Revenue,CAHD,South Glos Users in South Glos Homes,Permanent Nursing,First Floor  Lingfield House,662.24, 11-Feb-2020
1503,Revenue,CAHD,North - Community based support,Permanent Nursing,First Floor  Lingfield House,2398.00, 11-Feb-2020
1504,Revenue,CAHD,South Glos Users in South Glos Homes,Permanent Nursing,First Floor  Lingfield House,662.24, 11-Feb-2020
1505,Revenue,CAHD,Central - Commissioned Services,Permanent Nursing,First Floor  Lingfield House,3234.72, 11-Feb-2020
1506,Revenue,CAHD,South Glos Users in South Glos Homes,Permanent Nursing,First Floor  Lingfield House,662.24, 11-Feb-2020
1507,Revenue,CAHD,Central - Commissioned Services,Permanent Nursing,First Floor  Lingfield House,3472.44, 11-Feb-2020
1508,Revenue,CAHD,South Glos Users in South Glos Homes,Permanent Nursing,First Floor  Lingfield House,662.24, 11-Feb-2020
1509,Revenue,CAHD,South Glos Users in South Glos Homes,Permanent Nursing,First Floor  Lingfield House,662.24, 11-Feb-2020
1510,Revenue,CAHD,South Glos Users in South Glos Homes,Permanent Nursing,First Floor  Lingfield House,662.24, 11-Feb-2020
1511,Revenue,CAHD,Central - Commissioned Services,Permanent Nursing,First Floor  Lingfield House,2937.76, 11-Feb-2020
1512,Revenue,CAHD,Central - Commissioned Services,Permanent Nursing,First Floor  Lingfield House,2837.76, 11-Feb-2020
1513,Revenue,CAHD,South Glos Users in South Glos Homes,Permanent Nursing,First Floor  Lingfield House,662.24, 11-Feb-2020
1514,Revenue,CAHD,Central - Commissioned Services,Permanent Nursing,First Floor  Lingfield House,1114.83, 11-Feb-2020
1515,Revenue,CAHD,Central - Commissioned Services,Permanent Nursing,First Floor  Lingfield House,2731.36, 11-Feb-2020
1516,Revenue,CAHD,South Glos Users in South Glos Homes,Permanent Nursing,First Floor  Lingfield House,662.24, 11-Feb-2020
1517,Revenue,CAHD,Central - Commissioned Services,Permanent Nursing,First Floor  Lingfield House,2803.48, 11-Feb-2020
1518,Revenue,CAHD,South Glos Users in South Glos Homes,Permanent Nursing,First Floor  Lingfield House,662.24, 11-Feb-2020
1519,Revenue,CAHD,South Glos Users in South Glos Homes,Permanent Nursing,First Floor  Lingfield House,662.24, 11-Feb-2020
1520,Revenue,CAHD,Central - Commissioned Services,Permanent Nursing,First Floor  Lingfield House,2997.60, 11-Feb-2020
1521,Revenue,CAHD,South Glos Users in South Glos Homes,Permanent Nursing,First Floor  Lingfield House,662.24, 11-Feb-2020
1522,Revenue,CAHD,South Glos Users in South Glos Homes,Permanent Nursing,First Floor  Lingfield House,662.24, 11-Feb-2020
1523,Revenue,CAHD,Central - Commissioned Services,Permanent Nursing,First Floor  Lingfield House,2833.76, 11-Feb-2020
1524,Revenue,CAHD,South Glos Users in South Glos Homes,Permanent Nursing,First Floor  Lingfield House,662.24, 11-Feb-2020
1525,Revenue,CAHD,Central - Bed Purchasing and Direct Payments,Permanent Residential,First Floor  Lingfield House,2948.04, 11-Feb-2020
1526,Revenue,CAHD,North - Community based support,Permanent Nursing,First Floor  Lingfield House,2587.56, 11-Feb-2020
1527,Revenue,CAHD,South Glos Users in South Glos Homes,Permanent Nursing,First Floor  Lingfield House,662.24, 11-Feb-2020
1528,Revenue,CAHD,South Glos Users in South Glos Homes,Permanent Nursing,First Floor  Lingfield House,662.24, 11-Feb-2020
1529,Revenue,CAHD,South Glos Users in South Glos Homes,Permanent Nursing,First Floor  Lingfield House,662.24, 11-Feb-2020
1530,Revenue,CAHD,South Glos Users in South Glos Homes,Permanent Nursing,First Floor  Lingfield House,662.24, 11-Feb-2020
1531,Revenue,CAHD,South Glos Users in South Glos Homes,Permanent Nursing,First Floor  Lingfield House,662.24, 11-Feb-2020
1532,Revenue,CAHD,South Glos Users in South Glos Homes,Permanent Nursing,First Floor  Lingfield House,662.24, 11-Feb-2020
1533,Revenue,CAHD,South Glos Users in South Glos Homes,Permanent Nursing,First Floor  Lingfield House,662.24, 11-Feb-2020
1534,Revenue,CAHD,Central - Commissioned Services,Permanent Nursing,First Floor  Lingfield House,2471.44, 11-Feb-2020
1535,Revenue,CAHD,South Glos Users in South Glos Homes,Permanent Nursing,First Floor  Lingfield House,662.24, 11-Feb-2020
1536,Revenue,CAHD,Central - Commissioned Services,Permanent Nursing,First Floor  Lingfield House,3038.56, 11-Feb-2020
1537,Revenue,CAHD,South Glos Users in South Glos Homes,Permanent Nursing,First Floor  Lingfield House,662.24, 11-Feb-2020
1538,Revenue,CAHD,North - Community based support,Permanent Nursing,First Floor  Lingfield House,2834.20, 11-Feb-2020
1539,Revenue,CAHD,South Glos Users in South Glos Homes,Permanent Nursing,First Floor  Lingfield House,662.24, 11-Feb-2020
1540,Revenue,CAHD,South Glos Users in South Glos Homes,Permanent Nursing,First Floor  Lingfield House,662.24, 11-Feb-2020
1541,Revenue,CAHD,Central - Commissioned Services,Permanent Nursing,First Floor  Lingfield House,3234.72, 11-Feb-2020
1542,Revenue,CAHD,South Glos Users in South Glos Homes,Permanent Nursing,First Floor  Lingfield House,662.24, 11-Feb-2020
1543,Revenue,CAHD,North - Community based support,Permanent Nursing,First Floor  Lingfield House,2515.48, 11-Feb-2020
1544,Revenue,CAHD,South Glos Users in South Glos Homes,Permanent Nursing,First Floor  Lingfield House,662.24, 11-Feb-2020
1545,Revenue,CAHD,North - Community based support,Permanent Nursing,First Floor  Lingfield House,1257.74, 11-Feb-2020
1546,Revenue,CAHD,South - Commissioned Services,Permanent Nursing,First Floor  Lingfield House,2616.12, 11-Feb-2020
1547,Revenue,CAHD,South Glos Users in South Glos Homes,Permanent Nursing,First Floor  Lingfield House,662.24, 11-Feb-2020
1548,Revenue,CAHD,Central - Commissioned Services,Permanent Nursing,First Floor  Lingfield House,2471.44, 11-Feb-2020
1549,Revenue,CAHD,South Glos Users in South Glos Homes,Permanent Nursing,First Floor  Lingfield House,662.24, 11-Feb-2020
1550,Revenue,CAHD,South - Commissioned Services,Permanent Nursing,First Floor  Lingfield House,3243.36, 11-Feb-2020
1551,Revenue,CAHD,South - Commissioned Services,Permanent Nursing,First Floor  Lingfield House,3011.69, 11-Feb-2020
1552,Revenue,CAHD,South Glos Users in South Glos Homes,Permanent Nursing,First Floor  Lingfield House,662.24, 11-Feb-2020
1553,Revenue,CAHD,South - Commissioned Services,Permanent Nursing,First Floor  Lingfield House,2608.68, 11-Feb-2020
1554,Revenue,CAHD,South Glos Users in South Glos Homes,Permanent Nursing,First Floor  Lingfield House,662.24, 11-Feb-2020
1555,Revenue,CAHD,South - Commissioned Services,Permanent Nursing,First Floor  Lingfield House,2504.28, 11-Feb-2020
1556,Revenue,CAHD,South Glos Users in South Glos Homes,Permanent Nursing,First Floor  Lingfield House,662.24, 11-Feb-2020
1557,Revenue,CAHD,South Glos Users in South Glos Homes,Permanent Nursing,First Floor  Lingfield House,662.24, 11-Feb-2020
1558,Revenue,CAHD,South - Commissioned Services,Permanent Residential,First Floor  Lingfield House,2662.40, 11-Feb-2020
1559,Revenue,CAHD,South - bed purchasing and direct  payments,Permanent Nursing,First Floor  Lingfield House,2421.92, 11-Feb-2020
1560,Revenue,CAHD,South Glos Users in South Glos Homes,Permanent Nursing,First Floor  Lingfield House,662.24, 11-Feb-2020
1561,Revenue,CAHD,South - Commissioned Services,Permanent Residential,First Floor  Lingfield House,2399.96, 11-Feb-2020
1562,Revenue,CAHD,South - Commissioned Services,Permanent Nursing,First Floor  Lingfield House,2421.92, 11-Feb-2020
1563,Revenue,CAHD,South Glos Users in South Glos Homes,Permanent Nursing,First Floor  Lingfield House,662.24, 11-Feb-2020
1564,Revenue,CAHD,South Glos Users in South Glos Homes,Permanent Nursing,First Floor  Lingfield House,662.24, 11-Feb-2020
1565,Revenue,CAHD,South - Commissioned Services,Permanent Nursing,First Floor  Lingfield House,2398.00, 11-Feb-2020
1566,Revenue,CAHD,South Glos Users in South Glos Homes,Permanent Nursing,First Floor  Lingfield House,662.24, 11-Feb-2020
1567,Revenue,CAHD,South - Commissioned Services,Permanent Residential,First Floor  Lingfield House,2303.60, 11-Feb-2020
1568,Revenue,CAHD,North - Community based support,Permanent Nursing,First Floor  Lingfield House,2401.84, 11-Feb-2020
1569,Revenue,CAHD,North - Community based support,Permanent Residential,First Floor  Lingfield House,2174.20, 11-Feb-2020
1570,Revenue,CAHD,Central - Commissioned Services,Respite Planned - Residential,First Floor  Lingfield House,2275.21, 11-Feb-2020
1571,Revenue,CAHD,Central - Commissioned Services,Permanent Nursing,First Floor  Lingfield House,4173.84, 11-Feb-2020
1572,Revenue,CAHD,Central - Commissioned Services,Respite Emergency - Residential,First Floor  Lingfield House,2374.20, 11-Feb-2020
1573,Revenue,CAHD,Central - Commissioned Services,Respite Emergency - Residential,First Floor  Lingfield House,847.93, 11-Feb-2020
1574,Revenue,CAHD,North - Community based support,Permanent Nursing,First Floor  Lingfield House,2657.80, 11-Feb-2020
1575,Revenue,CAHD,CSC - Agency Fostering,Foster Parent Allowances,Five Rivers Child Care Limited,1696.50, 04-Feb-2020
1576,Revenue,CAHD,CSC - Agency Fostering,Foster Parent Allowances,Five Rivers Child Care Limited,2340.00, 04-Feb-2020
1577,Revenue,CAHD,CSC - Agency Fostering,Foster Parent Allowances,Foster Care Associates Limited,3865.12, 19-Feb-2020
1578,Revenue,CAHD,CSC - Agency Fostering,Foster Parent Allowances,Foster Care Associates Limited,3769.91, 14-Feb-2020
1579,Revenue,CAHD,CSC - Agency Fostering,Foster Parent Allowances,Foster Care Associates Limited,3627.00, 14-Feb-2020
1580,Revenue,CAHD,Training Budget - Children`s Social Serv,Training Expenses,Fostering Network,1200.00, 27-Feb-2020
1581,Revenue,CAHD,CSC - Parent & Child Assessments,Foster Parent Allowances,Fostering Solutions Limited,2665.63, 27-Feb-2020
1582,Revenue,CAHD,CSC - Parent & Child Assessments,Foster Parent Allowances,Fostering Solutions Limited,7512.23, 28-Feb-2020
1583,Revenue,CAHD,CSC - Parent & Child Assessments,Foster Parent Allowances,Fostering Solutions Limited,4922.84, 28-Feb-2020
1584,Revenue,CAHD,CSC - Parent & Child Assessments,Foster Parent Allowances,Fostering Solutions Limited,7512.23, 27-Feb-2020
1585,Revenue,CAHD,Central - Commissioned Services,Other Small Contracts,Fourways Care Limited,324.00, 06-Feb-2020
1586,Revenue,CAHD,South - Commissioned Services,Other Small Contracts,Fourways Care Limited,271.68, 06-Feb-2020
1587,Revenue,CAHD,North - Community based support,Day Care / Social Activities,Fourways Care Limited,87.84, 06-Feb-2020
1588,Revenue,CAHD,North - Community based support,Other Small Contracts,Fourways Care Limited,12027.84, 06-Feb-2020
1589,Revenue,CAHD,Central - Commissioned Services,Other Small Contracts,Fourways Care Limited,318.00, 06-Feb-2020
1590,Revenue,CAHD,South - Commissioned Services,Other Small Contracts,Fourways Care Limited,271.68, 06-Feb-2020
1591,Revenue,CAHD,North - Community based support,Day Care / Social Activities,Fourways Care Limited,87.84, 06-Feb-2020
1592,Revenue,CAHD,North - Community based support,Other Small Contracts,Fourways Care Limited,11902.08, 06-Feb-2020
1593,Revenue,CAHD,Central - Commissioned Services,Other Small Contracts,Fourways Care Limited,294.00, 11-Feb-2020
1594,Revenue,CAHD,South - Commissioned Services,Other Small Contracts,Fourways Care Limited,213.12, 11-Feb-2020
1595,Revenue,CAHD,North - Community based support,Day Care / Social Activities,Fourways Care Limited,92.72, 11-Feb-2020
1596,Revenue,CAHD,North - Community based support,Other Small Contracts,Fourways Care Limited,11636.72, 11-Feb-2020
1597,Revenue,CAHD,Central - Commissioned Services,Other Small Contracts,Fourways Care Limited,318.00, 18-Feb-2020
1598,Revenue,CAHD,South - Commissioned Services,Other Small Contracts,Fourways Care Limited,281.44, 18-Feb-2020
1599,Revenue,CAHD,North - Community based support,Day Care / Social Activities,Fourways Care Limited,87.84, 18-Feb-2020
1600,Revenue,CAHD,North - Community based support,Other Small Contracts,Fourways Care Limited,12067.68, 18-Feb-2020
1601,Revenue,CAHD,Central - Commissioned Services,Other Small Contracts,Fourways Care Limited,318.00, 26-Feb-2020
1602,Revenue,CAHD,South - Commissioned Services,Other Small Contracts,Fourways Care Limited,218.00, 26-Feb-2020
1603,Revenue,CAHD,North - Community based support,Day Care / Social Activities,Fourways Care Limited,92.72, 26-Feb-2020
1604,Revenue,CAHD,North - Community based support,Other Small Contracts,Fourways Care Limited,12157.36, 26-Feb-2020
1605,Revenue,CAHD,Supporting People Programme,Grants to Voluntary Bodies,Freeways Trust Limited,3265.00, 28-Feb-2020
1606,Revenue,CAHD,Central - Commissioned Services,Permanent Residential,Freeways Trust Limited,5241.32, 11-Feb-2020
1607,Revenue,CAHD,Central - Commissioned Services,Permanent Residential,Freeways Trust Limited,4374.80, 11-Feb-2020
1608,Revenue,CAHD,Central - Commissioned Services,Permanent Residential,Freeways Trust Limited,5051.28, 11-Feb-2020
1609,Revenue,CAHD,Central - Commissioned Services,Permanent Residential,Freeways Trust Limited,5297.88, 11-Feb-2020
1610,Revenue,CAHD,South - Commissioned Services,Permanent Residential,Freeways Trust Limited,4345.04, 11-Feb-2020
1611,Revenue,CAHD,Central - Commissioned Services,Permanent Residential,Freeways Trust Limited,3928.00, 11-Feb-2020
1612,Revenue,CAHD,Central - Commissioned Services,Permanent Residential,Freeways Trust Limited,5268.28, 11-Feb-2020
1613,Revenue,CAHD,Central - Commissioned Services,Permanent Residential,Freeways Trust Limited,5874.44, 11-Feb-2020
1614,Revenue,CAHD,North - Community based support,Supported Living,Freeways Trust Ltd,845.52, 11-Feb-2020
1615,Revenue,CAHD,S28A cases,Permanent Residential,Freeways Trust Ltd,3886.64, 11-Feb-2020
1616,Revenue,CAHD,North - Community based support,Permanent Residential,Freeways Trust Ltd,3763.40, 11-Feb-2020
1617,Revenue,CAHD,South - Commissioned Services,Permanent Residential,Freeways Trust Ltd,3991.40, 11-Feb-2020
1618,Revenue,CAHD,North - Community based support,Permanent Residential,Freeways Trust Ltd,3301.04, 11-Feb-2020
1619,Revenue,CAHD,North - Community based support,Permanent Residential,Freeways Trust Ltd,3381.20, 11-Feb-2020
1620,Revenue,CAHD,North - Community based support,Permanent Residential,Freeways Trust Ltd,3984.12, 11-Feb-2020
1621,Revenue,CAHD,18-25 Year Olds,Permanent Residential,Freeways Trust Ltd,3680.48, 11-Feb-2020
1622,Revenue,CAHD,Section 117 Placements MH Younger,Permanent Residential,Freeways Trust Ltd,3339.04, 11-Feb-2020
1623,Revenue,CAHD,North - Community based support,Permanent Residential,Freeways Trust Ltd,9432.57, 11-Feb-2020
1624,Revenue,CAHD,North - Community based support,Permanent Residential,Freeways Trust Ltd,3884.00, 11-Feb-2020
1625,Revenue,CAHD,Central - Commissioned Services,Day Care / Social Activities,Frenchay Beckspool Building,1895.60, 11-Feb-2020
1626,Revenue,CAHD,South - Commissioned Services,Day Care / Social Activities,Frenchay Beckspool Building,902.40, 11-Feb-2020
1627,Revenue,CAHD,South - Commissioned Services,Day Care / Social Activities,Frenchay Beckspool Building,640.08, 11-Feb-2020
1628,Revenue,CAHD,Pathway 3 - (Complex Beds),Permanent Nursing,Frenchay House,3343.00, 24-Feb-2020
1629,Revenue,CAHD,North - Community based support,Permanent Nursing,Frenchay Park Nursing Home,3481.60, 11-Feb-2020
1630,Revenue,CAHD,Central - Commissioned Services,Permanent Nursing,Frenchay Park Nursing Home,3400.00, 11-Feb-2020
1631,Revenue,CAHD,Sexual Health,Other Small Contracts,Frome Valley Medical Centre,1932.00, 14-Feb-2020
1632,Revenue,CAHD,Drug and Alcohol Programme,Other Small Contracts,Frome Valley Medical Centre,609.00, 13-Feb-2020
1633,Revenue,CAHD,Sexual Health,Other Small Contracts,Frome Valley Medical Centre,2033.76, 14-Feb-2020
1634,Revenue,CAHD,NHS Health Checks,Other Small Contracts,Frome Valley Medical Centre,3266.00, 14-Feb-2020
1635,Revenue,CAHD,CSC - Social Work Team - SOUTH,Agency Staff (Admin/Support Staff) Pay,Frontline Staffing Ltd,959.20, 10-Feb-2020
1636,Revenue,CAHD,CSC - Through & Leaving Care Team,Agency Staff (Admin/Support Staff) Pay,Frontline Staffing Ltd,1263.33, 12-Feb-2020
1637,Revenue,CAHD,CSC - Social Work Team - CENTRAL,Agency Staff (Admin/Support Staff) Pay,Frontline Staffing Ltd,1122.96, 12-Feb-2020
1638,Revenue,CAHD,CSC - Social Work Team - NORTH,Agency Staff (Admin/Support Staff) Pay,Frontline Staffing Ltd,1473.89, 12-Feb-2020
1639,Revenue,CAHD,CSC - Through & Leaving Care Team,Agency Staff (Admin/Support Staff) Pay,Frontline Staffing Ltd,1778.02, 03-Feb-2020
1640,Revenue,CAHD,CSC - Through & Leaving Care Team,Agency Staff (Admin/Support Staff) Pay,Frontline Staffing Ltd,1778.02, 03-Feb-2020
1641,Revenue,CAHD,CSC - Social Work Team - CENTRAL,Agency Staff (Admin/Support Staff) Pay,Frontline Staffing Ltd,1380.31, 03-Feb-2020
1642,Revenue,CAHD,CSC - Social Work Team - CENTRAL,Agency Staff (Admin/Support Staff) Pay,Frontline Staffing Ltd,1497.28, 03-Feb-2020
1643,Revenue,CAHD,CSC - Through & Leaving Care Team,Agency Staff (Admin/Support Staff) Pay,Frontline Staffing Ltd,1731.23, 05-Feb-2020
1644,Revenue,CAHD,CSC - Social Work Team - CENTRAL,Agency Staff (Admin/Support Staff) Pay,Frontline Staffing Ltd,1661.05, 10-Feb-2020
1645,Revenue,CAHD,CSC - Social Work Team - CENTRAL,Agency Staff (Admin/Support Staff) Pay,Frontline Staffing Ltd,1871.60, 12-Feb-2020
1646,Revenue,CAHD,CSC - Through & Leaving Care Team,Agency Staff (Admin/Support Staff) Pay,Frontline Staffing Ltd,1778.02, 17-Feb-2020
1647,Revenue,CAHD,CSC - Through & Leaving Care Team,Agency Staff (Admin/Support Staff) Pay,Frontline Staffing Ltd,1778.02, 18-Feb-2020
1648,Revenue,CAHD,CSC - Social Work Team - CENTRAL,Agency Staff (Admin/Support Staff) Pay,Frontline Staffing Ltd,1403.70, 19-Feb-2020
1649,Revenue,CAHD,CSC - Social Work Team - CENTRAL,Agency Staff (Admin/Support Staff) Pay,Frontline Staffing Ltd,1871.60, 19-Feb-2020
1650,Revenue,CAHD,CSC - Social Work Team - SOUTH,Agency Staff (Admin/Support Staff) Pay,Frontline Staffing Ltd,1871.60, 21-Feb-2020
1651,Revenue,CAHD,CSC - Social Work Team - SOUTH,Agency Staff (Admin/Support Staff) Pay,Frontline Staffing Ltd,1871.60, 21-Feb-2020
1652,Revenue,CAHD,CSC - Social Work Team - SOUTH,Agency Staff (Admin/Support Staff) Pay,Frontline Staffing Ltd,1871.60, 21-Feb-2020
1653,Revenue,CAHD,CSC - Through & Leaving Care Team,Agency Staff (Admin/Support Staff) Pay,Frontline Staffing Ltd,1778.02, 26-Feb-2020
1654,Revenue,CAHD,CSC - Social Work Team - CENTRAL,Agency Staff (Admin/Support Staff) Pay,Frontline Staffing Ltd,1684.44, 25-Feb-2020
1655,Revenue,CAHD,CSC - Social Work Team - CENTRAL,Agency Staff (Admin/Support Staff) Pay,Frontline Staffing Ltd,1497.28, 25-Feb-2020
1656,Revenue,CAHD,CSC - Agency Fostering,Foster Parent Allowances,Fusion Fostering Ltd,3937.50, 25-Feb-2020
1657,Revenue,CAHD,CSC - Asylum Seekers - Unaccompanied,Foster Parent Allowances,Fusion Fostering Ltd,3185.86, 25-Feb-2020
1658,Revenue,CAHD,CSC - Vinney Green Secure Unit,Other Supplies & Services,Gary Thomas Films,950.00, 06-Feb-2020
1659,Revenue,CAHD,Alexandra Way,Premises Maintenance by Contractor,George Grimes,1700.00, 28-Feb-2020
1660,Revenue,CAHD,Alexandra Way,Premises Maintenance by Contractor,George Grimes,2110.00, 13-Feb-2020
1661,Revenue,CAHD,North - Community based support,Supported Living,Gladstone House,3174.16, 11-Feb-2020
1662,Revenue,CAHD,18-25 Year Olds,Supported Living,Gladstone House,3174.16, 11-Feb-2020
1663,Revenue,CAHD,South - Commissioned Services,Permanent Residential,Gladstone House,5999.84, 11-Feb-2020
1664,Revenue,CAHD,Jointly Funded H&SC Packages,Permanent Residential,Gladstone House,783.98, 11-Feb-2020
1665,Revenue,CAHD,MH Purchasing - Younger,Permanent Residential,Gladstone House,3135.90, 11-Feb-2020
1666,Revenue,CAHD,North - Community based support,Permanent Residential,Glan Y Felin,6803.40, 11-Feb-2020
1667,Revenue,CAHD,South - Commissioned Services,Permanent Residential,Glasallt Fawr,5344.40, 11-Feb-2020
1668,Revenue,CAHD,North - Community based support,Permanent Nursing,Glebe House Nursing Home,3664.16, 11-Feb-2020
1669,Revenue,CAHD,South Glos Users in South Glos Homes,Permanent Nursing,Glebe House Nursing Home,662.24, 11-Feb-2020
1670,Revenue,CAHD,North - Community based support,Permanent Nursing,Glebe House Nursing Home,3973.12, 11-Feb-2020
1671,Revenue,CAHD,South Glos Users in South Glos Homes,Permanent Nursing,Glebe House Nursing Home,662.24, 11-Feb-2020
1672,Revenue,CAHD,South Glos Users in South Glos Homes,Permanent Nursing,Glebe House Nursing Home,662.24, 11-Feb-2020
1673,Revenue,CAHD,South Glos Users in South Glos Homes,Permanent Nursing,Glebe House Nursing Home,662.24, 11-Feb-2020
1674,Revenue,CAHD,South Glos Users in South Glos Homes,Permanent Nursing,Glebe House Nursing Home,662.24, 11-Feb-2020
1675,Revenue,CAHD,South Glos Users in South Glos Homes,Permanent Nursing,Glebe House Nursing Home,662.24, 11-Feb-2020
1676,Revenue,CAHD,North - Community based support,Permanent Residential,Glebe House Nursing Home,3785.04, 11-Feb-2020
1677,Revenue,CAHD,South Glos Users in South Glos Homes,Permanent Nursing,Glebe House Nursing Home,662.24, 11-Feb-2020
1678,Revenue,CAHD,North - Community based support,Permanent Residential,Glebe House Nursing Home,3833.84, 11-Feb-2020
1679,Revenue,CAHD,North - Community based support,Permanent Nursing,Glebe House Nursing Home,4080.00, 11-Feb-2020
1680,Revenue,CAHD,South Glos Users in South Glos Homes,Permanent Nursing,Glebe House Nursing Home,662.24, 11-Feb-2020
1681,Revenue,CAHD,South Glos Users in South Glos Homes,Permanent Nursing,Glebe House Nursing Home,662.24, 11-Feb-2020
1682,Revenue,CAHD,North - Community based support,Permanent Nursing,Glebe House Nursing Home,4048.60, 11-Feb-2020
1683,Revenue,CAHD,South Glos Users in South Glos Homes,Permanent Nursing,Glebe House Nursing Home,662.24, 11-Feb-2020
1684,Revenue,CAHD,Central - Commissioned Services,Permanent Residential,Glebe House Nursing Home,3980.00, 11-Feb-2020
1685,Revenue,CAHD,South Glos Users in South Glos Homes,Permanent Nursing,Glebe House Nursing Home,662.24, 11-Feb-2020
1686,Revenue,CAHD,North - Community based support,Permanent Nursing,Glebe House Nursing Home,4742.24, 11-Feb-2020
1687,Revenue,CAHD,North - Community based support,Permanent Nursing,Glebe House Nursing Home,2540.49, 11-Feb-2020
1688,Revenue,CAHD,South Glos Users in South Glos Homes,Permanent Nursing,Glebe House Nursing Home,662.24, 11-Feb-2020
1689,Revenue,CAHD,South Glos Users in South Glos Homes,Permanent Nursing,Glebe House Nursing Home,662.24, 11-Feb-2020
1690,Revenue,CAHD,North - Community based support,Permanent Nursing,Glebe House Nursing Home,3960.16, 11-Feb-2020
1691,Revenue,CAHD,South Glos Users in South Glos Homes,Permanent Nursing,Glebe House Nursing Home,662.24, 11-Feb-2020
1692,Revenue,CAHD,South Glos Users in South Glos Homes,Permanent Nursing,Glebe House Nursing Home,1040.66, 11-Feb-2020
1693,Revenue,CAHD,North - Community based support,Fees & Charges Income - General,Glebe House Nursing Home,11365.29, 11-Feb-2020
1694,Revenue,CAHD,North - Community based support,Permanent Residential,Glebe House Nursing Home,5051.24, 11-Feb-2020
1695,Revenue,CAHD,North - Community based support,Permanent Residential,Glebe House Nursing Home,26519.01, 11-Feb-2020
1696,Revenue,CAHD,North - Community based support,Permanent Nursing,Glebe House Nursing Home,3502.08, 11-Feb-2020
1697,Revenue,CAHD,South Glos Users in South Glos Homes,Permanent Nursing,Glebe House Nursing Home,662.24, 11-Feb-2020
1698,Revenue,CAHD,Central - Bed Purchasing and Direct Payments,Permanent Nursing,Glebe House Nursing Home,9742.86, 11-Feb-2020
1699,Revenue,CAHD,Central - Commissioned Services,Permanent Nursing,Glebe House Nursing Home,4400.00, 11-Feb-2020
1700,Revenue,CAHD,Central - Commissioned Services,Permanent Nursing,Glebe House Nursing Home,2200.00, 11-Feb-2020
1701,Revenue,CAHD,Central - Bed Purchasing and Direct Payments,Fees & Charges Income - General,Glebe House Nursing Home,1240.48, 11-Feb-2020
1702,Revenue,CAHD,Central - Commissioned Services,Permanent Nursing,Glenview Care Home,3224.00, 11-Feb-2020
1703,Revenue,CAHD,South - Commissioned Services,Permanent Nursing,Glenview Care Home,2891.76, 11-Feb-2020
1704,Revenue,CAHD,North - S117,Permanent Nursing,Glenview Care Home,3301.36, 11-Feb-2020
1705,Revenue,CAHD,North - Community based support,Permanent Nursing,Glenview Care Home,2072.57, 11-Feb-2020
1706,Revenue,CAHD,North - Community based support,Permanent Nursing,Glenview Care Home,1151.43, 11-Feb-2020
1707,Revenue,CAHD,South - Commissioned Services,Permanent Nursing,Glenview Care Home,3993.60, 11-Feb-2020
1708,Revenue,CAHD,North - Community based support,Permanent Nursing,Glenview Care Home,2891.76, 11-Feb-2020
1709,Revenue,CAHD,Training - Adult Services,Training Expenses,Gloucestershire Deaf Association,650.00, 28-Feb-2020
1710,Revenue,CAHD,Sexual Health,Other Small Contracts,Gloucestershire Health & Care Services NHS FT,823.33, 11-Feb-2020
1711,Revenue,CAHD,Sexual Health,Other Small Contracts,Gloucestershire Health & Care Services NHS FT,540.85, 11-Feb-2020
1712,Revenue,CAHD,Sexual Health,Other Small Contracts,Gloucestershire Health & Care Services NHS FT,595.10, 10-Feb-2020
1713,Revenue,CAHD,South - Commissioned Services,Permanent Residential,Gordena Care Home,4018.92, 11-Feb-2020
1714,Revenue,CAHD,North - S117,Permanent Residential,Gordena Care Home,1059.81, 11-Feb-2020
1715,Revenue,CAHD,South - Commissioned Services,Permanent Residential,Gordena Care Home,2736.12, 11-Feb-2020
1716,Revenue,CAHD,South - Commissioned Services,Permanent Residential,Gordena Care Home,3895.40, 11-Feb-2020
1717,Revenue,CAHD,South - Commissioned Services,Permanent Residential,Gordena Care Home,3907.28, 11-Feb-2020
1718,Revenue,CAHD,18-25 Year Olds,Supported Living,Granville House,1902.56, 11-Feb-2020
1719,Revenue,CAHD,18-25 Year Olds,Supported Living,Granville House,1426.92, 11-Feb-2020
1720,Revenue,CAHD,South - Commissioned Services,Supported Living,Granville House,1903.12, 11-Feb-2020
1721,Revenue,CAHD,South - Commissioned Services,Supported Living,Granville House,1902.28, 11-Feb-2020
1722,Revenue,CAHD,CSC - Residential Placements,Permanent Residential,Greenfields Adolecent Development Limited,26527.14, 28-Feb-2020
1723,Revenue,CAHD,Academy Resource Base Funding,Other Public Bodies,Greenshaw Learning Trust T/A Woodlands Primary,605.19, 28-Feb-2020
1724,Revenue,CAHD,Academy Resource Base Funding,Other Public Bodies,Greenshaw Learning Trust T/A Woodlands Primary,1097.03, 28-Feb-2020
1725,Revenue,CAHD,Academy Resource Base Funding,Other Public Bodies,Greenshaw Learning Trust T/A Woodlands Primary,646.92, 28-Feb-2020
1726,Revenue,CAHD,Academy Resource Base Funding,Other Public Bodies,Greenshaw Learning Trust T/A Woodlands Primary,1172.68, 28-Feb-2020
1727,Revenue,CAHD,Statemented Support Academies,Other Public Bodies,Greenshaw Learning Trust T/A Woodlands Primary,774.50, 28-Feb-2020
1728,Revenue,CAHD,Academy Resource Base Funding,Other Public Bodies,Greenshaw Learning Trust T/A Yate Academy,945.73, 28-Feb-2020
1729,Revenue,CAHD,Academy Resource Base Funding,Other Public Bodies,Greenshaw Learning Trust T/A Yate Academy,1437.49, 28-Feb-2020
1730,Revenue,CAHD,Statemented Support Academies,Other Public Bodies,Greenshaw Learning Trust T/A Yate Academy,554.13, 26-Feb-2020
1731,Revenue,CAHD,Statemented Support Academies,Other Public Bodies,Greenshaw Learning Trust T/A Yate Academy,1072.89, 26-Feb-2020
1732,Revenue,CAHD,Statemented Support Academies,Other Public Bodies,Greenshaw Learning Trust T/A Yate Academy,707.40, 26-Feb-2020
1733,Revenue,CAHD,Statemented Support Academies,Other Public Bodies,Greenshaw Learning Trust T/A Yate Academy,1320.48, 26-Feb-2020
1734,Revenue,CAHD,Statemented Support Academies,Other Public Bodies,Greenshaw Learning Trust T/A Yate Academy,1320.48, 26-Feb-2020
1735,Revenue,CAHD,Statemented Support Academies,Other Public Bodies,Greenshaw Learning Trust T/A Yate Academy,1072.89, 26-Feb-2020
1736,Revenue,CAHD,Statemented Support Academies,Other Public Bodies,Greenshaw Learning Trust T/A Yate Academy,1072.89, 26-Feb-2020
1737,Revenue,CAHD,Statemented Support Academies,Other Public Bodies,Greenshaw Learning Trust T/A Yate Academy,837.09, 26-Feb-2020
1738,Revenue,CAHD,Statemented Support Academies,Other Public Bodies,Greenshaw Learning Trust T/A Yate Academy,801.72, 26-Feb-2020
1739,Revenue,CAHD,Statemented Support Academies,Other Public Bodies,Greenshaw Learning Trust T/A Yate Academy,742.77, 26-Feb-2020
1740,Revenue,CAHD,Statemented Support Academies,Other Public Bodies,Greenshaw Learning Trust T/A Yate Academy,825.30, 26-Feb-2020
1741,Revenue,CAHD,Statemented Support Academies,Other Public Bodies,Greenshaw Learning Trust T/A Yate Academy,778.14, 26-Feb-2020
1742,Revenue,CAHD,Statemented Support Academies,Other Public Bodies,Greenshaw Learning Trust T/A Yate Academy,541.58, 26-Feb-2020
1743,Revenue,CAHD,Statemented Support Academies,Other Public Bodies,Greenshaw Learning Trust T/A Yate Academy,860.67, 26-Feb-2020
1744,Revenue,CAHD,Statemented Support Academies,Other Public Bodies,Greenshaw Learning Trust T/A Yate Academy,624.87, 26-Feb-2020
1745,Revenue,CAHD,Statemented Support Academies,Other Public Bodies,Greenshaw Learning Trust T/A Yate Academy,624.87, 26-Feb-2020
1746,Revenue,CAHD,South Glos Alternative Provision,Fees & Charges Income - General,Greenshaw Learning Trust T/A Yate Academy,11640.30, 04-Feb-2020
1747,Revenue,CAHD,NHS Winter pressures,Respite Planned - Nursing,Grove Care Ltd,35640.00, 21-Feb-2020
1748,Revenue,CAHD,NHS Winter pressures,Respite Planned - Nursing,Grove Care Ltd,23760.00, 21-Feb-2020
1749,Revenue,CAHD,North - S117,Permanent Residential,Grove View,7204.88, 11-Feb-2020
1750,Revenue,CAHD,South - Commissioned Services,Permanent Residential,Gwendoline House,2600.00, 11-Feb-2020
1751,Revenue,CAHD,South - Commissioned Services,Permanent Residential,Gwendoline House,2473.40, 11-Feb-2020
1752,Revenue,CAHD,South - Commissioned Services,Permanent Residential,Gwendoline House,2600.00, 11-Feb-2020
1753,Revenue,CAHD,South - Commissioned Services,Permanent Residential,Gwendoline House,2600.00, 11-Feb-2020
1754,Revenue,CAHD,Schools Specific Grant Income,Educational Materials,H & A Learning Ltd,600.00, 27-Feb-2020
1755,Revenue,CAHD,Supporting People Programme,Grants to Voluntary Bodies,Habinteg Housing Association,694.00, 28-Feb-2020
1756,Revenue,CAHD,CSC - Vinney Green Secure Unit,R & M by Departments,HAG Shutters & Grilles Limited,568.00, 21-Feb-2020
1757,Revenue,CAHD,Social Lettings Agency,Fees - General,Individual,13.13, 27-Feb-2020
1758,Revenue,CAHD,Social Lettings Agency,Other Supplies & Services,Individual,577.72, 27-Feb-2020
1759,Revenue,CAHD,Family and Young People Support North,Software Purchase,Hands Free Computing Ltd,478.00, 28-Feb-2020
1760,Revenue,CAHD,Sexual Health,Other Small Contracts,Hanham Health,966.00, 14-Feb-2020
1761,Revenue,CAHD,Sexual Health,Other Small Contracts,Hanham Health,2093.00, 14-Feb-2020
1762,Revenue,CAHD,Drug and Alcohol Programme,Other Small Contracts,Hanham Health,2233.00, 13-Feb-2020
1763,Revenue,CAHD,Sexual Health,Other Small Contracts,Hanham Health,784.60, 14-Feb-2020
1764,Revenue,CAHD,Sexual Health,Other Small Contracts,Hanham Health,774.28, 14-Feb-2020
1765,Revenue,CAHD,NHS Health Checks,Other Small Contracts,Hanham Health,2760.00, 14-Feb-2020
1766,Revenue,CAHD,Early Years Inclusion Fund,Other Public Bodies,Hanham Toddlers Pre School,900.00, 28-Feb-2020
1767,Revenue,CAHD,Home Care Monitoring (CM2000),Other Supplies & Services,HAS Technology Limited T/A CM2000,9498.98, 18-Feb-2020
1768,Revenue,CAHD,North - Community based support,Other Supplies & Services,HAS Technology Limited T/A CM2000,1610.00, 13-Feb-2020
1769,Revenue,CAHD,North - Community based support,Permanent Nursing,Hazelwood Gardens Nursing Home,2343.48, 11-Feb-2020
1770,Revenue,CAHD,Central - Commissioned Services,Respite Planned - Residential,Head Office,1246.00, 11-Feb-2020
1771,Revenue,CAHD,North - Community based support,Permanent Nursing,Head Office,2470.80, 11-Feb-2020
1772,Revenue,CAHD,North - Community based support,Permanent Nursing,Head Office,4554.08, 11-Feb-2020
1773,Revenue,CAHD,CSC - Residential Placements,Permanent Residential,Headway Adolescent Resources Limited,13600.00, 05-Feb-2020
1774,Revenue,CAHD,Central - Commissioned Services,Day Care / Social Activities,Headway Bristol,112.80, 03-Feb-2020
1775,Revenue,CAHD,Central - Commissioned Services,Other Small Contracts,Headway Bristol,338.40, 03-Feb-2020
1776,Revenue,CAHD,South - Commissioned Services,Other Small Contracts,Headway Bristol,45.12, 03-Feb-2020
1777,Revenue,CAHD,North - Community based support,Day Care / Social Activities,Headway Bristol,67.68, 03-Feb-2020
1778,Revenue,CAHD,Younger MH non-res purchasing,Day Care / Social Activities,Headway Bristol,45.12, 03-Feb-2020
1779,Revenue,CAHD,Central - Commissioned Services,Day Care / Social Activities,Headway Bristol,428.64, 10-Feb-2020
1780,Revenue,CAHD,Central - Commissioned Services,Other Small Contracts,Headway Bristol,609.12, 10-Feb-2020
1781,Revenue,CAHD,South - Commissioned Services,Day Care / Social Activities,Headway Bristol,135.36, 10-Feb-2020
1782,Revenue,CAHD,South - Commissioned Services,Other Small Contracts,Headway Bristol,315.84, 10-Feb-2020
1783,Revenue,CAHD,North - Community based support,Day Care / Social Activities,Headway Bristol,67.68, 10-Feb-2020
1784,Revenue,CAHD,Younger MH non-res purchasing,Day Care / Social Activities,Headway Bristol,45.12, 10-Feb-2020
1785,Revenue,CAHD,Central - Commissioned Services,Day Care / Social Activities,Headway Bristol,428.64, 17-Feb-2020
1786,Revenue,CAHD,Central - Commissioned Services,Other Small Contracts,Headway Bristol,744.48, 17-Feb-2020
1787,Revenue,CAHD,South - Commissioned Services,Day Care / Social Activities,Headway Bristol,135.36, 17-Feb-2020
1788,Revenue,CAHD,South - Commissioned Services,Other Small Contracts,Headway Bristol,315.84, 17-Feb-2020
1789,Revenue,CAHD,North - Community based support,Day Care / Social Activities,Headway Bristol,67.68, 17-Feb-2020
1790,Revenue,CAHD,Younger MH non-res purchasing,Day Care / Social Activities,Headway Bristol,45.12, 17-Feb-2020
1791,Revenue,CAHD,Central - Commissioned Services,Day Care / Social Activities,Headway Bristol,315.84, 24-Feb-2020
1792,Revenue,CAHD,Central - Commissioned Services,Other Small Contracts,Headway Bristol,473.76, 24-Feb-2020
1793,Revenue,CAHD,South - Commissioned Services,Day Care / Social Activities,Headway Bristol,135.36, 24-Feb-2020
1794,Revenue,CAHD,South - Commissioned Services,Other Small Contracts,Headway Bristol,315.84, 24-Feb-2020
1795,Revenue,CAHD,North - Community based support,Day Care / Social Activities,Headway Bristol,67.68, 24-Feb-2020
1796,Revenue,CAHD,Younger MH non-res purchasing,Day Care / Social Activities,Headway Bristol,45.12, 24-Feb-2020
1797,Revenue,CAHD,Central - Commissioned Services,Other Small Contracts,Helping Hands Homecare,931.96, 28-Feb-2020
1798,Revenue,CAHD,South - Commissioned Services,Other Small Contracts,Helping Hands Homecare,780.45, 28-Feb-2020
1799,Revenue,CAHD,North - Community based support,Other Small Contracts,Helping Hands Homecare,2150.24, 28-Feb-2020
1800,Revenue,CAHD,Central - Commissioned Services,Other Small Contracts,Helping Hands Homecare,931.96, 28-Feb-2020
1801,Revenue,CAHD,South - Commissioned Services,Other Small Contracts,Helping Hands Homecare,591.25, 28-Feb-2020
